Date Spend Occurred,Department Incurring Spend,Beneficiary Name,Summary of Purpose of Spend, Gross Amount ,Merchant Category
14/01/2020,SE IPSB - PLAYGROUPS,100 Acrewood Preschool,Agency Placement Nursery Exp," 1,301.13 ",Playgroup
07/02/2020,Free Early Educ 2 yr,100 Acrewood Preschool,Third Party Payments-Other Agencies," 5,821.20 ",Playgroup
07/02/2020,Free Early Educ 3&4,100 Acrewood Preschool,Third Party Payments-Other Agencies," 5,754.15 ",Playgroup
07/02/2020,Free Early Educ 3&4,100 Acrewood Preschool,Third Party Payments-Other Agencies," 2,762.10 ",Playgroup
07/02/2020,Free Early Educ 3&4,100 Acrewood Preschool,Third Party Payments-Other Agencies, 914.10 ,Playgroup
21/02/2020,INCLUSION (GRANTS),100 Acrewood Preschool,Grants-For Profit Orgs incl Comm Int & Soc Enterp," 1,650.00 ",Playgroup
31/01/2020,STAFF OFFICE,11KBW,New GR/IR Account," 5,758.00 ",Witness & Prof Exp
26/02/2020,Libraries & Cultural,11KBW,New GR/IR Account," 1,218.00 ",Witness & Prof Exp
30/03/2020,LEG EXPS-CORP GROUP,12 College Place,Legal Expenses, 671.00 ,General Support
03/01/2020,PH PROJECTS,1minus1 Ltd,New GR/IR Account," 1,200.00 ",Staff Training
15/01/2020,GLDFD - MEMBS ALLOCS,1st Ash Vale Scout Group,Grants-Third Sector and Voluntary Orgs/Charities, 600.00 ,Grants-Member Allocs
06/02/2020,WAVLY - MEMBS ALLOCS,1st Bourne Guides,Grants-Third Sector and Voluntary Orgs/Charities, 400.00 ,Grants-Member Allocs
23/01/2020,NULL,1st Chertsey Scout Group Council,NULL," 5,841.00 ",Grants-Member Allocs
07/02/2020,RNYMD - MEMBS ALLOCS,1st Chertsey Scout Group Council,Grants-Third Sector and Voluntary Orgs/Charities, 630.00 ,Grants-Member Allocs
21/01/2020,ELMB - MEMBS ALLOCS,1St Hinchley Wood Scout Group,Grants-Third Sector and Voluntary Orgs/Charities," 1,150.00 ",Grants-Member Allocs
07/02/2020,WAVLY - MEMBS ALLOCS,1st Rowledge Rainbows & Guides,Grants-Third Sector and Voluntary Orgs/Charities," 1,200.00 ",Grants-Member Allocs
06/02/2020,RNYMD - MEMBS ALLOCS,1st Virginia Water Scout Group,Grants-Third Sector and Voluntary Orgs/Charities," 3,975.00 ",Grants-Member Allocs
20/03/2020,NULL,2Teck Ltd,NULL," 79,336.80 ",Hardware - Sys
27/01/2020,ORBIS CHF PROP OFFIC,31Ten Consulting Ltd,New GR/IR Account," 21,240.00 ",IT Consultancy
25/02/2020,HR LEADERSHIP DEV,3C Associates Ltd,New GR/IR Account," 29,100.00 ",Staff Training
04/02/2020,ORBIS FIN TRAINING,3C Associates Ltd,New GR/IR Account," 1,914.00 ",Staff Training
11/02/2020,Fire Service,3C Associates Ltd,New GR/IR Account, 363.24 ,Staff Training
25/02/2020,HR LEADERSHIP DEV,3C Associates Ltd,New GR/IR Account," 4,077.53 ",Staff Training
23/03/2020,ORBIS FIN TRAINING,3C Associates Ltd,New GR/IR Account," 5,028.00 ",Staff Training
29/01/2020,BOOKHAM LIB (NEW),3C Environmental Technology,Term Contract Inspections, 312.00 ,General Build Maint
29/01/2020,CHERTSEY LIB,3C Environmental Technology,Term Contract Inspections, 312.00 ,General Build Maint
29/01/2020,DOWNS WAY SCH,3C Environmental Technology,Buyback Inspections, 300.00 ,General Build Maint
29/01/2020,BASINGSTOKE CANAL,3C Environmental Technology,Term Contract Inspections, 312.00 ,General Build Maint
29/01/2020,Birchlands,3C Environmental Technology,Term Contract Works," 1,578.14 ",General Build Maint
29/01/2020,ASHFORD YOUTH CENTRE,3C Environmental Technology,Term Contract Inspections, 312.00 ,General Build Maint
29/01/2020,FAIRMOUNT HOUSE,3C Environmental Technology,Term Contract Inspections, 828.00 ,General Build Maint
29/01/2020,COUNTY HALL,3C Environmental Technology,Term Contract Inspections," 1,050.91 ",General Build Maint
29/01/2020,HAWKEDALE INF,3C Environmental Technology,Buyback Inspections, 264.00 ,General Build Maint
29/01/2020,STAINES LIB,3C Environmental Technology,Term Contract Inspections, 468.00 ,General Build Maint
29/01/2020,HILLSIDE CAMBERLEY,3C Environmental Technology,Term Contract Inspections, 312.00 ,General Build Maint
29/01/2020,SHEPPERTON LIB,3C Environmental Technology,Term Contract Inspections, 312.00 ,General Build Maint
29/01/2020,SHEPPERTON YOUTH CTR,3C Environmental Technology,Term Contract Inspections, 312.00 ,General Build Maint
29/01/2020,STAFF CLUB COUNTY HA,3C Environmental Technology,Term Contract Inspections, 303.60 ,General Build Maint
29/01/2020,ST MARY'S CEJ OXTED,3C Environmental Technology,Buyback Inspections, 372.00 ,General Build Maint
29/01/2020,ASHTEAD LIB,3C Environmental Technology,Term Contract Inspections, 312.00 ,General Build Maint
25/02/2020,CAMBERLEY LIB,3C Environmental Technology,Term Contract Inspections, 312.00 ,General Build Maint
25/02/2020,STH CAMB PRY&NUR SCH,3C Environmental Technology,Buyback Inspections, 252.00 ,General Build Maint
25/02/2020,GODSTONE DEPOT,3C Environmental Technology,Term Contract Inspections, 828.00 ,General Build Maint
25/02/2020,ASH SSC ASH LIBRARY,3C Environmental Technology,Term Contract Inspections, 312.00 ,General Build Maint
25/02/2020,HENLEY FORT OEC,3C Environmental Technology,Term Contract Inspections, 312.00 ,General Build Maint
25/02/2020,COTTAGE BOURNE HALL,3C Environmental Technology,Term Contract Inspections, 312.00 ,General Build Maint
25/02/2020,STAINES YTH SPTS CTR,3C Environmental Technology,Term Contract Inspections, 312.00 ,General Build Maint
25/02/2020,BAGSHOT DEPOT,3C Environmental Technology,Term Contract Inspections, 828.00 ,General Build Maint
25/02/2020,WYKE PRY SCH,3C Environmental Technology,Buyback Inspections, 300.00 ,General Build Maint
25/02/2020,THE MANSION L'HEAD,3C Environmental Technology,Term Contract Inspections, 468.00 ,General Build Maint
25/02/2020,WEST BYFLEET LIB,3C Environmental Technology,Term Contract Inspections, 312.00 ,General Build Maint
25/02/2020,LOCKWOOD,3C Environmental Technology,Term Contract Inspections, 252.00 ,General Build Maint
25/02/2020,COBHAM LIB HLDG A/C,3C Environmental Technology,Term Contract Inspections, 312.00 ,General Build Maint
25/02/2020,DITTONS LIB,3C Environmental Technology,Term Contract Inspections, 312.00 ,General Build Maint
25/02/2020,CONSORT HOUSE,3C Environmental Technology,Term Contract Inspections, 828.00 ,General Build Maint
25/02/2020,DORKING LIB (NEW),3C Environmental Technology,Term Contract Inspections, 312.00 ,General Build Maint
25/02/2020,FARNHAM AEI WEST ST,3C Environmental Technology,Term Contract Inspections, 468.00 ,General Build Maint
25/02/2020,HORSLEY LIB,3C Environmental Technology,Term Contract Inspections, 312.00 ,General Build Maint
25/02/2020,COBHAM LIB HLDG A/C,3C Environmental Technology,Term Contract Inspections, 312.00 ,General Build Maint
25/02/2020,QUADRANT CT WOKING,3C Environmental Technology,Term Contract Inspections," 1,008.00 ",General Build Maint
29/01/2020,ARUNDEL BANSTEAD,3C Environmental Technology,Term Contract Inspections, 312.00 ,General Build Maint
29/01/2020,BANSTEAD LIB,3C Environmental Technology,Term Contract Inspections, 312.00 ,General Build Maint
29/01/2020,GODALMING SSC,3C Environmental Technology,Term Contract Inspections, 312.00 ,General Build Maint
29/01/2020,GUILDFORD LIB,3C Environmental Technology,Term Contract Inspections, 312.00 ,General Build Maint
29/01/2020,KNWL GRN STAINES LOC,3C Environmental Technology,Term Contract Inspections, 312.00 ,General Build Maint
29/01/2020,HILLSIDE CAMBERLEY,3C Environmental Technology,Term Contract Inspections," 1,279.60 ",General Build Maint
20/03/2020,51 HOLLAND CLOSE,3C Environmental Technology,Term Contract Works, 300.29 ,General Build Maint
04/03/2020,THE MANSION L'HEAD,3C Environmental Technology,Term Contract Works, 268.62 ,General Build Maint
04/03/2020,STAFF CLUB COUNTY HA,3C Environmental Technology,Term Contract Inspections, 394.68 ,General Build Maint
04/03/2020,MANOR MEAD,3C Environmental Technology,Buyback Inspections, 616.58 ,General Build Maint
20/03/2020,ASHFORD YOUTH CENTRE,3C Environmental Technology,Term Contract Works, 348.59 ,General Build Maint
20/03/2020,SUNNYDOWN SCH,3C Environmental Technology,Buyback Works Term, 430.56 ,General Build Maint
25/02/2020,OXTED LIB,3C Environmental Technology,Term Contract Inspections, 312.00 ,General Build Maint
25/02/2020,REIGATE LIB,3C Environmental Technology,Term Contract Inspections, 312.00 ,General Build Maint
25/02/2020,ASHFORD LIB,3C Environmental Technology,Term Contract Inspections, 312.00 ,General Build Maint
30/03/2020,NEW HAW LIB,3C Environmental Technology,Term Contract Inspections, 312.00 ,General Build Maint
30/03/2020,LOSELEY FIELDS PRIM,3C Environmental Technology,Buyback Inspections, 372.00 ,General Build Maint
30/03/2020,STONELEIGH LIB,3C Environmental Technology,Term Contract Inspections, 312.00 ,General Build Maint
30/03/2020,Keswick,3C Environmental Technology,Term Contract Works, 310.15 ,General Build Maint
30/03/2020,Birchlands,3C Environmental Technology,Term Contract Works, 366.68 ,General Build Maint
30/03/2020,PARK HOUSE SHALFORD,3C Environmental Technology,Term Contract Inspections, 312.00 ,General Build Maint
30/03/2020,SHEPPERTON YOUTH CTR,3C Environmental Technology,Term Contract Works, 342.17 ,General Build Maint
30/03/2020,THE BRIDGE,3C Environmental Technology,Term Contract Works, 299.64 ,General Build Maint
30/03/2020,WESTFIELD PRY SCH,3C Environmental Technology,Buyback Inspections, 600.00 ,General Build Maint
30/03/2020,WARLINGHAM LIB,3C Environmental Technology,Term Contract Inspections, 312.00 ,General Build Maint
30/03/2020,GUILDFORD AEI,3C Environmental Technology,Term Contract Inspections, 828.00 ,General Build Maint
30/03/2020,Abbeywood,3C Environmental Technology,Term Contract Works, 266.80 ,General Build Maint
30/03/2020,Orchard,3C Environmental Technology,Term Contract Works, 620.32 ,General Build Maint
30/03/2020,Barnfield,3C Environmental Technology,Term Contract Inspections," 1,226.40 ",General Build Maint
30/03/2020,LAKESIDE SCHOOL,3C Environmental Technology,Buyback Inspections, 828.00 ,General Build Maint
30/03/2020,ST PETERS CE TAND,3C Environmental Technology,Buyback Inspections, 312.00 ,General Build Maint
30/03/2020,Chalkmead,3C Environmental Technology,Term Contract Works," 6,665.84 ",General Build Maint
30/03/2020,Birchlands,3C Environmental Technology,Term Contract Works," 6,199.39 ",General Build Maint
30/03/2020,Keswick,3C Environmental Technology,Term Contract Inspections, 877.20 ,General Build Maint
30/03/2020,AUDLEY PRY,3C Environmental Technology,Buyback Inspections, 468.00 ,General Build Maint
30/03/2020,CONSORT HOUSE,3C Environmental Technology,Term Contract Inspections, 276.00 ,General Build Maint
30/03/2020,LINDEN FARM,3C Environmental Technology,Term Contract Inspections, 828.00 ,General Build Maint
30/03/2020,OTTERSHAW CE JUN SCH,3C Environmental Technology,Buyback Inspections, 252.00 ,General Build Maint
30/03/2020,ST NICOLAS CE(A) JUN,3C Environmental Technology,Buyback Inspections, 468.00 ,General Build Maint
30/03/2020,ST NICOLAS CE(A) JUN,3C Environmental Technology,Buyback Inspections, 828.00 ,General Build Maint
30/03/2020,ST DUNSTANS CATH PRY,3C Environmental Technology,Buyback Inspections, 828.00 ,General Build Maint
31/03/2020,Meadowside,3C Environmental Technology,Term Contract Works," 8,118.54 ",General Build Maint
30/03/2020,BUSHEY HILL JUN,3C Environmental Technology,Buyback Inspections, 828.00 ,General Build Maint
30/03/2020,KINGSWOOD PRY SCH,3C Environmental Technology,Buyback Inspections, 468.00 ,General Build Maint
30/03/2020,ASHFORD PARK PRY SCH,3C Environmental Technology,Buyback Inspections, 612.00 ,General Build Maint
30/03/2020,BEAUCLERC INF SCH,3C Environmental Technology,Buyback Inspections, 252.00 ,General Build Maint
30/03/2020,GOSDEN HOUSE SCH,3C Environmental Technology,Buyback Inspections, 480.00 ,General Build Maint
30/03/2020,ONSLOW INF,3C Environmental Technology,Buyback Inspections, 312.00 ,General Build Maint
30/03/2020,Orchard,3C Environmental Technology,Term Contract Inspections," 1,048.80 ",General Build Maint
30/03/2020,Abbeywood,3C Environmental Technology,Term Contract Inspections," 1,100.40 ",General Build Maint
30/03/2020,GROVE PRY,3C Environmental Technology,Buyback Inspections, 828.00 ,General Build Maint
30/03/2020,MEADOW PRY SCH,3C Environmental Technology,Buyback Inspections," 1,008.00 ",General Build Maint
30/03/2020,BROOKLANDS SCHOOL,3C Environmental Technology,Buyback Inspections, 468.00 ,General Build Maint
30/03/2020,DOVERS GREEN SCHOOL,3C Environmental Technology,Buyback Inspections, 372.00 ,General Build Maint
06/01/2020,LEG EXPS-CORP GROUP,3PB Barristers,Legal Expenses," 5,100.00 ",General Support
11/03/2020,LEGAL EXPS CH AD ED,3PB Barristers,Legal Expenses," 1,800.00 ",General Support
21/01/2020,SRY HTH- MEMB ALLOCS,40 Degreez,Grants-Third Sector and Voluntary Orgs/Charities, 500.00 ,Grants-Member Allocs
28/01/2020,WAVLY - MEMBS ALLOCS,40 Degreez,Grants-Third Sector and Voluntary Orgs/Charities," 2,000.00 ",Grants-Member Allocs
17/01/2020,LEGAL EXPS CH AD ED,42 Bedford Row,Legal Expenses," 1,440.00 ",General Support
14/02/2020,LEGAL EXPS CH AD ED,42 Bedford Row,Legal Expenses, 600.00 ,General Support
20/02/2020,LEGAL EXPS CH AD ED,42 Bedford Row,Legal Expenses, 600.00 ,General Support
27/02/2020,LEGAL EXPS CH AD ED,42 Bedford Row,Legal Expenses, 420.00 ,General Support
27/02/2020,LEGAL EXPS CH AD ED,42 Bedford Row,Legal Expenses, 420.00 ,General Support
03/03/2020,LEGAL EXPS CH AD ED,42 Bedford Row,Legal Expenses," 1,440.00 ",General Support
11/03/2020,LEGAL EXPS CH AD ED,42 Bedford Row,Legal Expenses, 720.00 ,General Support
11/03/2020,LEGAL EXPS CH AD ED,42 Bedford Row,Legal Expenses, 762.00 ,General Support
07/01/2020,SURREY ARTS GEN,4Imprint Direct Ltd,Equipment, 380.28 ,General Support
03/03/2020,LEGAL EXPS CH AD ED,5 Pump Court Chambers,Legal Expenses," 4,140.00 ",Costs
03/01/2020,AGENCY NON CWD SC,5Fostering,New GR/IR Account," 4,278.00 ",Fostering IFA
17/01/2020,AGENCY NON CWD SC,5Fostering,New GR/IR Account," 4,278.00 ",Fostering IFA
05/03/2020,AGENCY NON CWD SC,5Fostering,New GR/IR Account, 690.00 ,Fostering IFA
14/01/2020,AGENCY NON CWD SC,5Fostering,New GR/IR Account," 4,278.00 ",Fostering IFA
11/02/2020,AGENCY NON CWD SC,5Fostering,New GR/IR Account," 4,278.00 ",Fostering IFA
13/02/2020,AGENCY NON CWD SC,5Fostering,New GR/IR Account," 1,656.00 ",Fostering IFA
11/02/2020,AGENCY NON CWD SC,5Fostering,New GR/IR Account," 4,278.00 ",Fostering IFA
05/03/2020,AGENCY NON CWD SC,5Fostering,New GR/IR Account," 4,002.00 ",Fostering IFA
04/03/2020,AGENCY NON CWD SC,5Fostering,New GR/IR Account," 4,002.00 ",Fostering IFA
30/03/2020,AGENCY NON CWD SC,5Fostering,New GR/IR Account," 4,278.00 ",Fostering IFA
09/03/2020,CORONER,5KBW,New GR/IR Account, 928.00 ,Deputy Coroner Cover
13/02/2020,NULL,A & L Chapman Ltd,NULL, 865.00 ,Non-Staff Expenses
16/01/2020,PE/CDT MTCE OVERHEAD,A L T Saws & Spares Ltd,New GR/IR Account, 255.42 ,General Build Maint
11/02/2020,BUS SUPP & CUST SERV,A R Cook & Son (Plant Hire) Ltd,New GR/IR Account," 2,160.00 ",Individual - NEC
07/01/2020,BUS SUPP & CUST SERV,A R Cook & Son (Plant Hire) Ltd,New GR/IR Account," 1,980.00 ",Individual - NEC
05/02/2020,BUS SUPP & CUST SERV,A R Cook & Son (Plant Hire) Ltd,New GR/IR Account," 1,500.00 ",Individual - NEC
04/02/2020,BUS SUPP & CUST SERV,A R Cook & Son (Plant Hire) Ltd,New GR/IR Account," 1,620.00 ",Individual - NEC
05/02/2020,BUS SUPP & CUST SERV,A R Cook & Son (Plant Hire) Ltd,New GR/IR Account," 3,000.00 ",Individual - NEC
06/01/2020,BUS SUPP & CUST SERV,A R Cook & Son (Plant Hire) Ltd,Contractor," 2,040.00 ",Individual - NEC
07/02/2020,BUS SUPP & CUST SERV,A R Cook & Son (Plant Hire) Ltd,New GR/IR Account," 2,220.00 ",Individual - NEC
11/02/2020,BUS SUPP & CUST SERV,A R Cook & Son (Plant Hire) Ltd,New GR/IR Account," 1,824.00 ",Individual - NEC
11/02/2020,BUS SUPP & CUST SERV,A R Cook & Son (Plant Hire) Ltd,New GR/IR Account, 840.00 ,Individual - NEC
11/02/2020,BUS SUPP & CUST SERV,A R Cook & Son (Plant Hire) Ltd,New GR/IR Account," 1,680.00 ",Individual - NEC
18/02/2020,BUS SUPP & CUST SERV,A R Cook & Son (Plant Hire) Ltd,New GR/IR Account," 2,160.00 ",Individual - NEC
28/01/2020,BUS SUPP & CUST SERV,A R Cook & Son (Plant Hire) Ltd,New GR/IR Account, 900.00 ,Individual - NEC
25/02/2020,BUS SUPP & CUST SERV,A R Cook & Son (Plant Hire) Ltd,New GR/IR Account," 1,620.00 ",Individual - NEC
18/02/2020,BUS SUPP & CUST SERV,A R Cook & Son (Plant Hire) Ltd,New GR/IR Account," 8,580.00 ",Individual - NEC
13/03/2020,BUS SUPP & CUST SERV,A R Cook & Son (Plant Hire) Ltd,New GR/IR Account," 3,420.00 ",Individual - NEC
18/02/2020,BUS SUPP & CUST SERV,A R Cook & Son (Plant Hire) Ltd,New GR/IR Account," 1,620.00 ",Individual - NEC
12/03/2020,BUS SUPP & CUST SERV,A R Cook & Son (Plant Hire) Ltd,New GR/IR Account," 2,100.00 ",Individual - NEC
12/03/2020,BUS SUPP & CUST SERV,A R Cook & Son (Plant Hire) Ltd,New GR/IR Account," 3,120.00 ",Individual - NEC
12/03/2020,BUS SUPP & CUST SERV,A R Cook & Son (Plant Hire) Ltd,New GR/IR Account," 1,680.00 ",Individual - NEC
13/03/2020,BUS SUPP & CUST SERV,A R Cook & Son (Plant Hire) Ltd,New GR/IR Account, 900.00 ,Individual - NEC
11/02/2020,LEARNING AND DEV,A W Champion Ltd,New GR/IR Account, 864.00 ,General Build Maint
11/02/2020,LEARNING AND DEV,A W Champion Ltd,New GR/IR Account, 864.00 ,General Build Maint
11/02/2020,LEARNING AND DEV,A W Champion Ltd,New GR/IR Account, 864.00 ,General Build Maint
31/01/2020,CORP INCOME AND EXP,A W Champion Ltd,Write Offs, 864.00 ,General Build Maint
13/03/2020,NULL,A&F Acoustics Ltd,NULL, 960.00 ,Env Consultancy
16/01/2020,Spelthorne C&G OP,A2Dominion Group Ltd,New GR/IR Account, 965.91 ,Dom Care - Adults
10/02/2020,Spelthorne C&G OP,A2Dominion Group Ltd,New GR/IR Account, 965.91 ,Dom Care - Adults
10/03/2020,Spelthorne C&G OP,A2Dominion Group Ltd,New GR/IR Account, 903.59 ,Dom Care - Adults
31/01/2020,NE UASC NRPF 18+ CRE,AA Global Language Services Ltd,Fees," 6,773.60 ",Staff Expenses
26/03/2020,NE UASC NRPF 18+ CRE,AA Global Language Services Ltd,Fees," 9,375.71 ",Staff Expenses
26/02/2020,NE UASC NRPF 18+ CRE,AA Global Language Services Ltd,Fees," 10,473.22 ",Staff Expenses
11/02/2020,Abbeywood Res,Abbeywood Residential Home,Educ Visits/Hols/Camps/Toys, 533.37 ,Non-Staff Expenses
14/02/2020,Abbeywood Res,Abbeywood Residential Home,Cleaning Materials, 354.46 ,Non-Staff Expenses
13/03/2020,Abbeywood Res,Abbeywood Residential Home,Educ Visits/Hols/Camps/Toys, 554.99 ,Non-Staff Expenses
26/02/2020,NE ALTERNATIVE SEN,ABC Childrens Physiotherapy,New GR/IR Account, 408.50 ,SEND Agncy Placement
02/01/2020,NW IPSB - PLAYGROUPS,ABC Pre-School,Agency Placement Nursery Exp," 1,839.15 ",Schools
07/02/2020,Free Early Educ 2 yr,ABC Pre-School,Third Party Payments-Other Agencies," 2,328.48 ",Schools
07/02/2020,Free Early Educ 3&4,ABC Pre-School,Third Party Payments-Other Agencies," 5,267.54 ",Schools
07/02/2020,Free Early Educ 3&4,ABC Pre-School,Third Party Payments-Other Agencies," 2,284.65 ",Schools
07/02/2020,Free Early Educ 3&4,ABC Pre-School,Third Party Payments-Other Agencies," 1,803.04 ",Schools
07/02/2020,Free Early Educ 3&4,ABC Pre-School,Third Party Payments-Other Agencies," 1,828.20 ",Schools
07/02/2020,Free Early Educ 3&4,ABC Pre-School,Third Party Payments-Other Agencies, 349.80 ,Schools
20/01/2020,TRANSPT M/STRM-PRIM,ABC Taxis,Creditors Control Account, 900.00 ,Multi-purpose Veh
20/01/2020,TRANSPT M/STRM-PRIM,ABC Taxis,Creditors Control Account, 521.45 ,Multi-purpose Veh
20/01/2020,SW TRANSPORT,ABC Taxis,Creditors Control Account," 2,688.00 ",Multi-purpose Veh
20/01/2020,NE TRANSPORT,ABC Taxis,Creditors Control Account," 1,260.00 ",Multi-purpose Veh
20/01/2020,TRANSPT M/STRM-PRIM,ABC Taxis,Creditors Control Account," 1,440.00 ",Multi-purpose Veh
20/01/2020,NE TRANSPORT,ABC Taxis,Creditors Control Account," 1,944.00 ",Multi-purpose Veh
20/01/2020,TRANSPT M/STRM-SEC,ABC Taxis,Creditors Control Account, 493.37 ,Multi-purpose Veh
20/01/2020,SE TRANSPORT,ABC Taxis,Creditors Control Account," 1,642.44 ",Multi-purpose Veh
20/01/2020,SW TRANSPORT,ABC Taxis,Creditors Control Account, 697.56 ,Multi-purpose Veh
20/01/2020,SW TRANSPORT,ABC Taxis,Creditors Control Account, 720.00 ,Multi-purpose Veh
20/01/2020,NW TRANSPORT,ABC Taxis,Creditors Control Account," 1,068.64 ",Multi-purpose Veh
20/01/2020,SW TRANSPORT,ABC Taxis,Creditors Control Account," 1,396.80 ",Multi-purpose Veh
20/01/2020,NW TRANSPORT,ABC Taxis,Creditors Control Account, 780.00 ,Multi-purpose Veh
20/01/2020,SW TRANSPORT,ABC Taxis,Creditors Control Account," 1,620.00 ",Multi-purpose Veh
20/01/2020,NW TRANSPORT,ABC Taxis,Creditors Control Account, 998.40 ,Multi-purpose Veh
20/01/2020,NW TRANSPORT,ABC Taxis,Creditors Control Account, 900.00 ,Multi-purpose Veh
20/01/2020,NW CARE - CPCRT LAC,ABC Taxis,Creditors Control Account," 1,414.40 ",Multi-purpose Veh
20/01/2020,TRANSPT M/STRM-SEC,ABC Taxis,Creditors Control Account, 584.96 ,Multi-purpose Veh
20/01/2020,NE TRANSPORT,ABC Taxis,Creditors Control Account," 1,152.00 ",Multi-purpose Veh
20/01/2020,NE TRANSPORT,ABC Taxis,Creditors Control Account, 360.00 ,Multi-purpose Veh
14/02/2020,SW TRANSPORT,ABC Taxis,Creditors Control Account, 930.07 ,Multi-purpose Veh
14/02/2020,TRANSPT M/STRM-SEC,ABC Taxis,Creditors Control Account, 669.58 ,Multi-purpose Veh
14/02/2020,TRANSPT M/STRM-PRIM,ABC Taxis,Creditors Control Account, 537.60 ,Multi-purpose Veh
14/02/2020,SW TRANSPORT,ABC Taxis,Creditors Control Account," 2,052.00 ",Multi-purpose Veh
14/02/2020,SW TRANSPORT,ABC Taxis,Creditors Control Account, 912.00 ,Multi-purpose Veh
14/02/2020,TRANSPT M/STRM-PRIM,ABC Taxis,Creditors Control Account," 1,140.00 ",Multi-purpose Veh
14/02/2020,NE TRANSPORT,ABC Taxis,Creditors Control Account," 2,462.40 ",Multi-purpose Veh
14/02/2020,NW TRANSPORT,ABC Taxis,Creditors Control Account," 1,200.02 ",Multi-purpose Veh
14/02/2020,NW TRANSPORT,ABC Taxis,Creditors Control Account," 1,140.00 ",Multi-purpose Veh
14/02/2020,NW TRANSPORT,ABC Taxis,Creditors Control Account," 2,810.99 ",Multi-purpose Veh
14/02/2020,NW TRANSPORT,ABC Taxis,Creditors Control Account," 1,200.00 ",Multi-purpose Veh
14/02/2020,NW TRANSPORT,ABC Taxis,Creditors Control Account," 1,983.10 ",Multi-purpose Veh
14/02/2020,NE TRANSPORT,ABC Taxis,Creditors Control Account," 2,520.00 ",Multi-purpose Veh
14/02/2020,NE TRANSPORT,ABC Taxis,Creditors Control Account, 720.00 ,Multi-purpose Veh
14/02/2020,PLD TRANSITION,ABC Taxis,Creditors Control Account," 2,476.80 ",Multi-purpose Veh
14/02/2020,TRANSPT M/STRM-SEC,ABC Taxis,Creditors Control Account, 680.90 ,Multi-purpose Veh
14/02/2020,SW TRANSPORT,ABC Taxis,Creditors Control Account," 2,088.00 ",Multi-purpose Veh
14/02/2020,NE TRANSPORT,ABC Taxis,Creditors Control Account," 1,459.20 ",Multi-purpose Veh
20/01/2020,TRANSPT M/STRM-PRIM,ABC Taxis,Creditors Control Account," 1,411.20 ",Multi-purpose Veh
20/01/2020,NW TRANSPORT,ABC Taxis,Creditors Control Account, 884.23 ,Multi-purpose Veh
20/01/2020,NW TRANSPORT,ABC Taxis,Creditors Control Account," 1,835.35 ",Multi-purpose Veh
20/01/2020,NW CARE - LAC,ABC Taxis,Creditors Control Account, 707.20 ,Multi-purpose Veh
20/01/2020,PLD TRANSITION,ABC Taxis,Creditors Control Account," 1,857.60 ",Multi-purpose Veh
14/02/2020,SE TRANSPORT,ABC Taxis,Creditors Control Account," 2,189.93 ",Multi-purpose Veh
14/02/2020,TRANSPT M/STRM-PRIM,ABC Taxis,Creditors Control Account," 1,915.20 ",Multi-purpose Veh
14/02/2020,TRANSPT M/STRM-PRIM,ABC Taxis,Creditors Control Account," 1,920.00 ",Multi-purpose Veh
14/02/2020,NW TRANSPORT,ABC Taxis,Creditors Control Account," 1,140.00 ",Multi-purpose Veh
14/02/2020,SW TRANSPORT,ABC Taxis,Creditors Control Account," 3,840.00 ",Multi-purpose Veh
14/02/2020,NW CARE - LAC,ABC Taxis,Creditors Control Account," 1,088.00 ",Multi-purpose Veh
14/02/2020,NW CARE - CPCRT LAC,ABC Taxis,Creditors Control Account," 2,176.00 ",Multi-purpose Veh
12/03/2020,TRANSPT M/STRM-PRIM,ABC Taxis,Creditors Control Account, 900.00 ,Multi-purpose Veh
12/03/2020,NW TRANSPORT,ABC Taxis,Creditors Control Account, 947.39 ,Multi-purpose Veh
12/03/2020,NW CARE - LAC,ABC Taxis,Creditors Control Account, 816.00 ,Multi-purpose Veh
12/03/2020,NW CARE - CPCRT LAC,ABC Taxis,Creditors Control Account," 1,632.00 ",Multi-purpose Veh
12/03/2020,SW TRANSPORT,ABC Taxis,Creditors Control Account, 720.00 ,Multi-purpose Veh
12/03/2020,NW TRANSPORT,ABC Taxis,Creditors Control Account," 2,083.20 ",Multi-purpose Veh
12/03/2020,NE TRANSPORT,ABC Taxis,Creditors Control Account," 1,890.00 ",Multi-purpose Veh
12/03/2020,NW TRANSPORT,ABC Taxis,Creditors Control Account, 780.00 ,Multi-purpose Veh
12/03/2020,NE TRANSPORT,ABC Taxis,Creditors Control Account," 1,814.40 ",Multi-purpose Veh
12/03/2020,TRANSPT M/STRM-SEC,ABC Taxis,Creditors Control Account, 528.61 ,Multi-purpose Veh
12/03/2020,NW TRANSPORT,ABC Taxis,Creditors Control Account, 900.00 ,Multi-purpose Veh
12/03/2020,TRANSPT M/STRM-PRIM,ABC Taxis,Creditors Control Account, 907.20 ,Multi-purpose Veh
12/03/2020,SW TRANSPORT,ABC Taxis,Creditors Control Account," 1,620.00 ",Multi-purpose Veh
12/03/2020,NW TRANSPORT,ABC Taxis,Creditors Control Account, 840.00 ,Multi-purpose Veh
12/03/2020,SW TRANSPORT,ABC Taxis,Creditors Control Account," 2,880.00 ",Multi-purpose Veh
12/03/2020,TRANSPT M/STRM-SEC,ABC Taxis,Creditors Control Account, 852.37 ,Multi-purpose Veh
12/03/2020,SW TRANSPORT,ABC Taxis,Creditors Control Account," 1,540.80 ",Multi-purpose Veh
12/03/2020,NE TRANSPORT,ABC Taxis,Creditors Control Account, 540.00 ,Multi-purpose Veh
12/03/2020,PLD TRANSITION,ABC Taxis,Creditors Control Account," 1,857.60 ",Multi-purpose Veh
12/03/2020,TRANSPT M/STRM-PRIM,ABC Taxis,Creditors Control Account," 1,248.00 ",Multi-purpose Veh
12/03/2020,SE TRANSPORT,ABC Taxis,Creditors Control Account," 1,423.45 ",Multi-purpose Veh
12/03/2020,NW TRANSPORT,ABC Taxis,Creditors Control Account," 1,235.63 ",Multi-purpose Veh
12/03/2020,NE TRANSPORT,ABC Taxis,Creditors Control Account," 1,152.00 ",Multi-purpose Veh
12/03/2020,TRANSPT M/STRM-PRIM,ABC Taxis,Creditors Control Account," 1,512.00 ",Multi-purpose Veh
12/03/2020,SW TRANSPORT,ABC Taxis,Creditors Control Account, 604.55 ,Multi-purpose Veh
24/03/2020,SOLD CENTRE IMPROVEM,Abercorn Heating Ltd,New GR/IR Account," 1,608.00 ",Sport & Fitness
07/02/2020,Free Early Educ 3&4,Aberdour School,Third Party Payments-Other Agencies," 11,553.89 ",Schools
07/02/2020,Free Early Educ 3&4,Aberdour School,Third Party Payments-Other Agencies," 14,343.36 ",Schools
03/02/2020,NE AGENCY PLACE-ED,Aberdour School,New GR/IR Account," 5,175.00 ",Schools
19/02/2020,SE IPSB - OUT COUNTY,Aberdour School,New GR/IR Account," 2,170.00 ",Schools
30/03/2020,SE IPSB - PLAYGROUPS,Aberdour School,New GR/IR Account, 988.20 ,Schools
03/03/2020,NULL,ABGM Contracts Ltd,NULL," 2,930.98 ",Edu Establishments
04/02/2020,CARE LEAVER PACKAGES,Abiding Ltd,New GR/IR Account," 1,528.95 ",Care Leaver Living
24/01/2020,CARE LEAVER PACKAGES,Abiding Ltd,New GR/IR Account," 2,854.04 ",Care Leaver Living
24/01/2020,CARE LEAVER PACKAGES,Abiding Ltd,New GR/IR Account," 13,955.40 ",Care Leaver Living
24/01/2020,AGENCY NON CWD SC,Abiding Ltd,New GR/IR Account," 4,499.95 ",Care Leaver Living
24/01/2020,AGENCY NON CWD SC,Abiding Ltd,New GR/IR Account," 3,728.53 ",Care Leaver Living
24/01/2020,CARE LEAVER PACKAGES,Abiding Ltd,New GR/IR Account," 3,006.00 ",Care Leaver Living
24/01/2020,AGENCY NON CWD SC,Abiding Ltd,New GR/IR Account," 4,628.52 ",Care Leaver Living
24/01/2020,CARE LEAVER PACKAGES,Abiding Ltd,New GR/IR Account, 958.68 ,Care Leaver Living
24/01/2020,AGENCY NON CWD SC,Abiding Ltd,New GR/IR Account," 14,271.27 ",Care Leaver Living
24/01/2020,Spelthorne C&G MH,Ability Housing Association,New GR/IR Account," 8,029.71 ",Supp Living - MH
24/01/2020,Woking C&G MH,Ability Housing Association,New GR/IR Account," 1,894.01 ",Supp Living - MH
14/02/2020,Woking C&G MH,Ability Housing Association,New GR/IR Account," 1,706.58 ",Supp Living - MH
14/02/2020,Spelthorne C&G MH,Ability Housing Association,New GR/IR Account," 12,278.66 ",Supp Living - MH
14/02/2020,Epsom & Ewell C&G MH,Ability Housing Association,New GR/IR Account," 1,741.12 ",Supp Living - MH
24/02/2020,Woking C&G MH,Ability Housing Association,New GR/IR Account," 2,077.31 ",Supp Living - MH
24/02/2020,Epsom & Ewell C&G MH,Ability Housing Association,New GR/IR Account," 9,976.96 ",Supp Living - MH
25/03/2020,Woking C&G MH,Ability Housing Association,New GR/IR Account," 3,177.05 ",Supp Living - MH
25/03/2020,Epsom & Ewell C&G MH,Ability Housing Association,New GR/IR Account," 9,303.45 ",Supp Living - MH
07/02/2020,Free Early Educ 3&4,Abinger Common Nursery,Third Party Payments-Other Agencies," 2,369.31 ",Nursery
07/02/2020,Free Early Educ 3&4,Abinger Common Nursery,Third Party Payments-Other Agencies," 1,794.69 ",Nursery
07/02/2020,Free Early Educ 3&4,Abinger Common Nursery,Third Party Payments-Other Agencies, 892.80 ,Nursery
07/02/2020,Free Early Educ 3&4,Abinger Common Nursery,Third Party Payments-Other Agencies, 585.90 ,Nursery
28/01/2020,Spelthorne C&G PD,Able 2 O T Services Ltd,New GR/IR Account, 600.00 ,Specialist Serv
26/02/2020,Spelthorne C&G PD,Able 2 O T Services Ltd,New GR/IR Account, 475.00 ,Specialist Serv
26/03/2020,Spelthorne C&G PD,Able 2 O T Services Ltd,New GR/IR Account," 1,100.00 ",Specialist Serv
13/03/2020,NIL REC PF 18+ ASYLM,Above Beyond Care Ltd,New GR/IR Account," 21,300.00 ",Asylum
18/03/2020,ACL CENTRAL EXP,Abracadabra Leaflet Distribution Lt,New GR/IR Account," 3,205.37 ",Advert Promo & Rec
24/01/2020,AGENCY NON CWD SC,Accalia Care Services Ltd,New GR/IR Account," 21,035.71 ",Res Care
24/01/2020,AGENCY NON CWD SC,Accalia Care Services Ltd,New GR/IR Account," 21,035.71 ",Res Care
09/03/2020,AGENCY NON CWD SC,Accalia Care Services Ltd,New GR/IR Account," 21,035.71 ",Res Care
09/03/2020,AGENCY NON CWD SC,Accalia Care Services Ltd,New GR/IR Account," 21,035.67 ",Res Care
23/03/2020,AGENCY NON CWD SC,Accalia Care Services Ltd,New GR/IR Account," 19,678.53 ",Res Care
31/03/2020,AGENCY NON CWD SC,Accalia Care Services Ltd,New GR/IR Account," 21,035.71 ",Res Care
27/01/2020,PSD CONTRACTS,Access Independent Ltd,New GR/IR Account, 804.00 ,Specialist Serv
24/03/2020,PSD CONTRACTS,Access Independent Ltd,New GR/IR Account, 603.00 ,Specialist Serv
12/03/2020,PSD CONTRACTS,Access Independent Ltd,New GR/IR Account," 1,005.00 ",Specialist Serv
13/01/2020,IMT PRODUCTION APPS,Access Intelligence Media & Comms L,New GR/IR Account," 9,360.00 ",Customised & Bespoke
06/01/2020,NULL,Access Mobility,NULL," 3,714.10 ",General Build Maint
31/01/2020,Keswick Res,Access Taxis Ltd,New GR/IR Account," 2,200.00 ",Multi-purpose Veh
28/02/2020,Keswick Res,Access Taxis Ltd,New GR/IR Account," 2,000.00 ",Multi-purpose Veh
31/03/2020,Keswick Res,Access Taxis Ltd,New GR/IR Account," 2,200.00 ",Multi-purpose Veh
24/03/2020,ACL CENTRAL EXP,Accomplish,New GR/IR Account, 350.00 ,Advert Promo & Rec
19/02/2020,NE CARE - LAC,Accord Family Services Ltd,New GR/IR Account, 825.00 ,Family Support
31/01/2020,NE IPSB - OUT COUNTY,Achieving for Children Ltd,New GR/IR Account," 4,831.00 ",Occupational Therapy
05/03/2020,NE AGENCY PLACE-ED,Achieving for Children Ltd,New GR/IR Account," 17,139.00 ",Occupational Therapy
06/03/2020,NE AGENCY PLACE-ED,Achieving for Children Ltd,New GR/IR Account," 111,538.00 ",Occupational Therapy
05/03/2020,NE IPSB - OUT COUNTY,Achieving for Children Ltd,New GR/IR Account," 15,619.00 ",Occupational Therapy
31/01/2020,NE IPSB - OUT COUNTY,Achieving for Children Ltd,New GR/IR Account," 3,250.00 ",Occupational Therapy
31/01/2020,NE IPSB - OUT COUNTY,Achieving for Children Ltd,New GR/IR Account," 14,014.00 ",Occupational Therapy
04/02/2020,NE IPSB - OUT COUNTY,Achieving for Children Ltd,New GR/IR Account," 15,366.00 ",Occupational Therapy
10/03/2020,ASYLUM SKRS 16-17,Achieving for Children Ltd,New GR/IR Account," 8,339.82 ",Occupational Therapy
10/01/2020,SE CARE - LAC,Achieving for Children Ltd,Creditors Control Account, 496.13 ,Occupational Therapy
31/03/2020,SE CARE - LAC,Achieving for Children Ltd,Creditors Control Account, 523.69 ,Occupational Therapy
31/03/2020,SE CARE - LAC,Achieving for Children Ltd,Creditors Control Account, 413.44 ,Occupational Therapy
07/01/2020,SW AGENCY PLACE-ED,Acorn Consultancy,Agency Placement Expenditure," 14,400.00 ",SEND Agncy Placement
28/01/2020,PUPIL PREMIUM LAC,Acorn Consultancy,Local Authorities, 500.00 ,SEND Agncy Placement
24/01/2020,SURREY HEATH CARE OP,Acorn Homecare,New GR/IR Account," 4,426.80 ",Dom Care - Adults
24/01/2020,WAVERLEY LOC,Acorn Homecare,New GR/IR Account," 1,212.10 ",Dom Care - Adults
21/02/2020,WAVERLEY LOC,Acorn Homecare,New GR/IR Account," 1,613.94 ",Dom Care - Adults
21/02/2020,SURREY HEATH CARE OP,Acorn Homecare,New GR/IR Account," 4,393.87 ",Dom Care - Adults
20/03/2020,WAVERLEY LOC,Acorn Homecare,New GR/IR Account," 1,192.34 ",Dom Care - Adults
20/03/2020,SURREY HEATH CARE OP,Acorn Homecare,New GR/IR Account," 4,216.00 ",Dom Care - Adults
07/02/2020,Free Early Educ 3&4,Acorn Nursery School,Third Party Payments-Other Agencies," 2,039.40 ",Nurseries
07/02/2020,Free Early Educ 2 yr,Acorn Nursery School,Third Party Payments-Other Agencies," 2,910.60 ",Nurseries
07/02/2020,Free Early Educ 3&4,Acorn Nursery School,Third Party Payments-Other Agencies," 7,365.60 ",Nurseries
07/02/2020,Free Early Educ 3&4,Acorn Nursery School,Third Party Payments-Other Agencies," 14,419.92 ",Nurseries
07/02/2020,Free Early Educ 3&4,Acorn Nursery School,Third Party Payments-Other Agencies, 437.25 ,Nurseries
07/02/2020,Free Early Educ 3&4,Acorn Nursery School,Third Party Payments-Other Agencies," 1,534.50 ",Nurseries
07/02/2020,Free Early Educ 3&4,Acorn Nursery School,Third Party Payments-Other Agencies," 2,285.25 ",Nurseries
03/01/2020,SW IPSB - PLAYGROUPS,Acorn Nursery School,Agency Placement Nursery Exp, 480.38 ,Nurseries
02/01/2020,SW IPSB - PLAYGROUPS,Acorn Nursery School,Agency Placement Nursery Exp, 521.55 ,Nurseries
12/03/2020,LOGISTICS,Acorn Property Maintenance,New GR/IR Account, 270.00 ,General Build Maint
23/01/2020,"WOODCOT, 4 TANNERY",Acorn Property Maintenance,Cleaning and Domestic Supplies, 492.00 ,General Build Maint
25/02/2020,LOGISTICS,Acorn Property Maintenance,New GR/IR Account, 756.00 ,General Build Maint
25/02/2020,LOGISTICS,Acorn Property Maintenance,New GR/IR Account, 336.00 ,General Build Maint
25/02/2020,LOGISTICS,Acorn Property Maintenance,New GR/IR Account, 618.00 ,General Build Maint
12/03/2020,LOGISTICS,Acorn Property Maintenance,New GR/IR Account, 270.00 ,General Build Maint
07/02/2020,Free Early Educ 3&4,Acorns BP,Third Party Payments-Other Agencies," 10,907.83 ",Nurseries
07/02/2020,Free Early Educ 3&4,Acorns BP,Third Party Payments-Other Agencies," 2,599.16 ",Nurseries
07/02/2020,Free Early Educ 3&4,Acorns BP,Third Party Payments-Other Agencies," 6,305.03 ",Nurseries
07/02/2020,Free Early Educ 3&4,Acorns BP,Third Party Payments-Other Agencies, 639.47 ,Nurseries
04/03/2020,Free Early Educ 3&4,Acorns BP,Third Party Payments-Other Agencies," 4,874.60 ",Nurseries
04/03/2020,Free Early Educ 3&4,Acorns BP,Third Party Payments-Other Agencies, 866.43 ,Nurseries
04/03/2020,Free Early Educ 3&4,Acorns BP,Third Party Payments-Other Agencies," 12,960.25 ",Nurseries
04/03/2020,Free Early Educ 3&4,Acorns BP,Third Party Payments-Other Agencies, 866.43 ,Nurseries
07/02/2020,Free Early Educ 3&4,Acorns Nursery School,Third Party Payments-Other Agencies," 1,119.56 ",Nurseries
07/02/2020,Free Early Educ 3&4,Acorns Nursery School,Third Party Payments-Other Agencies," 4,819.98 ",Nurseries
07/02/2020,Free Early Educ 3&4,Acorns Nursery School,Third Party Payments-Other Agencies, 511.50 ,Nurseries
19/03/2020,NMSS PUPIL PREMIUM 1,ACS Cobham International School,Pupil Premium, 300.00 ,Schools
14/01/2020,NE IPSB - OUT COUNTY,ACS Cobham International School,Agency Placement Expenditure," 3,300.00 ",Schools
14/01/2020,NW AGENCY PLACE-ED,ACS Cobham International School,Agency Placement Expenditure," 2,951.00 ",Schools
06/03/2020,LABORATORY TEAM,ACS Testing Ltd,New GR/IR Account, 386.10 ,Testing & Inspection
24/03/2020,LABORATORY TEAM,ACS Testing Ltd,New GR/IR Account, 368.40 ,Testing & Inspection
20/01/2020,NULL,ACS Trees Consulting,NULL, 924.00 ,Estates Mgt Services
16/01/2020,NULL,ACS Trees Consulting,NULL, 924.00 ,Estates Mgt Services
20/01/2020,NULL,ACS Trees Consulting,NULL, 924.00 ,Estates Mgt Services
20/01/2020,NULL,ACS Trees Consulting,NULL, 924.00 ,Estates Mgt Services
29/01/2020,NULL,ACS Trees Consulting,NULL," 1,188.00 ",Estates Mgt Services
20/01/2020,NULL,ACS Trees Consulting,NULL, 924.00 ,Estates Mgt Services
25/03/2020,NULL,ACS Trees Consulting,NULL, 924.00 ,Estates Mgt Services
24/01/2020,AGENCY NON CWD SC,Action For Children (Charity),New GR/IR Account," 5,374.33 ",Res Care
16/01/2020,AGENCY CWD SOCIAL CA,Action For Children (Charity),New GR/IR Account," 15,508.99 ",Res Care
16/01/2020,AGENCY CWD EDUC,Action For Children (Charity),New GR/IR Account," 14,379.66 ",Res Care
15/01/2020,ADOPT INTERAGENCY,Action For Children (Charity),New GR/IR Account," 31,620.00 ",Res Care
21/01/2020,AGENCY CWD SOCIAL CA,Action For Children (Charity),New GR/IR Account," 15,942.86 ",Res Care
21/01/2020,AGENCY CWD SOCIAL CA,Action For Children (Charity),New GR/IR Account," 15,428.57 ",Res Care
02/01/2020,AGENCY CWD SOCIAL CA,Action For Children (Charity),Residential Placements," 15,008.70 ",Res Care
16/01/2020,AGENCY NON CWD SC,Action For Children (Charity),Foster Care Placements," 14,171.34 ",Res Care
16/01/2020,AGENCY CWD SOCIAL CA,Action For Children (Charity),Residential Placements," 15,942.99 ",Res Care
30/01/2020,AGENCY CWD SOCIAL CA,Action For Children (Charity),New GR/IR Account," 3,710.88 ",Res Care
21/02/2020,AGENCY CWD SOCIAL CA,Action For Children (Charity),New GR/IR Account," 15,942.99 ",Res Care
21/02/2020,AGENCY NON CWD SC,Action For Children (Charity),New GR/IR Account," 4,774.33 ",Res Care
21/02/2020,AGENCY CWD EDUC,Action For Children (Charity),New GR/IR Account," 14,379.66 ",Res Care
19/02/2020,AGENCY NON CWD SC,Action For Children (Charity),New GR/IR Account," 4,649.26 ",Res Care
19/02/2020,AGENCY NON CWD SC,Action For Children (Charity),New GR/IR Account," 4,649.26 ",Res Care
25/02/2020,AGENCY CWD SOCIAL CA,Action For Children (Charity),New GR/IR Account," 2,310.00 ",Res Care
29/01/2020,AGENCY CWD SOCIAL CA,Action For Children (Charity),New GR/IR Account," 10,668.78 ",Res Care
09/03/2020,AGENCY NON CWD SC,Action For Children (Charity),New GR/IR Account," 14,171.34 ",Res Care
21/02/2020,AGENCY CWD SOCIAL CA,Action For Children (Charity),New GR/IR Account," 15,508.99 ",Res Care
17/03/2020,AGENCY NON CWD SC,Action For Children (Charity),New GR/IR Account," 4,349.30 ",Res Care
24/03/2020,AGENCY NON CWD SC,Action For Children (Charity),New GR/IR Account," 13,257.06 ",Res Care
24/03/2020,AGENCY NON CWD SC,Action For Children (Charity),New GR/IR Account," 4,911.47 ",Res Care
24/03/2020,AGENCY CWD SOCIAL CA,Action For Children (Charity),New GR/IR Account," 1,028.58 ",Res Care
10/03/2020,AGENCY CWD SOCIAL CA,Action For Children (Charity),New GR/IR Account," 28,696.39 ",Res Care
11/03/2020,AGENCY CWD SOCIAL CA,Action For Children (Charity),New GR/IR Account," 27,770.70 ",Res Care
10/03/2020,AGENCY CWD SOCIAL CA,Action For Children (Charity),New GR/IR Account," 28,696.39 ",Res Care
24/03/2020,AGENCY CWD SOCIAL CA,Action For Children (Charity),New GR/IR Account," 26,845.01 ",Res Care
10/03/2020,AGENCY CWD SOCIAL CA,Action For Children (Charity),New GR/IR Account," 28,696.39 ",Res Care
21/02/2020,AGENCY CWD SOCIAL CA,Action For Children (Charity),New GR/IR Account," 4,620.00 ",Res Care
24/03/2020,AGENCY CWD SOCIAL CA,Action For Children (Charity),New GR/IR Account," 14,508.41 ",Res Care
24/03/2020,AGENCY CWD EDUC,Action For Children (Charity),New GR/IR Account," 13,451.94 ",Res Care
04/02/2020,SE AREA SEN MGT,Action on Hearing Loss,New GR/IR Account, 335.55 ,Supp Living - MH
24/02/2020,LOGISTICS,Activ-Air Automation Ltd,Vehicle Repairs and Maintenance, 713.10 ,General Build Maint
17/01/2020,CLOSED LANDFILL,Activ-Air Automation Ltd,New GR/IR Account, 708.50 ,General Build Maint
04/03/2020,CLOSED LANDFILL,Activ-Air Automation Ltd,New GR/IR Account, 598.33 ,General Build Maint
23/03/2020,POST 16 PLACEMENT NW,Activate Learning,New GR/IR Account," 7,626.00 ",Further Education16+
25/03/2020,LEARNING AND DEV,Active Learning & Development Ltd,New GR/IR Account," 1,440.00 ",Staff Training
31/03/2020,LEARNING AND DEV,Active Learning & Development Ltd,New GR/IR Account," 5,196.48 ",Staff Training
03/01/2020,NE TRANSPORT,Active Mini Buses,Creditors Control Account," 1,568.22 ",Multi-purpose Veh
03/01/2020,NW TRANSPORT,Active Mini Buses,Creditors Control Account," 1,201.38 ",Multi-purpose Veh
03/01/2020,NE TRANSPORT,Active Mini Buses,Creditors Control Account, 828.00 ,Multi-purpose Veh
14/01/2020,NW TRANSPORT,Active Mini Buses,Creditors Control Account, 540.00 ,Multi-purpose Veh
14/01/2020,SE TRANSPORT,Active Mini Buses,Creditors Control Account, 792.00 ,Multi-purpose Veh
14/01/2020,NE TRANSPORT,Active Mini Buses,Creditors Control Account," 1,196.86 ",Multi-purpose Veh
14/01/2020,NW TRANSPORT,Active Mini Buses,Creditors Control Account, 891.14 ,Multi-purpose Veh
14/01/2020,NW TRANSPORT,Active Mini Buses,Creditors Control Account," 2,088.00 ",Multi-purpose Veh
14/01/2020,NW TRANSPORT,Active Mini Buses,Creditors Control Account, 594.00 ,Multi-purpose Veh
14/01/2020,NE TRANSPORT,Active Mini Buses,Creditors Control Account, 630.00 ,Multi-purpose Veh
14/01/2020,NW TRANSPORT,Active Mini Buses,Creditors Control Account," 2,726.30 ",Multi-purpose Veh
14/01/2020,NW TRANSPORT,Active Mini Buses,Creditors Control Account," 2,142.00 ",Multi-purpose Veh
14/01/2020,SE TRANSPORT,Active Mini Buses,Creditors Control Account," 2,538.00 ",Multi-purpose Veh
14/02/2020,NW TRANSPORT,Active Mini Buses,Creditors Control Account," 1,188.19 ",Multi-purpose Veh
14/02/2020,SE TRANSPORT,Active Mini Buses,Creditors Control Account," 1,056.00 ",Multi-purpose Veh
14/02/2020,NW TRANSPORT,Active Mini Buses,Creditors Control Account, 684.00 ,Multi-purpose Veh
14/02/2020,SE TRANSPORT,Active Mini Buses,Creditors Control Account," 3,384.00 ",Multi-purpose Veh
14/02/2020,NW TRANSPORT,Active Mini Buses,Creditors Control Account," 2,713.20 ",Multi-purpose Veh
14/02/2020,NW TRANSPORT,Active Mini Buses,Creditors Control Account, 556.80 ,Multi-purpose Veh
14/02/2020,NE TRANSPORT,Active Mini Buses,Creditors Control Account," 1,595.81 ",Multi-purpose Veh
14/02/2020,NE TRANSPORT,Active Mini Buses,Creditors Control Account, 840.00 ,Multi-purpose Veh
14/02/2020,NW TRANSPORT,Active Mini Buses,Creditors Control Account," 3,894.72 ",Multi-purpose Veh
10/03/2020,NW TRANSPORT,Active Mini Buses,Creditors Control Account, 831.73 ,Multi-purpose Veh
10/03/2020,SE TRANSPORT,Active Mini Buses,Creditors Control Account, 792.00 ,Multi-purpose Veh
10/03/2020,NE TRANSPORT,Active Mini Buses,Creditors Control Account," 1,117.07 ",Multi-purpose Veh
10/03/2020,SE TRANSPORT,Active Mini Buses,Creditors Control Account," 2,538.00 ",Multi-purpose Veh
10/03/2020,NW TRANSPORT,Active Mini Buses,Creditors Control Account, 540.00 ,Multi-purpose Veh
10/03/2020,NE TRANSPORT,Active Mini Buses,Creditors Control Account, 588.00 ,Multi-purpose Veh
10/03/2020,NW TRANSPORT,Active Mini Buses,Creditors Control Account," 2,921.04 ",Multi-purpose Veh
10/03/2020,NW TRANSPORT,Active Mini Buses,Creditors Control Account," 2,142.00 ",Multi-purpose Veh
07/01/2020,NE ALTERNATIVE SEN,Active Sen Recruitment Ltd,Agency Placement Expenditure," 3,930.00 ",SEND Agncy Placement
07/01/2020,NE ALTERNATIVE SEN,Active Sen Recruitment Ltd,Agency Placement Expenditure," 3,930.00 ",SEND Agncy Placement
13/01/2020,NE ALTERNATIVE SEN,Active Sen Recruitment Ltd,New GR/IR Account," 3,930.00 ",SEND Agncy Placement
14/01/2020,NE ALTERNATIVE SEN,Active Sen Recruitment Ltd,Agency Placement Expenditure," 3,930.00 ",SEND Agncy Placement
04/02/2020,NE ALTERNATIVE SEN,Active Sen Recruitment Ltd,New GR/IR Account," 3,654.00 ",SEND Agncy Placement
11/02/2020,NE ALTERNATIVE SEN,Active Sen Recruitment Ltd,New GR/IR Account," 3,930.00 ",SEND Agncy Placement
18/02/2020,NE ALTERNATIVE SEN,Active Sen Recruitment Ltd,New GR/IR Account," 3,930.00 ",SEND Agncy Placement
04/02/2020,NE ALTERNATIVE SEN,Active Sen Recruitment Ltd,New GR/IR Account," 1,140.00 ",SEND Agncy Placement
04/02/2020,NE ALTERNATIVE SEN,Active Sen Recruitment Ltd,New GR/IR Account," 1,140.00 ",SEND Agncy Placement
04/02/2020,NE ALTERNATIVE SEN,Active Sen Recruitment Ltd,New GR/IR Account," 1,140.00 ",SEND Agncy Placement
03/03/2020,NE ALTERNATIVE SEN,Active Sen Recruitment Ltd,New GR/IR Account," 3,930.00 ",SEND Agncy Placement
27/02/2020,NE ALTERNATIVE SEN,Active Sen Recruitment Ltd,New GR/IR Account," 1,380.00 ",SEND Agncy Placement
17/03/2020,NE ALTERNATIVE SEN,Active Sen Recruitment Ltd,New GR/IR Account," 3,930.00 ",SEND Agncy Placement
25/02/2020,NE ALTERNATIVE SEN,Active Sen Recruitment Ltd,New GR/IR Account," 3,930.00 ",SEND Agncy Placement
23/03/2020,NE ALTERNATIVE SEN,Active Sen Recruitment Ltd,New GR/IR Account," 3,930.00 ",SEND Agncy Placement
31/03/2020,NE ALTERNATIVE SEN,Active Sen Recruitment Ltd,New GR/IR Account," 3,930.00 ",SEND Agncy Placement
05/02/2020,BUS OPS TRAINING,Acuity Training Ltd,New GR/IR Account, 642.60 ,Staff Training
13/01/2020,NULL,AD Construction Group,NULL," 171,916.21 ","Comm, Res & Inv Prop"
18/02/2020,NULL,AD Construction Group,NULL," 121,955.52 ","Comm, Res & Inv Prop"
07/02/2020,Free Early Educ 2 yr,Addlestone Pre School,Third Party Payments-Other Agencies," 1,131.90 ",Schools
07/02/2020,Free Early Educ 3&4,Addlestone Pre School,Third Party Payments-Other Agencies," 5,945.19 ",Schools
07/02/2020,Free Early Educ 3&4,Addlestone Pre School,Third Party Payments-Other Agencies," 2,758.14 ",Schools
07/02/2020,Free Early Educ 3&4,Addlestone Pre School,Third Party Payments-Other Agencies," 1,994.85 ",Schools
07/02/2020,Free Early Educ 3&4,Addlestone Pre School,Third Party Payments-Other Agencies, 613.80 ,Schools
06/01/2020,NULL,Adecco UK Ltd,NULL," 202,418.51 ",Recruit & Assessment
07/01/2020,NULL,Adecco UK Ltd,NULL, 364.16 ,Recruit & Assessment
17/01/2020,NULL,Adecco UK Ltd,NULL," 5,253.99 ",Recruit & Assessment
14/01/2020,NULL,Adecco UK Ltd,NULL," 384,987.89 ",Recruit & Assessment
17/01/2020,NULL,Adecco UK Ltd,NULL," 444,035.66 ",Recruit & Assessment
30/01/2020,NULL,Adecco UK Ltd,NULL," 12,585.73 ",Recruit & Assessment
30/01/2020,NULL,Adecco UK Ltd,NULL," 484,934.08 ",Recruit & Assessment
03/02/2020,NULL,Adecco UK Ltd,NULL," 590,387.93 ",Recruit & Assessment
03/02/2020,NULL,Adecco UK Ltd,NULL," 76,855.72 ",Recruit & Assessment
10/02/2020,NULL,Adecco UK Ltd,NULL," 578,918.98 ",Recruit & Assessment
10/02/2020,NULL,Adecco UK Ltd,NULL," 81,125.57 ",Recruit & Assessment
20/02/2020,NULL,Adecco UK Ltd,NULL," 69,982.62 ",Recruit & Assessment
21/02/2020,NULL,Adecco UK Ltd,NULL," 13,683.48 ",Recruit & Assessment
21/02/2020,NULL,Adecco UK Ltd,NULL," 553,989.59 ",Recruit & Assessment
20/02/2020,NULL,Adecco UK Ltd,NULL," 531,277.99 ",Recruit & Assessment
04/03/2020,NULL,Adecco UK Ltd,NULL," 554,472.88 ",Recruit & Assessment
04/03/2020,NULL,Adecco UK Ltd,NULL," 5,419.44 ",Recruit & Assessment
09/03/2020,NULL,Adecco UK Ltd,NULL," 515,214.02 ",Recruit & Assessment
09/03/2020,NULL,Adecco UK Ltd,NULL, 637.44 ,Recruit & Assessment
16/03/2020,NULL,Adecco UK Ltd,NULL," 528,656.01 ",Recruit & Assessment
16/03/2020,NULL,Adecco UK Ltd,NULL, 388.15 ,Recruit & Assessment
23/03/2020,NULL,Adecco UK Ltd,NULL," 25,374.58 ",Recruit & Assessment
23/03/2020,NULL,Adecco UK Ltd,NULL," 586,757.72 ",Recruit & Assessment
31/03/2020,NULL,Adecco UK Ltd,NULL," 52,300.85 ",Recruit & Assessment
10/01/2020,TRANSPT M/STRM-PRIM,Adelphi Travel,Creditors Control Account," 1,800.00 ",Multi-purpose Veh
10/01/2020,REIGATE & BD CARE LD,Adelphi Travel,Creditors Control Account," 1,536.00 ",Multi-purpose Veh
10/01/2020,SE TRANSPORT,Adelphi Travel,Creditors Control Account, 483.55 ,Multi-purpose Veh
10/01/2020,TRANSPT M/STRM-PRIM,Adelphi Travel,Creditors Control Account," 1,276.80 ",Multi-purpose Veh
10/01/2020,TRANSPT M/STRM-SEC,Adelphi Travel,Creditors Control Account, 440.45 ,Multi-purpose Veh
10/01/2020,TRANSPT M/STRM-PRIM,Adelphi Travel,Creditors Control Account," 1,890.00 ",Multi-purpose Veh
11/02/2020,TRANSPT M/STRM-PRIM,Adelphi Travel,Creditors Control Account," 2,394.00 ",Multi-purpose Veh
11/02/2020,TRANSPT M/STRM-PRIM,Adelphi Travel,Creditors Control Account," 1,824.00 ",Multi-purpose Veh
11/02/2020,SE TRANSPORT,Adelphi Travel,Creditors Control Account, 656.26 ,Multi-purpose Veh
11/02/2020,TRANSPT M/STRM-PRIM,Adelphi Travel,Creditors Control Account," 2,280.00 ",Multi-purpose Veh
11/02/2020,REIGATE & BD CARE LD,Adelphi Travel,Creditors Control Account," 2,112.00 ",Multi-purpose Veh
11/02/2020,LD-Aut Cntr Tm Staff,Adelphi Travel,Creditors Control Account, 342.00 ,Multi-purpose Veh
11/02/2020,TRANSPT M/STRM-SEC,Adelphi Travel,Creditors Control Account, 597.74 ,Multi-purpose Veh
10/03/2020,TRANSPT M/STRM-PRIM,Adelphi Travel,Creditors Control Account," 1,800.00 ",Multi-purpose Veh
10/03/2020,TRANSPT M/STRM-PRIM,Adelphi Travel,Creditors Control Account," 1,368.00 ",Multi-purpose Veh
10/03/2020,SE TRANSPORT,Adelphi Travel,Creditors Control Account, 483.55 ,Multi-purpose Veh
10/03/2020,REIGATE & BD CARE LD,Adelphi Travel,Creditors Control Account," 1,920.00 ",Multi-purpose Veh
10/03/2020,TRANSPT M/STRM-PRIM,Adelphi Travel,Creditors Control Account," 1,890.00 ",Multi-purpose Veh
10/03/2020,LD-Aut Cntr Tm Staff,Adelphi Travel,Creditors Control Account, 342.00 ,Multi-purpose Veh
10/03/2020,TRANSPT M/STRM-SEC,Adelphi Travel,Creditors Control Account, 440.45 ,Multi-purpose Veh
04/03/2020,SW CARE - CPCRT LAC,Adelphi Travel,New GR/IR Account," 2,025.00 ",Multi-purpose Veh
07/02/2020,HQ PYMNT OF INS CLMS,Admiral Insurance,Ins Claims Other Insured Paid, 310.00 ,Insurance Services
27/01/2020,HASLEMERE LIB,Admiral Security Systems Ltd,Security Alarm Maintenance, 376.80 ,Fire Service Vehicle
27/01/2020,WRAY PARK COMPLEX,Admiral Security Systems Ltd,Security Alarm Maintenance, 252.00 ,Fire Service Vehicle
27/01/2020,FARNHAM FIRE STATION,Admiral Security Systems Ltd,Security Alarm Maintenance, 254.40 ,Fire Service Vehicle
27/01/2020,CAMBERLEY LIB,Admiral Security Systems Ltd,Security Alarm Maintenance, 386.40 ,Fire Service Vehicle
27/01/2020,BYFLEET LIB,Admiral Security Systems Ltd,Security Alarm Maintenance, 364.80 ,Fire Service Vehicle
27/01/2020,FRANCE HILL HOUSE,Admiral Security Systems Ltd,Security Alarm Maintenance, 457.20 ,Fire Service Vehicle
27/01/2020,FARNHAM LIB,Admiral Security Systems Ltd,Security Alarm Maintenance, 408.00 ,Fire Service Vehicle
12/02/2020,STAINES YTH SPTS CTR,Admiral Security Systems Ltd,Security Alarm Maintenance, 338.40 ,Fire Service Vehicle
30/01/2020,KNAPHILL LIBRARY-NEW,Admiral Security Systems Ltd,Security Alarm Maintenance, 764.40 ,Fire Service Vehicle
03/02/2020,ST FAITHS FC,Admiral Security Systems Ltd,Security Alarm Maintenance, 423.60 ,Fire Service Vehicle
24/02/2020,DRILL HALL DORKING,Admiral Security Systems Ltd,Security Alarm Maintenance, 352.80 ,Fire Service Vehicle
27/02/2020,DORKING LIB (NEW),Admiral Security Systems Ltd,Security Alarm Maintenance, 252.00 ,Fire Service Vehicle
27/02/2020,WARLINGHAM LIB,Admiral Security Systems Ltd,Security Alarm Maintenance, 343.20 ,Fire Service Vehicle
10/03/2020,WARLINGHAM LIB,Admiral Security Systems Ltd,Security Alarm Maintenance, 510.00 ,Fire Service Vehicle
25/02/2020,NEXUS DAY CENTRE,Admiral Security Systems Ltd,Security Alarm Maintenance, 380.40 ,Fire Service Vehicle
13/03/2020,WARLINGHAM LIB,Admiral Security Systems Ltd,Security Alarm Maintenance, 420.00 ,Fire Service Vehicle
24/03/2020,BROOMFIELD-LIBERTAS,Admiral Security Systems Ltd,Security Alarm Maintenance, 348.00 ,Fire Service Vehicle
24/03/2020,STANWELL YOUTH CTRE,Admiral Security Systems Ltd,Security Alarm Maintenance, 405.60 ,Fire Service Vehicle
24/03/2020,ASH YOUTH CENTRE,Admiral Security Systems Ltd,Security Alarm Maintenance, 333.60 ,Fire Service Vehicle
27/02/2020,ADDLESTONE YOUTH CTR,Admiral Security Systems Ltd,Security Alarm Maintenance, 397.20 ,Fire Service Vehicle
24/03/2020,FRIMLEY GREEN YC,Admiral Security Systems Ltd,Security Alarm Maintenance, 390.00 ,Fire Service Vehicle
28/01/2020,ADOPTION TEAM,Adoption UK,New GR/IR Account, 300.00 ,Sup Living Children
10/01/2020,ACT,Adoptionplus,Training Expenses - External General," 1,140.00 ",Staff Training
28/01/2020,GUILDFORD AEI,ADT Fire & Security Plc,Security Alarm Maintenance, 667.12 ,H & S Maint
30/01/2020,GUILDFORD AEI,ADT Fire & Security Plc,Security Alarm Maintenance, 422.71 ,H & S Maint
30/01/2020,THE MEADS CHERTSEY,ADT Fire & Security Plc,Security Alarm Maintenance, 622.90 ,H & S Maint
30/01/2020,REDHILL LIB (NEW),ADT Fire & Security Plc,Security Alarm Maintenance, 761.66 ,H & S Maint
03/02/2020,GUILDFORD AEI,ADT Fire & Security Plc,Security Alarm Maintenance, 337.97 ,H & S Maint
24/03/2020,REDHILL FAMILY CTR,ADT Fire & Security Plc,Security Alarm Maintenance, 544.54 ,H & S Maint
27/02/2020,REDHILL FAMILY CTR,ADT Fire & Security Plc,Security Alarm Maintenance, 373.22 ,H & S Maint
14/01/2020,TRAINING ADULTS,Adult Care Mediation,Training Expenses - External General," 2,167.20 ",Staff Training
03/02/2020,MOLE VALLEY,ADV (UK) Ltd t/as C J Uden & Co,Term Contract Inspections, 408.00 ,General Build Maint
03/03/2020,ELMBRIDGE,ADV (UK) Ltd t/as C J Uden & Co,Corporate Responsive Maintenance, 306.00 ,General Build Maint
23/03/2020,EPSOM AND EWELL,ADV (UK) Ltd t/as C J Uden & Co,Corporate Responsive Maintenance, 255.00 ,General Build Maint
06/02/2020,WOKING ARTS YTH CTR,Advanced Domestic Security Ltd,Security Alarm Maintenance, 483.84 ,Non-Staff Expenses
07/01/2020,NULL,Advanced Electrical Contractors,NULL," 19,866.40 ",General Build Maint
13/03/2020,NULL,Advanced Electrical Contractors,NULL," 4,260.00 ",General Build Maint
30/03/2020,HR LEADERSHIP DEV,Advanced People Strategies Ltd,New GR/IR Account," 19,391.40 ",Staff Training
23/03/2020,HR LEADERSHIP DEV,Advanced People Strategies Ltd,New GR/IR Account," 7,120.80 ",Staff Training
31/03/2020,HR LEADERSHIP DEV,Advanced People Strategies Ltd,New GR/IR Account," 67,375.20 ",Staff Training
10/02/2020,AURIOL JNR SCH FIELD,Advanced Tree Services Ltd,Treework, 612.00 ,Green Works
17/02/2020,SOLD DAY TO DAY OPER,Adventure Activities Licensing Auth,New GR/IR Account, 715.00 ,Sport & Fitness
22/01/2020,SOLD MNGT AND OHEADS,Adventure Activity Associates Ltd,New GR/IR Account, 594.00 ,Subscriptions
07/01/2020,ASSET STRAT & PL MGR,Aecom Ltd,Fees," 8,444.40 ",M-D (Property)
11/02/2020,ASSET STRAT & PL MGR,Aecom Ltd,Fees," 5,167.20 ",M-D (Property)
28/01/2020,AGENCY NON CWD SC,Affinity Fostering Services Ltd,New GR/IR Account," 3,414.34 ",Fostering IFA
25/02/2020,AGENCY NON CWD SC,Affinity Fostering Services Ltd,New GR/IR Account," 3,414.34 ",Fostering IFA
24/03/2020,AGENCY NON CWD SC,Affinity Fostering Services Ltd,New GR/IR Account," 3,194.06 ",Fostering IFA
07/01/2020,Fire Service,Affinity Healthcare Solutions Ltd,Agency Staff Providing Project Support," 2,400.00 ",Temp Ops OM Cover
07/01/2020,ASC Market Managemen,Affinity Healthcare Solutions Ltd,Agency Staff Providing Project Support," 3,120.00 ",Temp Ops OM Cover
13/01/2020,Practice Improvement,Affinity Healthcare Solutions Ltd,Agency Staff Providing Project Support," 2,640.00 ",Temp Ops OM Cover
13/01/2020,ASC Market Managemen,Affinity Healthcare Solutions Ltd,Agency Staff Providing Project Support, 780.00 ,Temp Ops OM Cover
10/01/2020,Practice Improvement,Affinity Healthcare Solutions Ltd,New GR/IR Account," 4,500.00 ",Temp Ops OM Cover
16/01/2020,Practice Improvement,Affinity Healthcare Solutions Ltd,New GR/IR Account," 4,050.00 ",Temp Ops OM Cover
10/01/2020,Practice Improvement,Affinity Healthcare Solutions Ltd,New GR/IR Account," 4,500.00 ",Temp Ops OM Cover
15/01/2020,Practice Improvement,Affinity Healthcare Solutions Ltd,New GR/IR Account, 900.00 ,Temp Ops OM Cover
17/01/2020,Fire Service,Affinity Healthcare Solutions Ltd,New GR/IR Account," 2,400.00 ",Temp Ops OM Cover
27/01/2020,ASC Market Managemen,Affinity Healthcare Solutions Ltd,New GR/IR Account, 780.00 ,Temp Ops OM Cover
10/02/2020,ASC Market Managemen,Affinity Healthcare Solutions Ltd,New GR/IR Account," 2,340.00 ",Temp Ops OM Cover
04/02/2020,Fire Service,Affinity Healthcare Solutions Ltd,New GR/IR Account, 960.00 ,Temp Ops OM Cover
03/02/2020,ASC Market Managemen,Affinity Healthcare Solutions Ltd,New GR/IR Account, 780.00 ,Temp Ops OM Cover
13/01/2020,Fire Service,Affinity Healthcare Solutions Ltd,Agency Staff Providing Project Support," 2,400.00 ",Temp Ops OM Cover
10/01/2020,Practice Improvement,Affinity Healthcare Solutions Ltd,New GR/IR Account," 4,500.00 ",Temp Ops OM Cover
17/02/2020,Fire Service,Affinity Healthcare Solutions Ltd,New GR/IR Account," 2,400.00 ",Temp Ops OM Cover
24/02/2020,ASC Market Managemen,Affinity Healthcare Solutions Ltd,New GR/IR Account," 2,340.00 ",Temp Ops OM Cover
25/02/2020,Fire Service,Affinity Healthcare Solutions Ltd,New GR/IR Account," 2,400.00 ",Temp Ops OM Cover
21/01/2020,ASC Market Managemen,Affinity Healthcare Solutions Ltd,New GR/IR Account," 2,340.00 ",Temp Ops OM Cover
10/03/2020,Fire Service,Affinity Healthcare Solutions Ltd,New GR/IR Account," 2,400.00 ",Temp Ops OM Cover
17/03/2020,Fire Service,Affinity Healthcare Solutions Ltd,New GR/IR Account," 2,400.00 ",Temp Ops OM Cover
31/01/2020,ASC Market Managemen,Affinity Healthcare Solutions Ltd,New GR/IR Account," 2,340.00 ",Temp Ops OM Cover
18/02/2020,ASC Market Managemen,Affinity Healthcare Solutions Ltd,New GR/IR Account," 3,120.00 ",Temp Ops OM Cover
23/03/2020,ASC Market Managemen,Affinity Healthcare Solutions Ltd,New GR/IR Account," 2,340.00 ",Temp Ops OM Cover
02/03/2020,Fire Service,Affinity Healthcare Solutions Ltd,New GR/IR Account," 2,400.00 ",Temp Ops OM Cover
10/03/2020,ASC Market Managemen,Affinity Healthcare Solutions Ltd,New GR/IR Account," 3,120.00 ",Temp Ops OM Cover
09/03/2020,Practice Improvement,Affinity Healthcare Solutions Ltd,New GR/IR Account," 3,600.00 ",Temp Ops OM Cover
09/03/2020,Practice Improvement,Affinity Healthcare Solutions Ltd,New GR/IR Account," 4,500.00 ",Temp Ops OM Cover
09/03/2020,Practice Improvement,Affinity Healthcare Solutions Ltd,New GR/IR Account," 4,500.00 ",Temp Ops OM Cover
31/03/2020,Practice Improvement,Affinity Healthcare Solutions Ltd,New GR/IR Account," 4,500.00 ",Temp Ops OM Cover
31/03/2020,Practice Improvement,Affinity Healthcare Solutions Ltd,New GR/IR Account," 4,500.00 ",Temp Ops OM Cover
31/03/2020,Practice Improvement,Affinity Healthcare Solutions Ltd,New GR/IR Account," 4,500.00 ",Temp Ops OM Cover
30/03/2020,ASC Market Managemen,Affinity Healthcare Solutions Ltd,New GR/IR Account," 2,340.00 ",Temp Ops OM Cover
31/03/2020,Practice Improvement,Affinity Healthcare Solutions Ltd,New GR/IR Account," 4,500.00 ",Temp Ops OM Cover
16/03/2020,ASC Market Managemen,Affinity Healthcare Solutions Ltd,New GR/IR Account," 2,340.00 ",Temp Ops OM Cover
24/03/2020,Fire Service,Affinity Healthcare Solutions Ltd,New GR/IR Account," 2,400.00 ",Temp Ops OM Cover
09/03/2020,Practice Improvement,Affinity Healthcare Solutions Ltd,New GR/IR Account," 4,500.00 ",Temp Ops OM Cover
27/03/2020,LOGISTICS,Affinity Water Ltd,New GR/IR Account, 649.20 ,Highway - Construct
27/03/2020,LOGISTICS,Affinity Water Ltd,New GR/IR Account, 360.00 ,Highway - Construct
31/03/2020,LOGISTICS,Affinity Water Ltd,New GR/IR Account, 415.20 ,Highway - Construct
07/01/2020,BANSTEAD FIRE STN,Aganto Ltd,Rents (Leasehold)," 6,624.00 ",General Build Maint
23/01/2020,WOKING CARE OP,Agincare Live In Care South East Lt,Home Base Care," 9,966.90 ",Dom Care - Adults
12/03/2020,CORP INCOME AND EXP,Air Social Care,Write Offs, 481.26 ,Family Support
26/02/2020,FRS COST REC SCHEME,Airport Fire Officers Association,New GR/IR Account," 1,137.60 ",Conference Attend
11/02/2020,SIT,Airwave Solutions Ltd,New GR/IR Account," 2,663.82 ",Fire Mobilisation an
11/02/2020,SIT,Airwave Solutions Ltd,New GR/IR Account," 1,897.89 ",Fire Mobilisation an
27/01/2020,SIT,Airwave Solutions Ltd,New GR/IR Account," 2,663.82 ",Fire Mobilisation an
27/01/2020,SIT,Airwave Solutions Ltd,New GR/IR Account," 1,850.64 ",Fire Mobilisation an
10/03/2020,SIT,Airwave Solutions Ltd,New GR/IR Account," 1,897.89 ",Fire Mobilisation an
10/03/2020,SIT,Airwave Solutions Ltd,New GR/IR Account," 2,663.82 ",Fire Mobilisation an
10/03/2020,SIT,Airwave Solutions Ltd,New GR/IR Account," 15,947.26 ",Fire Mobilisation an
24/02/2020,SIT,Airwave Solutions Ltd,New GR/IR Account," 1,354.41 ",Fire Mobilisation an
16/03/2020,NULL,AJ Taylor Electrical Contractors Lt,NULL," 39,424.56 ","Comm, Res & Inv Prop"
26/02/2020,SURREY HILLS AONB,Akiko Design Ltd,New GR/IR Account, 324.00 ,Web Design & Hosting
27/01/2020,CORONER,Alan Greenwood & Sons,Fees," 2,443.00 ",Funeral Directors
25/02/2020,CORONER,Alan Greenwood & Sons,Fees," 4,743.00 ",Funeral Directors
25/03/2020,CORONER,Alan Greenwood & Sons,Fees," 3,733.00 ",Funeral Directors
12/03/2020,INSURANCE TEAM,Alarm Ltd,New GR/IR Account, 482.40 ,Subscriptions
27/02/2020,CSF OPEN PROGRAMME,Alasdair Cant & Associates  Ltd,New GR/IR Account," 9,330.00 ",Staff Training
27/02/2020,CORP INCOME AND EXP,Alasdair Cant & Associates  Ltd,Write Offs," 9,600.00 ",Staff Training
27/02/2020,CORP INCOME AND EXP,Alasdair Cant & Associates  Ltd,Write Offs," 9,600.00 ",Staff Training
27/02/2020,CSF OPEN PROGRAMME,Alasdair Cant & Associates  Ltd,New GR/IR Account," 9,600.00 ",Staff Training
27/02/2020,CSF OPEN PROGRAMME,Alasdair Cant & Associates  Ltd,New GR/IR Account," 9,330.00 ",Staff Training
27/02/2020,NULL,Alasdair Cant & Associates  Ltd,NULL," 9,600.00 ",Staff Training
24/03/2020,MULTI AGENCY ACAD,Alasdair Cant & Associates  Ltd,New GR/IR Account," 6,480.00 ",Staff Training
28/01/2020,PUPIL PREMIUM LAC,Alderwood School,Local Authorities, 520.00 ,Grants-Member Allocs
28/01/2020,PUPIL PREMIUM LAC,Alderwood School,Local Authorities, 300.00 ,Grants-Member Allocs
28/01/2020,PUPIL PREMIUM LAC,Alderwood School,Local Authorities, 520.00 ,Grants-Member Allocs
14/01/2020,NULL,Aldi Stores Ltd,NULL," 3,000.00 ",Non-Staff Expenses
28/01/2020,PUPIL PREMIUM LAC,Aldington Primary School,Local Authorities, 600.00 ,SEN Specialist Supp
21/02/2020,NULL,Alec French Architects,NULL," 28,800.00 ",M-D (Property)
22/01/2020,CORONER,Alere Forensics Ltd,Inquest Exps., 315.00 ,General Support
22/01/2020,CORONER,Alere Forensics Ltd,Inquest Exps., 621.00 ,General Support
22/01/2020,CORONER,Alere Forensics Ltd,Inquest Exps., 621.00 ,General Support
22/01/2020,CORONER,Alere Forensics Ltd,Inquest Exps., 621.00 ,General Support
22/01/2020,CORONER,Alere Forensics Ltd,Inquest Exps., 621.00 ,General Support
22/01/2020,CORONER,Alere Forensics Ltd,Inquest Exps., 399.00 ,General Support
22/01/2020,CORONER,Alere Forensics Ltd,Inquest Exps., 447.00 ,General Support
22/01/2020,CORONER,Alere Forensics Ltd,Inquest Exps., 399.00 ,General Support
22/01/2020,CORONER,Alere Forensics Ltd,Inquest Exps., 327.00 ,General Support
18/02/2020,SE CARE - CPCRT LAC,Alere Toxicology Plc,New GR/IR Account, 330.48 ,DNA & DAAT
25/02/2020,NE CARE - CPCRT LAC,Alere Toxicology Plc,New GR/IR Account, 366.00 ,DNA & DAAT
04/02/2020,SE CARE - LAC,Alere Toxicology Plc,New GR/IR Account, 253.16 ,DNA & DAAT
13/03/2020,NW NRPF FAM CARE,Alere Toxicology Plc,New GR/IR Account, 291.30 ,DNA & DAAT
17/01/2020,ASC OPEN PROGRAMME,Alium Care Training Ltd,New GR/IR Account, 500.00 ,Staff Training
24/01/2020,NULL,All Hallows Catholic School,NULL," 582,216.00 ",Schools
20/02/2020,NULL,All Hallows Catholic School,NULL," 582,216.00 ",Schools
23/03/2020,NULL,All Hallows Catholic School,NULL," 386,379.00 ",Schools
27/03/2020,NULL,All Hallows Catholic School,NULL," 169,617.00 ",Schools
13/01/2020,ALL HALLOWS CATH,All Hallows Catholic School,Ctkers Hndmn Cleanrs," 12,827.25 ",Schools
11/02/2020,ALL HALLOWS CATH,All Hallows Catholic School,Ctkers Hndmn Cleanrs," 18,740.37 ",Schools
16/03/2020,ALL HALLOWS CATH,All Hallows Catholic School,Ctkers Hndmn Cleanrs," 16,824.18 ",Schools
25/02/2020,AGENCY NON CWD SC,All4U Fostering Ltd,New GR/IR Account," 5,615.65 ",Fostering IFA
18/02/2020,AGENCY NON CWD SC,All4U Fostering Ltd,New GR/IR Account," 5,615.65 ",Fostering IFA
28/01/2020,LOGISTICS,Allbatteries UK Ltd,New GR/IR Account," 1,078.56 ",Fire Serv Spec Equip
10/01/2020,LOGISTICS,Allbatteries UK Ltd,New GR/IR Account," 1,290.24 ",Fire Serv Spec Equip
10/01/2020,LOGISTICS,Allbatteries UK Ltd,New GR/IR Account, 287.04 ,Fire Serv Spec Equip
10/01/2020,LOGISTICS,Allbatteries UK Ltd,New GR/IR Account," 1,526.60 ",Fire Serv Spec Equip
06/03/2020,Family Resilience (E,Allen Lane Ltd,New GR/IR Account," 2,424.00 ",Professional Project
06/01/2020,Family Resilience (E,Allen Lane Ltd,Agency Staff Providing Project Support," 3,450.00 ",Professional Project
06/01/2020,ORB FIN ACC SYSTEMS,Allen Lane Ltd,Agency Staff Providing Project Support," 3,448.26 ",Professional Project
13/01/2020,Family Resilience (E,Allen Lane Ltd,Agency Staff Providing Project Support," 2,070.00 ",Professional Project
03/02/2020,Family Resilience (E,Allen Lane Ltd,New GR/IR Account," 2,070.00 ",Professional Project
17/02/2020,ORB FIN ACC SYSTEMS,Allen Lane Ltd,New GR/IR Account," 3,448.26 ",Professional Project
04/02/2020,SEND Sustainability,Allen Lane Ltd,New GR/IR Account," 3,450.00 ",Professional Project
24/02/2020,ORB FIN STRAT & REP,Allen Lane Ltd,New GR/IR Account," 3,897.60 ",Professional Project
24/02/2020,ORB FIN ACC SYSTEMS,Allen Lane Ltd,New GR/IR Account," 3,448.26 ",Professional Project
02/03/2020,ORB FIN STRAT & REP,Allen Lane Ltd,New GR/IR Account," 2,436.00 ",Professional Project
07/02/2020,ORB FIN ASST DIR,Allen Lane Ltd,New GR/IR Account," 9,540.00 ",Professional Project
10/02/2020,ORB FIN ASST DIR,Allen Lane Ltd,New GR/IR Account," 11,700.00 ",Professional Project
09/03/2020,SEND Sustainability,Allen Lane Ltd,New GR/IR Account," 3,450.00 ",Professional Project
09/03/2020,ORB FIN STRAT & REP,Allen Lane Ltd,New GR/IR Account," 2,436.00 ",Professional Project
09/03/2020,Family Resilience (E,Allen Lane Ltd,New GR/IR Account," 3,480.00 ",Professional Project
02/03/2020,SEND Sustainability,Allen Lane Ltd,New GR/IR Account," 3,450.00 ",Professional Project
02/03/2020,ORB FIN ACC SYSTEMS,Allen Lane Ltd,New GR/IR Account," 3,448.26 ",Professional Project
09/03/2020,ORB FIN ACC SYSTEMS,Allen Lane Ltd,New GR/IR Account," 2,758.61 ",Professional Project
16/03/2020,ORB FIN ASST DIR,Allen Lane Ltd,New GR/IR Account," 12,573.90 ",Professional Project
17/03/2020,ORB FIN ACC SYSTEMS,Allen Lane Ltd,New GR/IR Account," 3,448.26 ",Professional Project
16/03/2020,ORB FIN ASST DIR,Allen Lane Ltd,New GR/IR Account," 14,760.00 ",Professional Project
17/03/2020,ORB FIN STRAT & REP,Allen Lane Ltd,New GR/IR Account," 2,436.00 ",Professional Project
17/03/2020,SEND Sustainability,Allen Lane Ltd,New GR/IR Account," 3,450.00 ",Professional Project
06/03/2020,ORB FIN ACC SYSTEMS,Allen Lane Ltd,New GR/IR Account," 3,448.26 ",Professional Project
06/03/2020,ORB FIN ACC SYSTEMS,Allen Lane Ltd,New GR/IR Account," 3,793.09 ",Professional Project
06/03/2020,ORB FIN ACC SYSTEMS,Allen Lane Ltd,New GR/IR Account," 3,448.26 ",Professional Project
31/03/2020,SEND Sustainability,Allen Lane Ltd,New GR/IR Account," 3,450.00 ",Professional Project
06/03/2020,ORB FIN ACC SYSTEMS,Allen Lane Ltd,New GR/IR Account," 3,448.26 ",Professional Project
31/03/2020,ORB FIN ACC SYSTEMS,Allen Lane Ltd,New GR/IR Account," 2,758.61 ",Professional Project
31/03/2020,ORB FIN STRAT & REP,Allen Lane Ltd,New GR/IR Account," 2,436.00 ",Professional Project
09/03/2020,SEND Sustainability,Allen Lane Ltd,New GR/IR Account," 2,760.00 ",Professional Project
31/03/2020,Family Resilience (E,Allen Lane Ltd,New GR/IR Account," 3,480.00 ",Professional Project
09/03/2020,SEND Sustainability,Allen Lane Ltd,New GR/IR Account," 3,450.00 ",Professional Project
10/01/2020,PASSGR TRANS TCC,Allied Healthcare,New GR/IR Account," 1,748.00 ",Residential - LD
02/01/2020,PASSGR TRANS TCC,Allied Healthcare,New GR/IR Account," 1,656.00 ",Residential - LD
21/01/2020,PASSGR TRANS TCC,Allied Healthcare,New GR/IR Account," 1,748.00 ",Residential - LD
10/01/2020,PASSGR TRANS TCC,Allied Healthcare,New GR/IR Account," 1,472.00 ",Residential - LD
02/01/2020,PASSGR TRANS TCC,Allied Healthcare,New GR/IR Account," 1,440.00 ",Residential - LD
02/01/2020,PASSGR TRANS TCC,Allied Healthcare,New GR/IR Account," 1,488.00 ",Residential - LD
02/01/2020,PASSGR TRANS TCC,Allied Healthcare,New GR/IR Account, 598.00 ,Residential - LD
21/01/2020,PASSGR TRANS TCC,Allied Healthcare,New GR/IR Account," 1,536.00 ",Residential - LD
21/01/2020,PASSGR TRANS TCC,Allied Healthcare,New GR/IR Account," 1,012.00 ",Residential - LD
30/01/2020,PASSGR TRANS TCC,Allied Healthcare,New GR/IR Account," 1,380.00 ",Residential - LD
02/01/2020,PASSGR TRANS TCC,Allied Healthcare,New GR/IR Account," 1,440.00 ",Residential - LD
02/01/2020,PASSGR TRANS TCC,Allied Healthcare,New GR/IR Account," 1,440.00 ",Residential - LD
02/01/2020,PASSGR TRANS TCC,Allied Healthcare,New GR/IR Account," 1,748.00 ",Residential - LD
02/01/2020,PASSGR TRANS TCC,Allied Healthcare,New GR/IR Account," 1,564.00 ",Residential - LD
21/01/2020,PASSGR TRANS TCC,Allied Healthcare,New GR/IR Account, 920.00 ,Residential - LD
21/01/2020,PASSGR TRANS TCC,Allied Healthcare,New GR/IR Account," 1,702.00 ",Residential - LD
30/01/2020,PASSGR TRANS TCC,Allied Healthcare,New GR/IR Account," 1,380.00 ",Residential - LD
11/02/2020,PASSGR TRANS TCC,Allied Healthcare,New GR/IR Account," 1,488.00 ",Residential - LD
11/02/2020,PASSGR TRANS TCC,Allied Healthcare,New GR/IR Account," 1,564.00 ",Residential - LD
30/03/2020,PASSGR TRANS TCC,Allied Healthcare,New GR/IR Account," 1,012.00 ",Residential - LD
30/03/2020,PASSGR TRANS TCC,Allied Healthcare,New GR/IR Account," 1,656.00 ",Residential - LD
30/03/2020,PASSGR TRANS TCC,Allied Healthcare,New GR/IR Account," 1,702.00 ",Residential - LD
30/03/2020,PASSGR TRANS TCC,Allied Healthcare,New GR/IR Account," 1,536.00 ",Residential - LD
31/03/2020,PASSGR TRANS TCC,Allied Healthcare,New GR/IR Account, 920.00 ,Residential - LD
31/03/2020,PASSGR TRANS TCC,Allied Healthcare,New GR/IR Account," 1,120.00 ",Residential - LD
31/03/2020,PASSGR TRANS TCC,Allied Healthcare,New GR/IR Account," 1,840.00 ",Residential - LD
13/02/2020,PASSGR TRANS TCC,Allied Healthcare,New GR/IR Account, 299.00 ,Residential - LD
11/02/2020,PASSGR TRANS TCC,Allied Healthcare,New GR/IR Account, 920.00 ,Residential - LD
31/03/2020,PASSGR TRANS TCC,Allied Healthcare,New GR/IR Account," 1,610.00 ",Residential - LD
30/03/2020,PASSGR TRANS TCC,Allied Healthcare,New GR/IR Account," 1,472.00 ",Residential - LD
31/03/2020,PASSGR TRANS TCC,Allied Healthcare,New GR/IR Account," 1,400.00 ",Residential - LD
31/03/2020,PASSGR TRANS TCC,Allied Healthcare,New GR/IR Account," 1,200.00 ",Residential - LD
31/03/2020,PASSGR TRANS TCC,Allied Healthcare,New GR/IR Account," 1,564.00 ",Residential - LD
30/03/2020,PASSGR TRANS TCC,Allied Healthcare,New GR/IR Account, 391.00 ,Residential - LD
30/03/2020,PASSGR TRANS TCC,Allied Healthcare,New GR/IR Account, 552.00 ,Residential - LD
31/03/2020,PASSGR TRANS TCC,Allied Healthcare,New GR/IR Account," 1,656.00 ",Residential - LD
23/01/2020,WEST CWD NONLAC CARE,Allied Healthcare (UK) Ltd,New GR/IR Account," 2,162.00 ",Dom Care - Adults
23/01/2020,WEST CWD NONLAC CARE,Allied Healthcare (UK) Ltd,New GR/IR Account," 1,568.00 ",Dom Care - Adults
23/01/2020,WEST CWD NONLAC CARE,Allied Healthcare (UK) Ltd,New GR/IR Account," 1,347.50 ",Dom Care - Adults
21/01/2020,BLUEBADGE+SALDR TEAM,Allied Publicity Services Mancheste,New GR/IR Account," 4,265.98 ",Food & Beverages
27/01/2020,BLUEBADGE+SALDR TEAM,Allied Publicity Services Mancheste,New GR/IR Account," 4,745.94 ",Food & Beverages
04/03/2020,BLUEBADGE+SALDR TEAM,Allied Publicity Services Mancheste,New GR/IR Account," 4,322.34 ",Food & Beverages
04/03/2020,BLUEBADGE+SALDR TEAM,Allied Publicity Services Mancheste,New GR/IR Account," 4,432.30 ",Food & Beverages
30/03/2020,BLUEBADGE+SALDR TEAM,Allied Publicity Services Mancheste,New GR/IR Account," 4,114.45 ",Food & Beverages
03/01/2020,AREA CARE VOUCHERS,Allpay Ltd,New GR/IR Account, 529.92 ,Credit Cards
02/01/2020,AREA CARE VOUCHERS,Allpay Ltd,Bank Charges," 1,036.08 ",Credit Cards
27/01/2020,AREA CARE VOUCHERS,Allpay Ltd,New GR/IR Account, 409.50 ,Credit Cards
27/01/2020,LOCAL ASSIST SCHEME,Allpay Ltd,New GR/IR Account, 275.88 ,Credit Cards
06/02/2020,LOCAL ASSIST SCHEME,Allpay Ltd,New GR/IR Account, 258.12 ,Credit Cards
05/02/2020,LOCAL ASSIST SCHEME,Allpay Ltd,New GR/IR Account, 293.70 ,Credit Cards
06/02/2020,LOCAL ASSIST SCHEME,Allpay Ltd,New GR/IR Account, 300.54 ,Credit Cards
25/03/2020,LOCAL ASSIST SCHEME,Allpay Ltd,New GR/IR Account, 254.34 ,Credit Cards
24/02/2020,AREA CARE VOUCHERS,Allpay Ltd,Third Party Payments-Private Individuals," 3,295.37 ",Misc One-off
19/03/2020,AREA CARE VOUCHERS,Allpay Ltd,Third Party Payments-Private Individuals," 2,420.80 ",Misc One-off
27/02/2020,LOCAL ASSIST SCHEME,Allpay -RRS Surrey Council Funding,Bank Charges," 15,000.00 ",Non-Staff Expenses
02/03/2020,MALLOW CS DMHS 25-30,Allsop & Francis Ltd,Equipment, 357.43 ,Cat Equip Supply&Fit
06/02/2020,MALLOW CS DMHS 25-30,Allsop & Francis Ltd,Equipment, 782.40 ,Cat Equip Supply&Fit
24/03/2020,MALLOW CS DMHS 25-30,Allsop & Francis Ltd,Equipment, 503.39 ,Cat Equip Supply&Fit
24/01/2020,Keswick Res,Allsop & Francis Ltd,New GR/IR Account, 315.60 ,Cat Equip Supply&Fit
20/01/2020,BURBANK COMM HOME,Allsop & Francis Ltd,New GR/IR Account, 356.96 ,Cat Equip Supply&Fit
08/01/2020,Orchard Court Res,Allsop & Francis Ltd,New GR/IR Account, 643.42 ,Cat Equip Supply&Fit
27/01/2020,Heathside Res,Allsop & Francis Ltd,New GR/IR Account, 895.28 ,Cat Equip Supply&Fit
04/02/2020,Orchard Court Res,Allsop & Francis Ltd,New GR/IR Account, 557.02 ,Cat Equip Supply&Fit
22/01/2020,FAIRCROFT COMM HOME,Allsop & Francis Ltd,New GR/IR Account, 360.00 ,Cat Equip Supply&Fit
18/02/2020,Orchard Court Res,Allsop & Francis Ltd,New GR/IR Account," 1,150.00 ",Cat Equip Supply&Fit
18/02/2020,Barnfield Res,Allsop & Francis Ltd,New GR/IR Account, 786.07 ,Cat Equip Supply&Fit
06/02/2020,Birchlands Res,Allsop & Francis Ltd,New GR/IR Account," 1,173.67 ",Cat Equip Supply&Fit
25/02/2020,Orchard Court Res,Allsop & Francis Ltd,New GR/IR Account, 555.10 ,Cat Equip Supply&Fit
17/03/2020,Barnfield Res,Allsop & Francis Ltd,New GR/IR Account, 521.32 ,Cat Equip Supply&Fit
24/03/2020,Orchard Court Res,Allsop & Francis Ltd,New GR/IR Account, 531.54 ,Cat Equip Supply&Fit
25/02/2020,Meadowside Res,Allsop & Francis Ltd,New GR/IR Account, 403.06 ,Cat Equip Supply&Fit
28/01/2020,LOGISTICS,Allstar Business Solutions Ltd,Vehicle Running Costs, 569.15 ,Veh Repair & Maint
28/01/2020,LOGISTICS,Allstar Business Solutions Ltd,Vehicle Running Costs, 260.40 ,Veh Repair & Maint
28/01/2020,LOGISTICS,Allstar Business Solutions Ltd,Vehicle Running Costs," 9,374.26 ",Veh Repair & Maint
26/02/2020,LOGISTICS,Allstar Business Solutions Ltd,Vehicle Running Costs, 253.94 ,Veh Repair & Maint
26/02/2020,LOGISTICS,Allstar Business Solutions Ltd,Vehicle Running Costs," 9,525.24 ",Veh Repair & Maint
26/03/2020,LOGISTICS,Allstar Business Solutions Ltd,Vehicle Running Costs, 572.58 ,Veh Repair & Maint
26/02/2020,LOGISTICS,Allstar Business Solutions Ltd,Vehicle Running Costs, 598.88 ,Veh Repair & Maint
26/02/2020,LOGISTICS,Allstar Business Solutions Ltd,Vehicle Running Costs, 283.20 ,Veh Repair & Maint
26/03/2020,LOGISTICS,Allstar Business Solutions Ltd,Vehicle Running Costs," 11,630.85 ",Veh Repair & Maint
26/03/2020,LOGISTICS,Allstar Business Solutions Ltd,Vehicle Running Costs, 258.00 ,Veh Repair & Maint
13/01/2020,GUILDFORD LOC,Alpenbest Ltd,Home Base Care," 6,440.00 ",Dom Care - Adults
14/01/2020,HALLEYS APPROACH,Alpenbest Ltd,Home Base Care, 794.59 ,Dom Care - Adults
28/01/2020,GUILDFORD LOC,Alpenbest Ltd,New GR/IR Account," 6,440.00 ",Dom Care - Adults
28/01/2020,ALDWYN PLACE,Alpenbest Ltd,New GR/IR Account," 1,078.45 ",Dom Care - Adults
28/01/2020,WOKING CARE OP,Alpenbest Ltd,New GR/IR Account," 12,320.00 ",Dom Care - Adults
28/01/2020,OP CONTRACTS,Alpenbest Ltd,New GR/IR Account," 6,440.00 ",Dom Care - Adults
11/02/2020,OP CONTRACTS,Alpenbest Ltd,New GR/IR Account," 6,440.00 ",Dom Care - Adults
11/02/2020,GUILDFORD LOC,Alpenbest Ltd,New GR/IR Account," 6,440.00 ",Dom Care - Adults
11/02/2020,HALLEYS APPROACH,Alpenbest Ltd,New GR/IR Account, 937.16 ,Dom Care - Adults
11/02/2020,ALDWYN PLACE,Alpenbest Ltd,New GR/IR Account, 785.25 ,Dom Care - Adults
28/01/2020,HALLEYS APPROACH,Alpenbest Ltd,New GR/IR Account," 1,007.16 ",Dom Care - Adults
24/02/2020,GUILDFORD LOC,Alpenbest Ltd,New GR/IR Account," 6,440.00 ",Dom Care - Adults
25/02/2020,ALDWYN PLACE,Alpenbest Ltd,New GR/IR Account, 659.70 ,Dom Care - Adults
24/02/2020,WOKING CARE OP,Alpenbest Ltd,New GR/IR Account," 12,320.00 ",Dom Care - Adults
24/02/2020,OP CONTRACTS,Alpenbest Ltd,New GR/IR Account," 6,440.00 ",Dom Care - Adults
10/03/2020,GUILDFORD LOC,Alpenbest Ltd,New GR/IR Account," 6,440.00 ",Dom Care - Adults
14/02/2020,OP CONTRACTS,Alpenbest Ltd,Other Community Care," 6,440.00 ",Dom Care - Adults
25/02/2020,HALLEYS APPROACH,Alpenbest Ltd,New GR/IR Account," 1,007.16 ",Dom Care - Adults
10/03/2020,OP CONTRACTS,Alpenbest Ltd,New GR/IR Account," 6,440.00 ",Dom Care - Adults
24/03/2020,WOKING CARE OP,Alpenbest Ltd,New GR/IR Account," 12,320.00 ",Dom Care - Adults
10/03/2020,HALLEYS APPROACH,Alpenbest Ltd,Home Base Care," 1,105.02 ",Dom Care - Adults
10/03/2020,ALDWYN PLACE,Alpenbest Ltd,Home Base Care, 498.44 ,Dom Care - Adults
24/03/2020,GUILDFORD LOC,Alpenbest Ltd,New GR/IR Account," 6,440.00 ",Dom Care - Adults
24/03/2020,OP CONTRACTS,Alpenbest Ltd,New GR/IR Account," 6,440.00 ",Dom Care - Adults
10/03/2020,ALDWYN PLACE,Alpenbest Ltd,Home Base Care, 806.30 ,Dom Care - Adults
24/03/2020,ALDWYN PLACE,Alpenbest Ltd,New GR/IR Account, 505.04 ,Dom Care - Adults
24/03/2020,HALLEYS APPROACH,Alpenbest Ltd,New GR/IR Account," 1,412.88 ",Dom Care - Adults
14/01/2020,NW S17 CARE,Alpha Biolaboratories Ltd,DNA & Drug Testing, 438.00 ,Forensic & Lab Serv
14/01/2020,NW CARE - CPCRT LAC,Alpha Biolaboratories Ltd,DNA & Drug Testing, 261.60 ,Forensic & Lab Serv
17/01/2020,SE S17 CARE,Alpha Biolaboratories Ltd,DNA & Drug Testing," 2,616.00 ",Forensic & Lab Serv
20/01/2020,SE S17 CARE,Alpha Biolaboratories Ltd,DNA & Drug Testing, 438.00 ,Forensic & Lab Serv
04/02/2020,SE CARE - CPCRT LAC,Alpha Biolaboratories Ltd,New GR/IR Account, 714.00 ,Forensic & Lab Serv
18/02/2020,NW S17 CARE,Alpha Biolaboratories Ltd,New GR/IR Account, 294.00 ,Forensic & Lab Serv
24/03/2020,NE CARE - CPCRT LAC,Alpha Biolaboratories Ltd,New GR/IR Account, 262.20 ,Forensic & Lab Serv
09/03/2020,SE S17 CARE,Alpha Biolaboratories Ltd,New GR/IR Account, 412.20 ,Forensic & Lab Serv
10/01/2020,SW TRANSPORT,Alpha Radio Taxis,Creditors Control Account," 1,130.57 ",Multi-purpose Veh
10/01/2020,SW TRANSPORT,Alpha Radio Taxis,Creditors Control Account, 330.76 ,Multi-purpose Veh
10/01/2020,NW TRANSPORT,Alpha Radio Taxis,Creditors Control Account, 294.43 ,Multi-purpose Veh
10/01/2020,SE TRANSPORT,Alpha Radio Taxis,Creditors Control Account, 809.24 ,Multi-purpose Veh
11/02/2020,SW TRANSPORT,Alpha Radio Taxis,Creditors Control Account," 1,805.00 ",Multi-purpose Veh
11/02/2020,SW TRANSPORT,Alpha Radio Taxis,Creditors Control Account, 595.37 ,Multi-purpose Veh
11/02/2020,SE TRANSPORT,Alpha Radio Taxis,Creditors Control Account," 1,456.63 ",Multi-purpose Veh
10/03/2020,SW TRANSPORT,Alpha Radio Taxis,Creditors Control Account, 496.15 ,Multi-purpose Veh
10/03/2020,SE TRANSPORT,Alpha Radio Taxis,Creditors Control Account," 1,213.85 ",Multi-purpose Veh
10/03/2020,SW TRANSPORT,Alpha Radio Taxis,Creditors Control Account," 1,330.00 ",Multi-purpose Veh
13/01/2020,FRS COST REC SCHEME,Alpine Metal Tech UK Ltd,Equipment, 633.12 ,Fire Serv Training
11/02/2020,SY GROWTH STRATEGY,Alps Partnership Ltd,New GR/IR Account," 5,000.00 ",Venue Hire
19/03/2020,NMSS PUPIL PREMIUM 1,Alton Convent School,Pupil Premium, 935.00 ,Nurseries
03/01/2020,WALSH MEMORIAL CEI,Alton Pump Services Ltd,Buyback Works Responsive," 7,872.00 ",M-D (Property)
10/01/2020,REIGATE & BD CARE PD,Alum Care Ltd,New GR/IR Account," 4,330.00 ",Residential - LD
21/01/2020,DEMENTIA CONTRACTS,Alzheimers Society - Surrey Finance,New GR/IR Account," 9,504.42 ",Grants-Member Allocs
19/02/2020,DEMENTIA CONTRACTS,Alzheimers Society - Surrey Finance,New GR/IR Account," 9,504.42 ",Grants-Member Allocs
09/03/2020,EPSOM HOSP,AM2PM Quality Care Ltd,New GR/IR Account," 3,931.20 ",Residential - OP
24/03/2020,EPSOM HOSP,AM2PM Quality Care Ltd,New GR/IR Account," 2,184.00 ",Residential - OP
24/03/2020,EPSOM HOSP,AM2PM Quality Care Ltd,New GR/IR Account," 1,747.20 ",Residential - OP
11/03/2020,EPSOM HOSP,AM2PM Quality Care Ltd,New GR/IR Account," 7,298.20 ",Residential - OP
30/03/2020,EPSOM HOSP,AM2PM Quality Care Ltd,New GR/IR Account, 561.15 ,Residential - OP
10/03/2020,WALTON-ON-T LIB(NEW),Amalgamated Lifts Ltd,Corporate Responsive Maintenance, 252.00 ,"Comm, Res & Inv Prop"
10/03/2020,QUADRANT CT WOKING,Amalgamated Lifts Ltd,Corporate Responsive Maintenance, 252.00 ,"Comm, Res & Inv Prop"
10/03/2020,CLIFTON HILL SCHOOL,Amalgamated Lifts Ltd,Buyback Works Responsive, 336.00 ,"Comm, Res & Inv Prop"
10/03/2020,CLIFTON HILL SCHOOL,Amalgamated Lifts Ltd,Buyback Works Responsive, 386.04 ,"Comm, Res & Inv Prop"
10/03/2020,ASH MANOR SCHOOL,Amalgamated Lifts Ltd,Buyback Works Term, 835.20 ,"Comm, Res & Inv Prop"
12/03/2020,REIGATE LIB,Amalgamated Lifts Ltd,Corporate Responsive Maintenance, 398.40 ,"Comm, Res & Inv Prop"
12/03/2020,LARCHES 44 WLOO RD,Amalgamated Lifts Ltd,Corporate Responsive Maintenance, 252.00 ,"Comm, Res & Inv Prop"
31/03/2020,NULL,Amalgamated Lifts Ltd,NULL," 1,845.00 ","Comm, Res & Inv Prop"
10/01/2020,SE TRANSPORT,Ambar Taxis,Creditors Control Account, 741.53 ,Multi-purpose Veh
10/01/2020,SW TRANSPORT,Ambar Taxis,Creditors Control Account," 1,358.47 ",Multi-purpose Veh
14/02/2020,SW TRANSPORT,Ambar Taxis,Creditors Control Account," 1,811.29 ",Multi-purpose Veh
14/02/2020,SE TRANSPORT,Ambar Taxis,Creditors Control Account, 988.71 ,Multi-purpose Veh
10/03/2020,SE TRANSPORT,Ambar Taxis,Creditors Control Account, 692.10 ,Multi-purpose Veh
10/03/2020,SW TRANSPORT,Ambar Taxis,Creditors Control Account," 1,267.90 ",Multi-purpose Veh
25/02/2020,NULL,Amber Construction Services Ltd,NULL," 51,585.31 ",General Build Maint
11/03/2020,NULL,Amber Construction Services Ltd,NULL," 31,658.59 ",General Build Maint
28/02/2020,NULL,Ambiental Technical Solutions Ltd,NULL," 11,712.00 ",Estates Mgt Services
13/01/2020,WEST CWD LAC CARE,Ambition 24 Hours,New GR/IR Account," 1,463.68 ",Supp Living - MH
13/01/2020,WEST CWD LAC CARE,Ambition 24 Hours,New GR/IR Account," 2,162.99 ",Supp Living - MH
14/01/2020,EAST CWD NONLAC CARE,Ambition 24 Hours,New GR/IR Account, 347.84 ,Supp Living - MH
17/01/2020,EAST CWD LAC CARE,Ambition 24 Hours,New GR/IR Account, 663.98 ,Supp Living - MH
17/01/2020,WEST CWD LAC CARE,Ambition 24 Hours,New GR/IR Account," 2,130.46 ",Supp Living - MH
17/01/2020,EAST CWD LAC CARE,Ambition 24 Hours,New GR/IR Account, 663.98 ,Supp Living - MH
02/01/2020,EAST CWD NONLAC CARE,Ambition 24 Hours,Home Care - Priv, 695.69 ,Supp Living - MH
14/01/2020,EAST CWD NONLAC CARE,Ambition 24 Hours,New GR/IR Account, 808.33 ,Supp Living - MH
24/01/2020,WEST CWD LAC CARE,Ambition 24 Hours,New GR/IR Account," 1,496.20 ",Supp Living - MH
05/02/2020,WEST CWD LAC CARE,Ambition 24 Hours,New GR/IR Account," 1,447.42 ",Supp Living - MH
24/01/2020,EAST CWD NONLAC CARE,Ambition 24 Hours,New GR/IR Account, 658.44 ,Supp Living - MH
05/02/2020,WEST CWD NONLAC CARE,Ambition 24 Hours,New GR/IR Account, 341.06 ,Supp Living - MH
24/01/2020,EAST CWD NONLAC CARE,Ambition 24 Hours,New GR/IR Account, 410.53 ,Supp Living - MH
22/01/2020,EAST CWD NONLAC CARE,Ambition 24 Hours,New GR/IR Account, 310.60 ,Supp Living - MH
20/02/2020,EAST CWD NONLAC CARE,Ambition 24 Hours,New GR/IR Account, 807.43 ,Supp Living - MH
24/01/2020,EAST CWD NONLAC CARE,Ambition 24 Hours,New GR/IR Account, 460.49 ,Supp Living - MH
21/02/2020,WEST CWD LAC CARE,Ambition 24 Hours,New GR/IR Account," 1,479.94 ",Supp Living - MH
26/02/2020,EAST CWD LAC CARE,Ambition 24 Hours,New GR/IR Account, 663.98 ,Supp Living - MH
25/02/2020,EAST CWD LAC CARE,Ambition 24 Hours,New GR/IR Account, 663.98 ,Supp Living - MH
26/02/2020,WEST CWD LAC CARE,Ambition 24 Hours,New GR/IR Account," 1,967.82 ",Supp Living - MH
09/03/2020,WEST CWD LAC CARE,Ambition 24 Hours,New GR/IR Account," 2,032.88 ",Supp Living - MH
26/02/2020,EAST CWD NONLAC CARE,Ambition 24 Hours,New GR/IR Account, 347.84 ,Supp Living - MH
26/02/2020,EAST CWD NONLAC CARE,Ambition 24 Hours,New GR/IR Account," 1,029.80 ",Supp Living - MH
26/02/2020,EAST CWD NONLAC CARE,Ambition 24 Hours,New GR/IR Account, 473.77 ,Supp Living - MH
05/03/2020,EAST CWD NONLAC CARE,Ambition 24 Hours,New GR/IR Account, 695.69 ,Supp Living - MH
05/03/2020,EAST CWD NONLAC CARE,Ambition 24 Hours,New GR/IR Account, 347.84 ,Supp Living - MH
05/03/2020,EAST CWD NONLAC CARE,Ambition 24 Hours,New GR/IR Account, 347.84 ,Supp Living - MH
05/03/2020,EAST CWD NONLAC CARE,Ambition 24 Hours,New GR/IR Account, 473.77 ,Supp Living - MH
05/03/2020,EAST CWD NONLAC CARE,Ambition 24 Hours,New GR/IR Account, 681.96 ,Supp Living - MH
05/03/2020,EAST CWD NONLAC CARE,Ambition 24 Hours,New GR/IR Account, 807.43 ,Supp Living - MH
05/03/2020,EAST CWD NONLAC CARE,Ambition 24 Hours,New GR/IR Account, 525.19 ,Supp Living - MH
05/03/2020,EAST CWD NONLAC CARE,Ambition 24 Hours,New GR/IR Account, 807.43 ,Supp Living - MH
05/03/2020,EAST CWD LAC CARE,Ambition 24 Hours,New GR/IR Account, 663.98 ,Supp Living - MH
05/03/2020,EAST CWD NONLAC CARE,Ambition 24 Hours,New GR/IR Account, 807.43 ,Supp Living - MH
05/03/2020,WEST CWD LAC CARE,Ambition 24 Hours,New GR/IR Account," 1,382.35 ",Supp Living - MH
09/03/2020,WEST CWD LAC CARE,Ambition 24 Hours,New GR/IR Account," 1,398.61 ",Supp Living - MH
26/02/2020,EAST CWD NONLAC CARE,Ambition 24 Hours,New GR/IR Account, 473.77 ,Supp Living - MH
05/03/2020,EAST CWD NONLAC CARE,Ambition 24 Hours,New GR/IR Account, 695.69 ,Supp Living - MH
30/03/2020,EAST CWD NONLAC CARE,Ambition 24 Hours,New GR/IR Account, 311.05 ,Supp Living - MH
31/03/2020,EAST CWD NONLAC CARE,Ambition 24 Hours,New GR/IR Account, 487.94 ,Supp Living - MH
31/03/2020,WEST CWD LAC CARE,Ambition 24 Hours,New GR/IR Account," 1,951.56 ",Supp Living - MH
31/03/2020,WEST CWD LAC CARE,Ambition 24 Hours,New GR/IR Account," 2,146.73 ",Supp Living - MH
31/03/2020,WEST CWD LAC CARE,Ambition 24 Hours,New GR/IR Account," 1,431.14 ",Supp Living - MH
05/03/2020,EAST CWD NONLAC CARE,Ambition 24 Hours,New GR/IR Account, 821.16 ,Supp Living - MH
05/03/2020,WEST CWD NONLAC CARE,Ambition 24 Hours,New GR/IR Account, 358.80 ,Supp Living - MH
30/03/2020,EAST CWD NONLAC CARE,Ambition 24 Hours,New GR/IR Account," 1,118.03 ",Supp Living - MH
31/03/2020,EAST CWD NONLAC CARE,Ambition 24 Hours,New GR/IR Account, 465.89 ,Supp Living - MH
23/01/2020,SW ALTERNATIVE SEN,AMC Sen Home Support,New GR/IR Account," 1,560.00 ",SEND Agncy Placement
03/01/2020,SW ALTERNATIVE SEN,AMC Sen Home Support,Agency Placement Expenditure, 840.00 ,SEND Agncy Placement
27/02/2020,SW ALTERNATIVE SEN,AMC Sen Home Support,New GR/IR Account, 960.00 ,SEND Agncy Placement
27/02/2020,SW ALTERNATIVE SEN,AMC Sen Home Support,New GR/IR Account," 1,800.00 ",SEND Agncy Placement
31/03/2020,SW ALTERNATIVE SEN,AMC Sen Home Support,New GR/IR Account," 1,080.00 ",SEND Agncy Placement
31/03/2020,NW ALTERNATIVE SEN,AMC Sen Home Support,New GR/IR Account, 840.00 ,SEND Agncy Placement
31/03/2020,SW ALTERNATIVE SEN,AMC Sen Home Support,New GR/IR Account, 960.00 ,SEND Agncy Placement
28/01/2020,PUPIL PREMIUM LAC,Amery Hill School,Local Authorities, 400.00 ,Schools
28/01/2020,PUPIL PREMIUM LAC,Amery Hill School,Local Authorities, 250.00 ,Schools
24/03/2020,PUPIL PREMIUM LAC,Amery Hill School,Local Authorities, 420.00 ,Schools
24/03/2020,PUPIL PREMIUM LAC,Amery Hill School,Local Authorities, 455.00 ,Schools
07/02/2020,Free Early Educ 3&4,Amesbury School,Third Party Payments-Other Agencies," 4,144.95 ",Nurseries
07/02/2020,Free Early Educ 3&4,Amesbury School,Third Party Payments-Other Agencies," 12,122.55 ",Nurseries
17/03/2020,SW IPSB - OUT COUNTY,Amesbury School,New GR/IR Account," 7,336.49 ",Nurseries
09/01/2020,SE TRANSPORT,AMK Chauffeur Driven Cars & Minicoa,Creditors Control Account, 981.72 ,Multi-purpose Veh
09/01/2020,NW TRANSPORT,AMK Chauffeur Driven Cars & Minicoa,Creditors Control Account," 1,059.75 ",Multi-purpose Veh
09/01/2020,NE TRANSPORT,AMK Chauffeur Driven Cars & Minicoa,Creditors Control Account," 2,755.44 ",Multi-purpose Veh
09/01/2020,NW TRANSPORT,AMK Chauffeur Driven Cars & Minicoa,Creditors Control Account," 2,573.10 ",Multi-purpose Veh
09/01/2020,SW TRANSPORT,AMK Chauffeur Driven Cars & Minicoa,Creditors Control Account," 1,303.20 ",Multi-purpose Veh
09/01/2020,NW TRANSPORT,AMK Chauffeur Driven Cars & Minicoa,Creditors Control Account," 2,217.60 ",Multi-purpose Veh
09/01/2020,NW TRANSPORT,AMK Chauffeur Driven Cars & Minicoa,Creditors Control Account, 627.15 ,Multi-purpose Veh
09/01/2020,NW TRANSPORT,AMK Chauffeur Driven Cars & Minicoa,Creditors Control Account," 3,456.90 ",Multi-purpose Veh
09/01/2020,NW TRANSPORT,AMK Chauffeur Driven Cars & Minicoa,Creditors Control Account," 1,888.05 ",Multi-purpose Veh
09/01/2020,NW TRANSPORT,AMK Chauffeur Driven Cars & Minicoa,Creditors Control Account, 474.75 ,Multi-purpose Veh
09/01/2020,NW TRANSPORT,AMK Chauffeur Driven Cars & Minicoa,Creditors Control Account," 1,807.20 ",Multi-purpose Veh
09/01/2020,SW TRANSPORT,AMK Chauffeur Driven Cars & Minicoa,Creditors Control Account, 401.58 ,Multi-purpose Veh
09/01/2020,SW TRANSPORT,AMK Chauffeur Driven Cars & Minicoa,Creditors Control Account, 938.24 ,Multi-purpose Veh
09/01/2020,NW TRANSPORT,AMK Chauffeur Driven Cars & Minicoa,Creditors Control Account," 1,157.41 ",Multi-purpose Veh
09/01/2020,SE TRANSPORT,AMK Chauffeur Driven Cars & Minicoa,Creditors Control Account," 2,993.47 ",Multi-purpose Veh
09/01/2020,SW TRANSPORT,AMK Chauffeur Driven Cars & Minicoa,Creditors Control Account, 293.15 ,Multi-purpose Veh
09/01/2020,SW TRANSPORT,AMK Chauffeur Driven Cars & Minicoa,Creditors Control Account, 670.14 ,Multi-purpose Veh
09/01/2020,SE TRANSPORT,AMK Chauffeur Driven Cars & Minicoa,Creditors Control Account," 2,957.90 ",Multi-purpose Veh
09/01/2020,NW TRANSPORT,AMK Chauffeur Driven Cars & Minicoa,Creditors Control Account," 3,746.55 ",Multi-purpose Veh
09/01/2020,NW TRANSPORT,AMK Chauffeur Driven Cars & Minicoa,Creditors Control Account, 727.65 ,Multi-purpose Veh
09/01/2020,SW TRANSPORT,AMK Chauffeur Driven Cars & Minicoa,Creditors Control Account," 1,966.65 ",Multi-purpose Veh
09/01/2020,SW TRANSPORT,AMK Chauffeur Driven Cars & Minicoa,Creditors Control Account, 494.55 ,Multi-purpose Veh
09/01/2020,NW TRANSPORT,AMK Chauffeur Driven Cars & Minicoa,Creditors Control Account," 3,058.95 ",Multi-purpose Veh
09/01/2020,NW TRANSPORT,AMK Chauffeur Driven Cars & Minicoa,Creditors Control Account," 3,035.88 ",Multi-purpose Veh
09/01/2020,SW TRANSPORT,AMK Chauffeur Driven Cars & Minicoa,Creditors Control Account, 420.00 ,Multi-purpose Veh
09/01/2020,SW TRANSPORT,AMK Chauffeur Driven Cars & Minicoa,Creditors Control Account," 3,659.25 ",Multi-purpose Veh
09/01/2020,SW TRANSPORT,AMK Chauffeur Driven Cars & Minicoa,Creditors Control Account, 991.65 ,Multi-purpose Veh
09/01/2020,SE TRANSPORT,AMK Chauffeur Driven Cars & Minicoa,Creditors Control Account, 460.23 ,Multi-purpose Veh
09/01/2020,WEST CWD NONLAC CARE,AMK Chauffeur Driven Cars & Minicoa,Creditors Control Account, 883.96 ,Multi-purpose Veh
09/01/2020,SW TRANSPORT,AMK Chauffeur Driven Cars & Minicoa,Creditors Control Account, 573.20 ,Multi-purpose Veh
09/01/2020,SW TRANSPORT,AMK Chauffeur Driven Cars & Minicoa,Creditors Control Account, 453.29 ,Multi-purpose Veh
09/01/2020,SW TRANSPORT,AMK Chauffeur Driven Cars & Minicoa,Creditors Control Account, 868.40 ,Multi-purpose Veh
09/01/2020,SW TRANSPORT,AMK Chauffeur Driven Cars & Minicoa,Creditors Control Account," 1,618.08 ",Multi-purpose Veh
09/01/2020,NE TRANSPORT,AMK Chauffeur Driven Cars & Minicoa,Creditors Control Account," 2,260.56 ",Multi-purpose Veh
09/01/2020,NW TRANSPORT,AMK Chauffeur Driven Cars & Minicoa,Creditors Control Account," 2,566.65 ",Multi-purpose Veh
09/01/2020,NW TRANSPORT,AMK Chauffeur Driven Cars & Minicoa,Creditors Control Account, 726.15 ,Multi-purpose Veh
09/01/2020,SW TRANSPORT,AMK Chauffeur Driven Cars & Minicoa,Creditors Control Account," 2,025.45 ",Multi-purpose Veh
09/01/2020,NW TRANSPORT,AMK Chauffeur Driven Cars & Minicoa,Creditors Control Account," 4,648.22 ",Multi-purpose Veh
09/01/2020,NW TRANSPORT,AMK Chauffeur Driven Cars & Minicoa,Creditors Control Account, 979.09 ,Multi-purpose Veh
09/01/2020,SW TRANSPORT,AMK Chauffeur Driven Cars & Minicoa,Creditors Control Account, 973.35 ,Multi-purpose Veh
09/01/2020,SW TRANSPORT,AMK Chauffeur Driven Cars & Minicoa,Creditors Control Account," 1,138.68 ",Multi-purpose Veh
09/01/2020,NW TRANSPORT,AMK Chauffeur Driven Cars & Minicoa,Creditors Control Account, 376.08 ,Multi-purpose Veh
09/01/2020,NE TRANSPORT,AMK Chauffeur Driven Cars & Minicoa,Creditors Control Account, 760.80 ,Multi-purpose Veh
09/01/2020,WEST CWD NONLAC CARE,AMK Chauffeur Driven Cars & Minicoa,Creditors Control Account, 286.60 ,Multi-purpose Veh
09/01/2020,SE TRANSPORT,AMK Chauffeur Driven Cars & Minicoa,Creditors Control Account," 4,014.72 ",Multi-purpose Veh
09/01/2020,NE TRANSPORT,AMK Chauffeur Driven Cars & Minicoa,Creditors Control Account, 434.20 ,Multi-purpose Veh
09/01/2020,NW TRANSPORT,AMK Chauffeur Driven Cars & Minicoa,Creditors Control Account, 306.45 ,Multi-purpose Veh
09/01/2020,SW TRANSPORT,AMK Chauffeur Driven Cars & Minicoa,Creditors Control Account, 421.80 ,Multi-purpose Veh
09/01/2020,SW TRANSPORT,AMK Chauffeur Driven Cars & Minicoa,Creditors Control Account," 1,138.68 ",Multi-purpose Veh
09/01/2020,SW TRANSPORT,AMK Chauffeur Driven Cars & Minicoa,Creditors Control Account," 4,014.55 ",Multi-purpose Veh
09/01/2020,NW TRANSPORT,AMK Chauffeur Driven Cars & Minicoa,Creditors Control Account, 252.66 ,Multi-purpose Veh
09/01/2020,NW TRANSPORT,AMK Chauffeur Driven Cars & Minicoa,Creditors Control Account, 254.34 ,Multi-purpose Veh
09/01/2020,NW TRANSPORT,AMK Chauffeur Driven Cars & Minicoa,Creditors Control Account, 380.40 ,Multi-purpose Veh
09/01/2020,SW TRANSPORT,AMK Chauffeur Driven Cars & Minicoa,Creditors Control Account, 342.30 ,Multi-purpose Veh
09/01/2020,NW TRANSPORT,AMK Chauffeur Driven Cars & Minicoa,Creditors Control Account," 1,709.10 ",Multi-purpose Veh
09/01/2020,SW TRANSPORT,AMK Chauffeur Driven Cars & Minicoa,Creditors Control Account," 1,584.04 ",Multi-purpose Veh
09/01/2020,SE TRANSPORT,AMK Chauffeur Driven Cars & Minicoa,Creditors Control Account, 920.16 ,Multi-purpose Veh
09/01/2020,SE TRANSPORT,AMK Chauffeur Driven Cars & Minicoa,Creditors Control Account," 1,265.94 ",Multi-purpose Veh
09/01/2020,NE TRANSPORT,AMK Chauffeur Driven Cars & Minicoa,Creditors Control Account," 4,353.31 ",Multi-purpose Veh
09/01/2020,SW TRANSPORT,AMK Chauffeur Driven Cars & Minicoa,Creditors Control Account," 1,051.02 ",Multi-purpose Veh
09/01/2020,SW TRANSPORT,AMK Chauffeur Driven Cars & Minicoa,Creditors Control Account, 582.45 ,Multi-purpose Veh
09/01/2020,SW TRANSPORT,AMK Chauffeur Driven Cars & Minicoa,Creditors Control Account, 331.03 ,Multi-purpose Veh
09/01/2020,SW TRANSPORT,AMK Chauffeur Driven Cars & Minicoa,Creditors Control Account," 1,788.00 ",Multi-purpose Veh
09/01/2020,SW TRANSPORT,AMK Chauffeur Driven Cars & Minicoa,Creditors Control Account," 2,978.72 ",Multi-purpose Veh
09/01/2020,SW TRANSPORT,AMK Chauffeur Driven Cars & Minicoa,Creditors Control Account, 635.77 ,Multi-purpose Veh
09/01/2020,SW TRANSPORT,AMK Chauffeur Driven Cars & Minicoa,Creditors Control Account," 1,691.20 ",Multi-purpose Veh
09/01/2020,SW TRANSPORT,AMK Chauffeur Driven Cars & Minicoa,Creditors Control Account," 1,580.00 ",Multi-purpose Veh
09/01/2020,SW TRANSPORT,AMK Chauffeur Driven Cars & Minicoa,Creditors Control Account," 2,238.60 ",Multi-purpose Veh
09/01/2020,SW TRANSPORT,AMK Chauffeur Driven Cars & Minicoa,Creditors Control Account, 823.86 ,Multi-purpose Veh
09/01/2020,NW TRANSPORT,AMK Chauffeur Driven Cars & Minicoa,Creditors Control Account, 888.12 ,Multi-purpose Veh
09/01/2020,NW TRANSPORT,AMK Chauffeur Driven Cars & Minicoa,Creditors Control Account," 1,476.50 ",Multi-purpose Veh
09/01/2020,NE TRANSPORT,AMK Chauffeur Driven Cars & Minicoa,Creditors Control Account," 3,863.59 ",Multi-purpose Veh
09/01/2020,NW TRANSPORT,AMK Chauffeur Driven Cars & Minicoa,Creditors Control Account," 2,526.60 ",Multi-purpose Veh
09/01/2020,NW TRANSPORT,AMK Chauffeur Driven Cars & Minicoa,Creditors Control Account, 714.45 ,Multi-purpose Veh
09/01/2020,NE TRANSPORT,AMK Chauffeur Driven Cars & Minicoa,Creditors Control Account, 350.16 ,Multi-purpose Veh
09/01/2020,NE TRANSPORT,AMK Chauffeur Driven Cars & Minicoa,Creditors Control Account, 501.90 ,Multi-purpose Veh
09/01/2020,SW TRANSPORT,AMK Chauffeur Driven Cars & Minicoa,Creditors Control Account," 3,664.51 ",Multi-purpose Veh
09/01/2020,SW TRANSPORT,AMK Chauffeur Driven Cars & Minicoa,Creditors Control Account," 7,758.72 ",Multi-purpose Veh
09/01/2020,SW TRANSPORT,AMK Chauffeur Driven Cars & Minicoa,Creditors Control Account," 2,311.98 ",Multi-purpose Veh
09/01/2020,SW TRANSPORT,AMK Chauffeur Driven Cars & Minicoa,Creditors Control Account," 3,204.53 ",Multi-purpose Veh
09/01/2020,SW TRANSPORT,AMK Chauffeur Driven Cars & Minicoa,Creditors Control Account," 4,822.32 ",Multi-purpose Veh
09/01/2020,SE TRANSPORT,AMK Chauffeur Driven Cars & Minicoa,Creditors Control Account," 3,435.28 ",Multi-purpose Veh
09/01/2020,SW TRANSPORT,AMK Chauffeur Driven Cars & Minicoa,Creditors Control Account, 344.80 ,Multi-purpose Veh
09/01/2020,SW TRANSPORT,AMK Chauffeur Driven Cars & Minicoa,Creditors Control Account," 1,164.24 ",Multi-purpose Veh
09/01/2020,SW TRANSPORT,AMK Chauffeur Driven Cars & Minicoa,Creditors Control Account," 6,395.00 ",Multi-purpose Veh
09/01/2020,SW TRANSPORT,AMK Chauffeur Driven Cars & Minicoa,Creditors Control Account," 1,676.60 ",Multi-purpose Veh
09/01/2020,SW TRANSPORT,AMK Chauffeur Driven Cars & Minicoa,Creditors Control Account, 384.40 ,Multi-purpose Veh
09/01/2020,SE TRANSPORT,AMK Chauffeur Driven Cars & Minicoa,Creditors Control Account," 4,354.93 ",Multi-purpose Veh
09/01/2020,SE TRANSPORT,AMK Chauffeur Driven Cars & Minicoa,Creditors Control Account, 864.84 ,Multi-purpose Veh
09/01/2020,SW TRANSPORT,AMK Chauffeur Driven Cars & Minicoa,Creditors Control Account, 864.84 ,Multi-purpose Veh
09/01/2020,TRANSPT M/STRM-SEC,AMK Chauffeur Driven Cars & Minicoa,Creditors Control Account," 3,977.52 ",Multi-purpose Veh
09/01/2020,SW TRANSPORT,AMK Chauffeur Driven Cars & Minicoa,Creditors Control Account," 2,236.40 ",Multi-purpose Veh
09/01/2020,SW TRANSPORT,AMK Chauffeur Driven Cars & Minicoa,Creditors Control Account," 2,238.60 ",Multi-purpose Veh
09/01/2020,SW TRANSPORT,AMK Chauffeur Driven Cars & Minicoa,Creditors Control Account, 586.80 ,Multi-purpose Veh
09/01/2020,SW TRANSPORT,AMK Chauffeur Driven Cars & Minicoa,Creditors Control Account," 1,079.48 ",Multi-purpose Veh
09/01/2020,SW TRANSPORT,AMK Chauffeur Driven Cars & Minicoa,Creditors Control Account," 1,264.32 ",Multi-purpose Veh
09/01/2020,TRANSPT M/STRM-PRIM,AMK Chauffeur Driven Cars & Minicoa,Creditors Control Account," 1,406.24 ",Multi-purpose Veh
09/01/2020,NW TRANSPORT,AMK Chauffeur Driven Cars & Minicoa,Creditors Control Account," 1,501.89 ",Multi-purpose Veh
09/01/2020,NW TRANSPORT,AMK Chauffeur Driven Cars & Minicoa,Creditors Control Account," 1,008.49 ",Multi-purpose Veh
09/01/2020,SW TRANSPORT,AMK Chauffeur Driven Cars & Minicoa,Creditors Control Account," 1,225.20 ",Multi-purpose Veh
09/01/2020,SW TRANSPORT,AMK Chauffeur Driven Cars & Minicoa,Creditors Control Account," 3,077.40 ",Multi-purpose Veh
09/01/2020,SW TRANSPORT,AMK Chauffeur Driven Cars & Minicoa,Creditors Control Account, 842.80 ,Multi-purpose Veh
09/01/2020,SW TRANSPORT,AMK Chauffeur Driven Cars & Minicoa,Creditors Control Account," 1,227.00 ",Multi-purpose Veh
09/01/2020,NW TRANSPORT,AMK Chauffeur Driven Cars & Minicoa,Creditors Control Account," 3,229.23 ",Multi-purpose Veh
09/01/2020,SW TRANSPORT,AMK Chauffeur Driven Cars & Minicoa,Creditors Control Account," 1,013.40 ",Multi-purpose Veh
09/01/2020,SW TRANSPORT,AMK Chauffeur Driven Cars & Minicoa,Creditors Control Account," 1,165.94 ",Multi-purpose Veh
09/01/2020,NW TRANSPORT,AMK Chauffeur Driven Cars & Minicoa,Creditors Control Account," 3,093.20 ",Multi-purpose Veh
09/01/2020,TRANSPT M/STRM-SEC,AMK Chauffeur Driven Cars & Minicoa,Creditors Control Account," 2,803.78 ",Multi-purpose Veh
09/01/2020,TRANSPT M/STRM-SEC,AMK Chauffeur Driven Cars & Minicoa,Creditors Control Account," 3,699.90 ",Multi-purpose Veh
10/01/2020,NW TRANSPORT,AMK Chauffeur Driven Cars & Minicoa,Creditors Control Account, 466.37 ,Multi-purpose Veh
10/01/2020,SW TRANSPORT,AMK Chauffeur Driven Cars & Minicoa,Creditors Control Account, 899.86 ,Multi-purpose Veh
09/01/2020,TRANSPT M/STRM-PRIM,AMK Chauffeur Driven Cars & Minicoa,Creditors Control Account," 2,141.25 ",Multi-purpose Veh
10/01/2020,SW TRANSPORT,AMK Chauffeur Driven Cars & Minicoa,Creditors Control Account, 951.90 ,Multi-purpose Veh
10/01/2020,SW TRANSPORT,AMK Chauffeur Driven Cars & Minicoa,Creditors Control Account, 648.00 ,Multi-purpose Veh
10/01/2020,NW TRANSPORT,AMK Chauffeur Driven Cars & Minicoa,Creditors Control Account," 1,208.22 ",Multi-purpose Veh
10/01/2020,NW TRANSPORT,AMK Chauffeur Driven Cars & Minicoa,Creditors Control Account," 1,863.12 ",Multi-purpose Veh
10/01/2020,NE TRANSPORT,AMK Chauffeur Driven Cars & Minicoa,Creditors Control Account," 2,250.00 ",Multi-purpose Veh
10/01/2020,NW TRANSPORT,AMK Chauffeur Driven Cars & Minicoa,Creditors Control Account," 2,340.00 ",Multi-purpose Veh
10/01/2020,NW TRANSPORT,AMK Chauffeur Driven Cars & Minicoa,Creditors Control Account, 990.00 ,Multi-purpose Veh
10/01/2020,NW TRANSPORT,AMK Chauffeur Driven Cars & Minicoa,Creditors Control Account, 705.00 ,Multi-purpose Veh
10/01/2020,NW TRANSPORT,AMK Chauffeur Driven Cars & Minicoa,Creditors Control Account," 2,250.00 ",Multi-purpose Veh
10/01/2020,SW TRANSPORT,AMK Chauffeur Driven Cars & Minicoa,Creditors Control Account," 1,453.66 ",Multi-purpose Veh
10/01/2020,NW TRANSPORT,AMK Chauffeur Driven Cars & Minicoa,Creditors Control Account," 1,986.46 ",Multi-purpose Veh
10/01/2020,SW TRANSPORT,AMK Chauffeur Driven Cars & Minicoa,Creditors Control Account, 756.00 ,Multi-purpose Veh
09/01/2020,SW TRANSPORT,AMK Chauffeur Driven Cars & Minicoa,Creditors Control Account," 3,477.80 ",Multi-purpose Veh
09/01/2020,SW TRANSPORT,AMK Chauffeur Driven Cars & Minicoa,Creditors Control Account, 846.20 ,Multi-purpose Veh
09/01/2020,SW TRANSPORT,AMK Chauffeur Driven Cars & Minicoa,Creditors Control Account, 586.80 ,Multi-purpose Veh
09/01/2020,SW TRANSPORT,AMK Chauffeur Driven Cars & Minicoa,Creditors Control Account," 1,960.43 ",Multi-purpose Veh
09/01/2020,SW TRANSPORT,AMK Chauffeur Driven Cars & Minicoa,Creditors Control Account," 1,315.18 ",Multi-purpose Veh
09/01/2020,SW TRANSPORT,AMK Chauffeur Driven Cars & Minicoa,Creditors Control Account," 2,126.67 ",Multi-purpose Veh
09/01/2020,SW TRANSPORT,AMK Chauffeur Driven Cars & Minicoa,Creditors Control Account, 557.46 ,Multi-purpose Veh
09/01/2020,SW TRANSPORT,AMK Chauffeur Driven Cars & Minicoa,Creditors Control Account," 2,032.59 ",Multi-purpose Veh
09/01/2020,NW TRANSPORT,AMK Chauffeur Driven Cars & Minicoa,Creditors Control Account, 500.13 ,Multi-purpose Veh
09/01/2020,SW TRANSPORT,AMK Chauffeur Driven Cars & Minicoa,Creditors Control Account, 616.28 ,Multi-purpose Veh
09/01/2020,NW TRANSPORT,AMK Chauffeur Driven Cars & Minicoa,Creditors Control Account," 1,231.67 ",Multi-purpose Veh
09/01/2020,SE TRANSPORT,AMK Chauffeur Driven Cars & Minicoa,Creditors Control Account," 1,526.64 ",Multi-purpose Veh
09/01/2020,TRANSPT M/STRM-SEC,AMK Chauffeur Driven Cars & Minicoa,Creditors Control Account," 3,865.20 ",Multi-purpose Veh
10/01/2020,NE TRANSPORT,AMK Chauffeur Driven Cars & Minicoa,Creditors Control Account," 2,163.28 ",Multi-purpose Veh
10/01/2020,SW TRANSPORT,AMK Chauffeur Driven Cars & Minicoa,Creditors Control Account," 1,108.57 ",Multi-purpose Veh
10/01/2020,SW TRANSPORT,AMK Chauffeur Driven Cars & Minicoa,Creditors Control Account, 375.84 ,Multi-purpose Veh
10/01/2020,SW TRANSPORT,AMK Chauffeur Driven Cars & Minicoa,Creditors Control Account," 2,520.00 ",Multi-purpose Veh
10/01/2020,NW TRANSPORT,AMK Chauffeur Driven Cars & Minicoa,Creditors Control Account, 709.28 ,Multi-purpose Veh
10/01/2020,SW TRANSPORT,AMK Chauffeur Driven Cars & Minicoa,Creditors Control Account," 2,448.00 ",Multi-purpose Veh
10/01/2020,NW TRANSPORT,AMK Chauffeur Driven Cars & Minicoa,Creditors Control Account," 2,640.00 ",Multi-purpose Veh
10/01/2020,NE TRANSPORT,AMK Chauffeur Driven Cars & Minicoa,Creditors Control Account, 750.00 ,Multi-purpose Veh
10/01/2020,NW TRANSPORT,AMK Chauffeur Driven Cars & Minicoa,Creditors Control Account," 2,145.00 ",Multi-purpose Veh
10/01/2020,NW TRANSPORT,AMK Chauffeur Driven Cars & Minicoa,Creditors Control Account, 600.00 ,Multi-purpose Veh
09/01/2020,SW TRANSPORT,AMK Chauffeur Driven Cars & Minicoa,Creditors Control Account," 2,393.64 ",Multi-purpose Veh
09/01/2020,NW TRANSPORT,AMK Chauffeur Driven Cars & Minicoa,Creditors Control Account," 2,510.10 ",Multi-purpose Veh
09/01/2020,NW TRANSPORT,AMK Chauffeur Driven Cars & Minicoa,Creditors Control Account, 709.80 ,Multi-purpose Veh
09/01/2020,NW TRANSPORT,AMK Chauffeur Driven Cars & Minicoa,Creditors Control Account, 511.05 ,Multi-purpose Veh
09/01/2020,NW TRANSPORT,AMK Chauffeur Driven Cars & Minicoa,Creditors Control Account, 875.85 ,Multi-purpose Veh
09/01/2020,SW TRANSPORT,AMK Chauffeur Driven Cars & Minicoa,Creditors Control Account," 1,413.90 ",Multi-purpose Veh
09/01/2020,SW TRANSPORT,AMK Chauffeur Driven Cars & Minicoa,Creditors Control Account, 355.50 ,Multi-purpose Veh
09/01/2020,SW TRANSPORT,AMK Chauffeur Driven Cars & Minicoa,Creditors Control Account," 1,434.42 ",Multi-purpose Veh
09/01/2020,NW TRANSPORT,AMK Chauffeur Driven Cars & Minicoa,Creditors Control Account, 483.30 ,Multi-purpose Veh
09/01/2020,NW TRANSPORT,AMK Chauffeur Driven Cars & Minicoa,Creditors Control Account," 2,935.58 ",Multi-purpose Veh
09/01/2020,NW TRANSPORT,AMK Chauffeur Driven Cars & Minicoa,Creditors Control Account, 395.10 ,Multi-purpose Veh
09/01/2020,SW TRANSPORT,AMK Chauffeur Driven Cars & Minicoa,Creditors Control Account," 1,670.40 ",Multi-purpose Veh
09/01/2020,SW TRANSPORT,AMK Chauffeur Driven Cars & Minicoa,Creditors Control Account," 1,372.91 ",Multi-purpose Veh
09/01/2020,NW TRANSPORT,AMK Chauffeur Driven Cars & Minicoa,Creditors Control Account, 294.45 ,Multi-purpose Veh
09/01/2020,SW TRANSPORT,AMK Chauffeur Driven Cars & Minicoa,Creditors Control Account, 721.20 ,Multi-purpose Veh
09/01/2020,SW TRANSPORT,AMK Chauffeur Driven Cars & Minicoa,Creditors Control Account," 1,203.50 ",Multi-purpose Veh
09/01/2020,SE TRANSPORT,AMK Chauffeur Driven Cars & Minicoa,Creditors Control Account," 2,476.60 ",Multi-purpose Veh
09/01/2020,SE TRANSPORT,AMK Chauffeur Driven Cars & Minicoa,Creditors Control Account," 1,053.75 ",Multi-purpose Veh
09/01/2020,SW TRANSPORT,AMK Chauffeur Driven Cars & Minicoa,Creditors Control Account, 509.25 ,Multi-purpose Veh
09/01/2020,NW TRANSPORT,AMK Chauffeur Driven Cars & Minicoa,Creditors Control Account," 1,070.40 ",Multi-purpose Veh
09/01/2020,SW TRANSPORT,AMK Chauffeur Driven Cars & Minicoa,Creditors Control Account," 1,556.40 ",Multi-purpose Veh
09/01/2020,SW TRANSPORT,AMK Chauffeur Driven Cars & Minicoa,Creditors Control Account, 326.36 ,Multi-purpose Veh
09/01/2020,NW TRANSPORT,AMK Chauffeur Driven Cars & Minicoa,Creditors Control Account," 3,181.50 ",Multi-purpose Veh
09/01/2020,NW TRANSPORT,AMK Chauffeur Driven Cars & Minicoa,Creditors Control Account, 862.20 ,Multi-purpose Veh
09/01/2020,SW TRANSPORT,AMK Chauffeur Driven Cars & Minicoa,Creditors Control Account," 1,338.10 ",Multi-purpose Veh
09/01/2020,SE TRANSPORT,AMK Chauffeur Driven Cars & Minicoa,Creditors Control Account," 1,213.22 ",Multi-purpose Veh
09/01/2020,SW TRANSPORT,AMK Chauffeur Driven Cars & Minicoa,Creditors Control Account," 3,763.35 ",Multi-purpose Veh
09/01/2020,SW TRANSPORT,AMK Chauffeur Driven Cars & Minicoa,Creditors Control Account," 1,019.85 ",Multi-purpose Veh
09/01/2020,SW TRANSPORT,AMK Chauffeur Driven Cars & Minicoa,Creditors Control Account," 2,877.30 ",Multi-purpose Veh
09/01/2020,SW TRANSPORT,AMK Chauffeur Driven Cars & Minicoa,Creditors Control Account," 1,010.64 ",Multi-purpose Veh
09/01/2020,SW TRANSPORT,AMK Chauffeur Driven Cars & Minicoa,Creditors Control Account, 493.60 ,Multi-purpose Veh
09/01/2020,SW TRANSPORT,AMK Chauffeur Driven Cars & Minicoa,Creditors Control Account, 425.76 ,Multi-purpose Veh
09/01/2020,SW TRANSPORT,AMK Chauffeur Driven Cars & Minicoa,Creditors Control Account," 5,042.20 ",Multi-purpose Veh
09/01/2020,SW TRANSPORT,AMK Chauffeur Driven Cars & Minicoa,Creditors Control Account," 2,165.00 ",Multi-purpose Veh
14/01/2020,SW TRANSPORT,AMK Chauffeur Driven Cars & Minicoa,Creditors Control Account, 920.25 ,Multi-purpose Veh
14/01/2020,SW TRANSPORT,AMK Chauffeur Driven Cars & Minicoa,Creditors Control Account, 634.65 ,Multi-purpose Veh
14/01/2020,SW TRANSPORT,AMK Chauffeur Driven Cars & Minicoa,Creditors Control Account, 476.83 ,Multi-purpose Veh
14/01/2020,SW TRANSPORT,AMK Chauffeur Driven Cars & Minicoa,Creditors Control Account, 632.10 ,Multi-purpose Veh
09/01/2020,TRANSPT M/STRM-PRIM,AMK Chauffeur Driven Cars & Minicoa,Creditors Control Account, 974.66 ,Multi-purpose Veh
09/01/2020,TRANSPT M/STRM-SEC,AMK Chauffeur Driven Cars & Minicoa,Creditors Control Account," 1,166.59 ",Multi-purpose Veh
10/01/2020,NW TRANSPORT,AMK Chauffeur Driven Cars & Minicoa,Creditors Control Account," 3,319.02 ",Multi-purpose Veh
10/01/2020,NE TRANSPORT,AMK Chauffeur Driven Cars & Minicoa,Creditors Control Account, 684.60 ,Multi-purpose Veh
10/01/2020,NW TRANSPORT,AMK Chauffeur Driven Cars & Minicoa,Creditors Control Account," 1,575.95 ",Multi-purpose Veh
10/01/2020,NW TRANSPORT,AMK Chauffeur Driven Cars & Minicoa,Creditors Control Account, 375.84 ,Multi-purpose Veh
10/01/2020,SW TRANSPORT,AMK Chauffeur Driven Cars & Minicoa,Creditors Control Account," 3,055.14 ",Multi-purpose Veh
14/01/2020,NW TRANSPORT,AMK Chauffeur Driven Cars & Minicoa,Creditors Control Account," 2,421.92 ",Multi-purpose Veh
14/01/2020,SW TRANSPORT,AMK Chauffeur Driven Cars & Minicoa,Creditors Control Account, 760.05 ,Multi-purpose Veh
14/01/2020,SE TRANSPORT,AMK Chauffeur Driven Cars & Minicoa,Creditors Control Account," 3,266.21 ",Multi-purpose Veh
14/01/2020,SE TRANSPORT,AMK Chauffeur Driven Cars & Minicoa,Creditors Control Account, 648.62 ,Multi-purpose Veh
14/01/2020,SW TRANSPORT,AMK Chauffeur Driven Cars & Minicoa,Creditors Control Account, 648.64 ,Multi-purpose Veh
10/01/2020,SW TRANSPORT,AMK Chauffeur Driven Cars & Minicoa,Creditors Control Account, 570.00 ,Multi-purpose Veh
10/01/2020,NE TRANSPORT,AMK Chauffeur Driven Cars & Minicoa,Creditors Control Account, 916.76 ,Multi-purpose Veh
10/01/2020,NW TRANSPORT,AMK Chauffeur Driven Cars & Minicoa,Creditors Control Account, 812.88 ,Multi-purpose Veh
14/01/2020,SW TRANSPORT,AMK Chauffeur Driven Cars & Minicoa,Creditors Control Account, 874.45 ,Multi-purpose Veh
14/01/2020,SW TRANSPORT,AMK Chauffeur Driven Cars & Minicoa,Creditors Control Account," 1,891.62 ",Multi-purpose Veh
14/01/2020,SW TRANSPORT,AMK Chauffeur Driven Cars & Minicoa,Creditors Control Account, 809.61 ,Multi-purpose Veh
14/01/2020,SW TRANSPORT,AMK Chauffeur Driven Cars & Minicoa,Creditors Control Account," 4,796.25 ",Multi-purpose Veh
14/01/2020,NW TRANSPORT,AMK Chauffeur Driven Cars & Minicoa,Creditors Control Account, 375.10 ,Multi-purpose Veh
14/01/2020,SW TRANSPORT,AMK Chauffeur Driven Cars & Minicoa,Creditors Control Account, 288.30 ,Multi-purpose Veh
14/01/2020,SW TRANSPORT,AMK Chauffeur Driven Cars & Minicoa,Creditors Control Account, 440.10 ,Multi-purpose Veh
14/01/2020,SW TRANSPORT,AMK Chauffeur Driven Cars & Minicoa,Creditors Control Account," 1,257.45 ",Multi-purpose Veh
14/01/2020,SW TRANSPORT,AMK Chauffeur Driven Cars & Minicoa,Creditors Control Account," 1,623.75 ",Multi-purpose Veh
14/01/2020,SW TRANSPORT,AMK Chauffeur Driven Cars & Minicoa,Creditors Control Account," 1,524.44 ",Multi-purpose Veh
14/01/2020,SW TRANSPORT,AMK Chauffeur Driven Cars & Minicoa,Creditors Control Account, 258.60 ,Multi-purpose Veh
14/01/2020,SW TRANSPORT,AMK Chauffeur Driven Cars & Minicoa,Creditors Control Account, 462.21 ,Multi-purpose Veh
15/01/2020,NE TRANSPORT,AMK Chauffeur Driven Cars & Minicoa,Creditors Control Account," 2,318.18 ",Multi-purpose Veh
14/01/2020,SW TRANSPORT,AMK Chauffeur Driven Cars & Minicoa,Creditors Control Account," 1,678.95 ",Multi-purpose Veh
14/01/2020,SW TRANSPORT,AMK Chauffeur Driven Cars & Minicoa,Creditors Control Account," 5,819.04 ",Multi-purpose Veh
15/01/2020,NE TRANSPORT,AMK Chauffeur Driven Cars & Minicoa,Creditors Control Account, 550.90 ,Multi-purpose Veh
15/01/2020,SE TRANSPORT,AMK Chauffeur Driven Cars & Minicoa,Creditors Control Account," 1,144.98 ",Multi-purpose Veh
16/01/2020,NW TRANSPORT,AMK Chauffeur Driven Cars & Minicoa,Creditors Control Account, 855.84 ,Multi-purpose Veh
16/01/2020,SW TRANSPORT,AMK Chauffeur Driven Cars & Minicoa,Creditors Control Account, 419.06 ,Multi-purpose Veh
16/01/2020,SW TRANSPORT,AMK Chauffeur Driven Cars & Minicoa,Creditors Control Account, 374.95 ,Multi-purpose Veh
16/01/2020,NW TRANSPORT,AMK Chauffeur Driven Cars & Minicoa,Creditors Control Account, 855.83 ,Multi-purpose Veh
16/01/2020,NW TRANSPORT,AMK Chauffeur Driven Cars & Minicoa,Creditors Control Account," 2,573.20 ",Multi-purpose Veh
16/01/2020,NW TRANSPORT,AMK Chauffeur Driven Cars & Minicoa,Creditors Control Account, 727.60 ,Multi-purpose Veh
20/01/2020,NW TRANSPORT,AMK Chauffeur Driven Cars & Minicoa,Creditors Control Account," 2,535.00 ",Multi-purpose Veh
16/01/2020,SW TRANSPORT,AMK Chauffeur Driven Cars & Minicoa,Creditors Control Account, 419.06 ,Multi-purpose Veh
16/01/2020,NW TRANSPORT,AMK Chauffeur Driven Cars & Minicoa,Creditors Control Account," 2,315.88 ",Multi-purpose Veh
16/01/2020,NW TRANSPORT,AMK Chauffeur Driven Cars & Minicoa,Creditors Control Account, 654.84 ,Multi-purpose Veh
20/01/2020,SW TRANSPORT,AMK Chauffeur Driven Cars & Minicoa,Creditors Control Account," 1,073.15 ",Multi-purpose Veh
20/01/2020,SE TRANSPORT,AMK Chauffeur Driven Cars & Minicoa,Creditors Control Account, 900.00 ,Multi-purpose Veh
20/01/2020,LD-Aut Cntr Tm Staff,AMK Chauffeur Driven Cars & Minicoa,Creditors Control Account, 875.00 ,Multi-purpose Veh
20/01/2020,NE TRANSPORT,AMK Chauffeur Driven Cars & Minicoa,Creditors Control Account," 2,394.00 ",Multi-purpose Veh
20/01/2020,SE TRANSPORT,AMK Chauffeur Driven Cars & Minicoa,Creditors Control Account," 1,446.85 ",Multi-purpose Veh
20/01/2020,NW TRANSPORT,AMK Chauffeur Driven Cars & Minicoa,Creditors Control Account," 1,929.90 ",Multi-purpose Veh
20/01/2020,NW TRANSPORT,AMK Chauffeur Driven Cars & Minicoa,Creditors Control Account, 545.70 ,Multi-purpose Veh
20/01/2020,SW TRANSPORT,AMK Chauffeur Driven Cars & Minicoa,Creditors Control Account, 330.84 ,Multi-purpose Veh
23/01/2020,NE TRANSPORT,AMK Chauffeur Driven Cars & Minicoa,Creditors Control Account," 1,738.63 ",Multi-purpose Veh
23/01/2020,SW TRANSPORT,AMK Chauffeur Driven Cars & Minicoa,Creditors Control Account, 679.21 ,Multi-purpose Veh
23/01/2020,NE TRANSPORT,AMK Chauffeur Driven Cars & Minicoa,Creditors Control Account, 413.18 ,Multi-purpose Veh
23/01/2020,SW TRANSPORT,AMK Chauffeur Driven Cars & Minicoa,Creditors Control Account," 1,656.90 ",Multi-purpose Veh
27/01/2020,SW TRANSPORT,AMK Chauffeur Driven Cars & Minicoa,Creditors Control Account," 1,354.26 ",Multi-purpose Veh
27/01/2020,TRANSPT M/STRM-SEC,AMK Chauffeur Driven Cars & Minicoa,Creditors Control Account, 595.74 ,Multi-purpose Veh
27/01/2020,SW TRANSPORT,AMK Chauffeur Driven Cars & Minicoa,Creditors Control Account," 1,268.40 ",Multi-purpose Veh
27/01/2020,NW TRANSPORT,AMK Chauffeur Driven Cars & Minicoa,Creditors Control Account," 2,319.90 ",Multi-purpose Veh
27/01/2020,SW TRANSPORT,AMK Chauffeur Driven Cars & Minicoa,Creditors Control Account, 873.18 ,Multi-purpose Veh
27/01/2020,NE TRANSPORT,AMK Chauffeur Driven Cars & Minicoa,Creditors Control Account," 1,974.34 ",Multi-purpose Veh
27/01/2020,NE TRANSPORT,AMK Chauffeur Driven Cars & Minicoa,Creditors Control Account," 4,095.36 ",Multi-purpose Veh
27/01/2020,SW TRANSPORT,AMK Chauffeur Driven Cars & Minicoa,Creditors Control Account," 2,748.38 ",Multi-purpose Veh
27/01/2020,SW TRANSPORT,AMK Chauffeur Driven Cars & Minicoa,Creditors Control Account," 2,677.14 ",Multi-purpose Veh
27/01/2020,NW TRANSPORT,AMK Chauffeur Driven Cars & Minicoa,Creditors Control Account, 756.37 ,Multi-purpose Veh
27/01/2020,SW TRANSPORT,AMK Chauffeur Driven Cars & Minicoa,Creditors Control Account, 918.90 ,Multi-purpose Veh
27/01/2020,SW TRANSPORT,AMK Chauffeur Driven Cars & Minicoa,Creditors Control Account," 1,435.98 ",Multi-purpose Veh
05/02/2020,EAST CWD LAC CARE,AMK Chauffeur Driven Cars & Minicoa,Creditors Control Account, 750.00 ,Multi-purpose Veh
14/01/2020,SW TRANSPORT,AMK Chauffeur Driven Cars & Minicoa,Creditors Control Account," 3,616.74 ",Multi-purpose Veh
14/01/2020,SW TRANSPORT,AMK Chauffeur Driven Cars & Minicoa,Creditors Control Account, 948.24 ,Multi-purpose Veh
14/01/2020,SW TRANSPORT,AMK Chauffeur Driven Cars & Minicoa,Creditors Control Account," 2,234.04 ",Multi-purpose Veh
14/01/2020,SW TRANSPORT,AMK Chauffeur Driven Cars & Minicoa,Creditors Control Account, 319.32 ,Multi-purpose Veh
14/01/2020,SW TRANSPORT,AMK Chauffeur Driven Cars & Minicoa,Creditors Control Account," 3,781.65 ",Multi-purpose Veh
14/01/2020,SW TRANSPORT,AMK Chauffeur Driven Cars & Minicoa,Creditors Control Account," 2,608.35 ",Multi-purpose Veh
14/01/2020,SW TRANSPORT,AMK Chauffeur Driven Cars & Minicoa,Creditors Control Account," 2,308.05 ",Multi-purpose Veh
14/01/2020,SW TRANSPORT,AMK Chauffeur Driven Cars & Minicoa,Creditors Control Account," 1,470.31 ",Multi-purpose Veh
14/01/2020,SW TRANSPORT,AMK Chauffeur Driven Cars & Minicoa,Creditors Control Account," 2,403.40 ",Multi-purpose Veh
14/01/2020,NW TRANSPORT,AMK Chauffeur Driven Cars & Minicoa,Creditors Control Account, 923.75 ,Multi-purpose Veh
14/01/2020,SW TRANSPORT,AMK Chauffeur Driven Cars & Minicoa,Creditors Control Account," 1,185.00 ",Multi-purpose Veh
15/01/2020,SW TRANSPORT,AMK Chauffeur Driven Cars & Minicoa,Creditors Control Account, 905.62 ,Multi-purpose Veh
15/01/2020,SW TRANSPORT,AMK Chauffeur Driven Cars & Minicoa,Creditors Control Account, 550.90 ,Multi-purpose Veh
15/01/2020,TRANSPT M/STRM-PRIM,AMK Chauffeur Driven Cars & Minicoa,Creditors Control Account," 1,054.69 ",Multi-purpose Veh
15/01/2020,SE TRANSPORT,AMK Chauffeur Driven Cars & Minicoa,Creditors Control Account," 2,576.45 ",Multi-purpose Veh
14/02/2020,SW TRANSPORT,AMK Chauffeur Driven Cars & Minicoa,Creditors Control Account," 2,083.48 ",Multi-purpose Veh
16/01/2020,NW TRANSPORT,AMK Chauffeur Driven Cars & Minicoa,Creditors Control Account, 832.85 ,Multi-purpose Veh
14/02/2020,NW TRANSPORT,AMK Chauffeur Driven Cars & Minicoa,Creditors Control Account," 2,717.00 ",Multi-purpose Veh
14/02/2020,NW TRANSPORT,AMK Chauffeur Driven Cars & Minicoa,Creditors Control Account, 893.00 ,Multi-purpose Veh
14/02/2020,NE TRANSPORT,AMK Chauffeur Driven Cars & Minicoa,Creditors Control Account," 5,804.41 ",Multi-purpose Veh
14/02/2020,NW TRANSPORT,AMK Chauffeur Driven Cars & Minicoa,Creditors Control Account," 1,254.00 ",Multi-purpose Veh
14/02/2020,NW TRANSPORT,AMK Chauffeur Driven Cars & Minicoa,Creditors Control Account," 2,700.00 ",Multi-purpose Veh
14/02/2020,NW TRANSPORT,AMK Chauffeur Driven Cars & Minicoa,Creditors Control Account, 720.00 ,Multi-purpose Veh
14/02/2020,SW TRANSPORT,AMK Chauffeur Driven Cars & Minicoa,Creditors Control Account, 604.39 ,Multi-purpose Veh
14/02/2020,NE TRANSPORT,AMK Chauffeur Driven Cars & Minicoa,Creditors Control Account, 578.93 ,Multi-purpose Veh
14/02/2020,LD-Aut Cntr Tm Staff,AMK Chauffeur Driven Cars & Minicoa,Creditors Control Account, 875.00 ,Multi-purpose Veh
14/02/2020,SW TRANSPORT,AMK Chauffeur Driven Cars & Minicoa,Creditors Control Account," 2,622.20 ",Multi-purpose Veh
14/02/2020,SW TRANSPORT,AMK Chauffeur Driven Cars & Minicoa,Creditors Control Account, 659.40 ,Multi-purpose Veh
14/02/2020,NE TRANSPORT,AMK Chauffeur Driven Cars & Minicoa,Creditors Control Account," 2,461.88 ",Multi-purpose Veh
14/02/2020,SW TRANSPORT,AMK Chauffeur Driven Cars & Minicoa,Creditors Control Account," 3,192.00 ",Multi-purpose Veh
14/02/2020,NE TRANSPORT,AMK Chauffeur Driven Cars & Minicoa,Creditors Control Account, 800.00 ,Multi-purpose Veh
14/02/2020,SW TRANSPORT,AMK Chauffeur Driven Cars & Minicoa,Creditors Control Account," 1,359.32 ",Multi-purpose Veh
14/02/2020,SW TRANSPORT,AMK Chauffeur Driven Cars & Minicoa,Creditors Control Account," 2,700.60 ",Multi-purpose Veh
14/02/2020,SW TRANSPORT,AMK Chauffeur Driven Cars & Minicoa,Creditors Control Account, 560.00 ,Multi-purpose Veh
14/02/2020,SW TRANSPORT,AMK Chauffeur Driven Cars & Minicoa,Creditors Control Account, 864.00 ,Multi-purpose Veh
14/02/2020,SE TRANSPORT,AMK Chauffeur Driven Cars & Minicoa,Creditors Control Account," 1,140.00 ",Multi-purpose Veh
14/02/2020,SW TRANSPORT,AMK Chauffeur Driven Cars & Minicoa,Creditors Control Account," 2,227.20 ",Multi-purpose Veh
14/02/2020,NE TRANSPORT,AMK Chauffeur Driven Cars & Minicoa,Creditors Control Account," 2,505.45 ",Multi-purpose Veh
14/02/2020,SW TRANSPORT,AMK Chauffeur Driven Cars & Minicoa,Creditors Control Account," 4,073.52 ",Multi-purpose Veh
14/02/2020,NW TRANSPORT,AMK Chauffeur Driven Cars & Minicoa,Creditors Control Account," 4,242.00 ",Multi-purpose Veh
14/02/2020,SW TRANSPORT,AMK Chauffeur Driven Cars & Minicoa,Creditors Control Account," 1,214.59 ",Multi-purpose Veh
14/02/2020,NE TRANSPORT,AMK Chauffeur Driven Cars & Minicoa,Creditors Control Account," 3,090.40 ",Multi-purpose Veh
14/02/2020,NW TRANSPORT,AMK Chauffeur Driven Cars & Minicoa,Creditors Control Account," 4,204.09 ",Multi-purpose Veh
14/02/2020,NE TRANSPORT,AMK Chauffeur Driven Cars & Minicoa,Creditors Control Account," 3,192.00 ",Multi-purpose Veh
14/02/2020,SW TRANSPORT,AMK Chauffeur Driven Cars & Minicoa,Creditors Control Account," 1,401.36 ",Multi-purpose Veh
14/02/2020,NE TRANSPORT,AMK Chauffeur Driven Cars & Minicoa,Creditors Control Account, 978.00 ,Multi-purpose Veh
14/02/2020,NW TRANSPORT,AMK Chauffeur Driven Cars & Minicoa,Creditors Control Account," 1,184.16 ",Multi-purpose Veh
14/02/2020,NW TRANSPORT,AMK Chauffeur Driven Cars & Minicoa,Creditors Control Account, 339.12 ,Multi-purpose Veh
14/02/2020,NW TRANSPORT,AMK Chauffeur Driven Cars & Minicoa,Creditors Control Account," 1,149.60 ",Multi-purpose Veh
14/02/2020,NW TRANSPORT,AMK Chauffeur Driven Cars & Minicoa,Creditors Control Account," 2,002.52 ",Multi-purpose Veh
14/02/2020,NE TRANSPORT,AMK Chauffeur Driven Cars & Minicoa,Creditors Control Account, 669.20 ,Multi-purpose Veh
14/02/2020,SW TRANSPORT,AMK Chauffeur Driven Cars & Minicoa,Creditors Control Account," 1,214.59 ",Multi-purpose Veh
14/02/2020,SW TRANSPORT,AMK Chauffeur Driven Cars & Minicoa,Creditors Control Account," 2,157.43 ",Multi-purpose Veh
20/01/2020,NW TRANSPORT,AMK Chauffeur Driven Cars & Minicoa,Creditors Control Account, 675.65 ,Multi-purpose Veh
14/02/2020,TRANSPT M/STRM-PRIM,AMK Chauffeur Driven Cars & Minicoa,Creditors Control Account," 1,213.31 ",Multi-purpose Veh
14/02/2020,SW TRANSPORT,AMK Chauffeur Driven Cars & Minicoa,Creditors Control Account," 4,879.00 ",Multi-purpose Veh
14/02/2020,NW TRANSPORT,AMK Chauffeur Driven Cars & Minicoa,Creditors Control Account, 970.20 ,Multi-purpose Veh
14/02/2020,NW TRANSPORT,AMK Chauffeur Driven Cars & Minicoa,Creditors Control Account," 3,368.80 ",Multi-purpose Veh
14/02/2020,TRANSPT M/STRM-SEC,AMK Chauffeur Driven Cars & Minicoa,Creditors Control Account," 4,686.54 ",Multi-purpose Veh
14/02/2020,TRANSPT M/STRM-SEC,AMK Chauffeur Driven Cars & Minicoa,Creditors Control Account," 5,305.85 ",Multi-purpose Veh
14/02/2020,NW TRANSPORT,AMK Chauffeur Driven Cars & Minicoa,Creditors Control Account," 2,956.80 ",Multi-purpose Veh
14/02/2020,NW TRANSPORT,AMK Chauffeur Driven Cars & Minicoa,Creditors Control Account," 2,517.40 ",Multi-purpose Veh
14/02/2020,SW TRANSPORT,AMK Chauffeur Driven Cars & Minicoa,Creditors Control Account, 905.62 ,Multi-purpose Veh
14/02/2020,SW TRANSPORT,AMK Chauffeur Driven Cars & Minicoa,Creditors Control Account, 441.11 ,Multi-purpose Veh
14/02/2020,NW TRANSPORT,AMK Chauffeur Driven Cars & Minicoa,Creditors Control Account, 900.89 ,Multi-purpose Veh
14/02/2020,NW TRANSPORT,AMK Chauffeur Driven Cars & Minicoa,Creditors Control Account," 1,305.45 ",Multi-purpose Veh
14/02/2020,NW TRANSPORT,AMK Chauffeur Driven Cars & Minicoa,Creditors Control Account," 1,650.60 ",Multi-purpose Veh
14/02/2020,NW TRANSPORT,AMK Chauffeur Driven Cars & Minicoa,Creditors Control Account," 1,968.67 ",Multi-purpose Veh
14/02/2020,SW TRANSPORT,AMK Chauffeur Driven Cars & Minicoa,Creditors Control Account, 764.27 ,Multi-purpose Veh
14/02/2020,SW TRANSPORT,AMK Chauffeur Driven Cars & Minicoa,Creditors Control Account, 562.40 ,Multi-purpose Veh
14/02/2020,NW TRANSPORT,AMK Chauffeur Driven Cars & Minicoa,Creditors Control Account, 968.20 ,Multi-purpose Veh
14/02/2020,NW TRANSPORT,AMK Chauffeur Driven Cars & Minicoa,Creditors Control Account, 925.60 ,Multi-purpose Veh
14/02/2020,NW TRANSPORT,AMK Chauffeur Driven Cars & Minicoa,Creditors Control Account," 1,036.64 ",Multi-purpose Veh
14/02/2020,NW TRANSPORT,AMK Chauffeur Driven Cars & Minicoa,Creditors Control Account," 1,413.00 ",Multi-purpose Veh
14/02/2020,TRANSPT M/STRM-SEC,AMK Chauffeur Driven Cars & Minicoa,Creditors Control Account," 1,641.69 ",Multi-purpose Veh
14/02/2020,PLD TRANSITION,AMK Chauffeur Driven Cars & Minicoa,Creditors Control Account, 525.00 ,Multi-purpose Veh
14/02/2020,SW TRANSPORT,AMK Chauffeur Driven Cars & Minicoa,Creditors Control Account," 1,322.20 ",Multi-purpose Veh
14/02/2020,NW TRANSPORT,AMK Chauffeur Driven Cars & Minicoa,Creditors Control Account," 3,430.80 ",Multi-purpose Veh
14/02/2020,NW TRANSPORT,AMK Chauffeur Driven Cars & Minicoa,Creditors Control Account, 666.24 ,Multi-purpose Veh
14/02/2020,NW TRANSPORT,AMK Chauffeur Driven Cars & Minicoa,Creditors Control Account," 6,197.63 ",Multi-purpose Veh
14/02/2020,SW TRANSPORT,AMK Chauffeur Driven Cars & Minicoa,Creditors Control Account, 441.37 ,Multi-purpose Veh
23/01/2020,SW TRANSPORT,AMK Chauffeur Driven Cars & Minicoa,Creditors Control Account, 413.18 ,Multi-purpose Veh
14/02/2020,NW TRANSPORT,AMK Chauffeur Driven Cars & Minicoa,Creditors Control Account," 1,765.86 ",Multi-purpose Veh
14/02/2020,SW TRANSPORT,AMK Chauffeur Driven Cars & Minicoa,Creditors Control Account," 3,836.40 ",Multi-purpose Veh
14/02/2020,NW TRANSPORT,AMK Chauffeur Driven Cars & Minicoa,Creditors Control Account," 4,078.60 ",Multi-purpose Veh
14/02/2020,NW TRANSPORT,AMK Chauffeur Driven Cars & Minicoa,Creditors Control Account," 1,167.80 ",Multi-purpose Veh
14/02/2020,SW TRANSPORT,AMK Chauffeur Driven Cars & Minicoa,Creditors Control Account, 474.00 ,Multi-purpose Veh
14/02/2020,SE TRANSPORT,AMK Chauffeur Driven Cars & Minicoa,Creditors Control Account," 1,617.62 ",Multi-purpose Veh
14/02/2020,SW TRANSPORT,AMK Chauffeur Driven Cars & Minicoa,Creditors Control Account," 3,191.52 ",Multi-purpose Veh
14/02/2020,SW TRANSPORT,AMK Chauffeur Driven Cars & Minicoa,Creditors Control Account, 456.40 ,Multi-purpose Veh
14/02/2020,NW TRANSPORT,AMK Chauffeur Driven Cars & Minicoa,Creditors Control Account," 2,101.27 ",Multi-purpose Veh
14/02/2020,SW TRANSPORT,AMK Chauffeur Driven Cars & Minicoa,Creditors Control Account, 501.12 ,Multi-purpose Veh
14/02/2020,SW TRANSPORT,AMK Chauffeur Driven Cars & Minicoa,Creditors Control Account, 550.90 ,Multi-purpose Veh
14/02/2020,NW TRANSPORT,AMK Chauffeur Driven Cars & Minicoa,Creditors Control Account, 681.40 ,Multi-purpose Veh
14/02/2020,TRANSPT M/STRM-SEC,AMK Chauffeur Driven Cars & Minicoa,Creditors Control Account," 4,895.92 ",Multi-purpose Veh
14/02/2020,SW TRANSPORT,AMK Chauffeur Driven Cars & Minicoa,Creditors Control Account," 5,017.80 ",Multi-purpose Veh
14/02/2020,SW TRANSPORT,AMK Chauffeur Driven Cars & Minicoa,Creditors Control Account, 250.72 ,Multi-purpose Veh
14/02/2020,SE TRANSPORT,AMK Chauffeur Driven Cars & Minicoa,Creditors Control Account, 951.60 ,Multi-purpose Veh
14/02/2020,NW TRANSPORT,AMK Chauffeur Driven Cars & Minicoa,Creditors Control Account, 727.60 ,Multi-purpose Veh
14/02/2020,NW TRANSPORT,AMK Chauffeur Driven Cars & Minicoa,Creditors Control Account, 336.88 ,Multi-purpose Veh
14/02/2020,NW TRANSPORT,AMK Chauffeur Driven Cars & Minicoa,Creditors Control Account," 2,484.16 ",Multi-purpose Veh
14/02/2020,NW TRANSPORT,AMK Chauffeur Driven Cars & Minicoa,Creditors Control Account," 4,047.84 ",Multi-purpose Veh
14/02/2020,NW TRANSPORT,AMK Chauffeur Driven Cars & Minicoa,Creditors Control Account, 472.60 ,Multi-purpose Veh
14/02/2020,NW TRANSPORT,AMK Chauffeur Driven Cars & Minicoa,Creditors Control Account, 501.44 ,Multi-purpose Veh
14/02/2020,SW TRANSPORT,AMK Chauffeur Driven Cars & Minicoa,Creditors Control Account," 1,830.55 ",Multi-purpose Veh
14/02/2020,SE TRANSPORT,AMK Chauffeur Driven Cars & Minicoa,Creditors Control Account," 3,223.07 ",Multi-purpose Veh
14/02/2020,NW TRANSPORT,AMK Chauffeur Driven Cars & Minicoa,Creditors Control Account," 2,573.20 ",Multi-purpose Veh
14/02/2020,NW TRANSPORT,AMK Chauffeur Driven Cars & Minicoa,Creditors Control Account, 644.40 ,Multi-purpose Veh
14/02/2020,NW TRANSPORT,AMK Chauffeur Driven Cars & Minicoa,Creditors Control Account," 3,422.20 ",Multi-purpose Veh
14/02/2020,SW TRANSPORT,AMK Chauffeur Driven Cars & Minicoa,Creditors Control Account," 1,098.48 ",Multi-purpose Veh
14/02/2020,SW TRANSPORT,AMK Chauffeur Driven Cars & Minicoa,Creditors Control Account," 1,232.91 ",Multi-purpose Veh
14/02/2020,SW TRANSPORT,AMK Chauffeur Driven Cars & Minicoa,Creditors Control Account," 2,264.80 ",Multi-purpose Veh
14/02/2020,SW TRANSPORT,AMK Chauffeur Driven Cars & Minicoa,Creditors Control Account," 1,784.14 ",Multi-purpose Veh
14/02/2020,SW TRANSPORT,AMK Chauffeur Driven Cars & Minicoa,Creditors Control Account," 1,478.09 ",Multi-purpose Veh
14/02/2020,NW TRANSPORT,AMK Chauffeur Driven Cars & Minicoa,Creditors Control Account," 2,648.60 ",Multi-purpose Veh
14/02/2020,NW TRANSPORT,AMK Chauffeur Driven Cars & Minicoa,Creditors Control Account," 1,083.84 ",Multi-purpose Veh
14/02/2020,SW TRANSPORT,AMK Chauffeur Driven Cars & Minicoa,Creditors Control Account, 635.77 ,Multi-purpose Veh
14/02/2020,SW TRANSPORT,AMK Chauffeur Driven Cars & Minicoa,Creditors Control Account," 1,676.60 ",Multi-purpose Veh
14/02/2020,NW TRANSPORT,AMK Chauffeur Driven Cars & Minicoa,Creditors Control Account," 1,050.00 ",Multi-purpose Veh
14/02/2020,SW TRANSPORT,AMK Chauffeur Driven Cars & Minicoa,Creditors Control Account," 3,704.57 ",Multi-purpose Veh
14/02/2020,SE TRANSPORT,AMK Chauffeur Driven Cars & Minicoa,Creditors Control Account," 5,352.96 ",Multi-purpose Veh
14/02/2020,SW TRANSPORT,AMK Chauffeur Driven Cars & Minicoa,Creditors Control Account," 7,758.72 ",Multi-purpose Veh
14/02/2020,SE TRANSPORT,AMK Chauffeur Driven Cars & Minicoa,Creditors Control Account," 3,943.87 ",Multi-purpose Veh
14/02/2020,SW TRANSPORT,AMK Chauffeur Driven Cars & Minicoa,Creditors Control Account, 999.36 ,Multi-purpose Veh
14/02/2020,SE TRANSPORT,AMK Chauffeur Driven Cars & Minicoa,Creditors Control Account," 4,354.93 ",Multi-purpose Veh
14/02/2020,NE TRANSPORT,AMK Chauffeur Driven Cars & Minicoa,Creditors Control Account," 1,222.36 ",Multi-purpose Veh
14/02/2020,NW TRANSPORT,AMK Chauffeur Driven Cars & Minicoa,Creditors Control Account," 3,229.23 ",Multi-purpose Veh
14/02/2020,SW TRANSPORT,AMK Chauffeur Driven Cars & Minicoa,Creditors Control Account," 2,236.40 ",Multi-purpose Veh
14/02/2020,SW TRANSPORT,AMK Chauffeur Driven Cars & Minicoa,Creditors Control Account, 535.44 ,Multi-purpose Veh
14/02/2020,NW TRANSPORT,AMK Chauffeur Driven Cars & Minicoa,Creditors Control Account," 4,609.20 ",Multi-purpose Veh
14/02/2020,TRANSPT M/STRM-PRIM,AMK Chauffeur Driven Cars & Minicoa,Creditors Control Account," 1,406.24 ",Multi-purpose Veh
14/02/2020,SW TRANSPORT,AMK Chauffeur Driven Cars & Minicoa,Creditors Control Account, 586.80 ,Multi-purpose Veh
14/02/2020,SW TRANSPORT,AMK Chauffeur Driven Cars & Minicoa,Creditors Control Account," 1,269.20 ",Multi-purpose Veh
14/02/2020,SW TRANSPORT,AMK Chauffeur Driven Cars & Minicoa,Creditors Control Account," 1,737.60 ",Multi-purpose Veh
14/02/2020,SW TRANSPORT,AMK Chauffeur Driven Cars & Minicoa,Creditors Control Account," 3,569.52 ",Multi-purpose Veh
14/02/2020,SW TRANSPORT,AMK Chauffeur Driven Cars & Minicoa,Creditors Control Account, 390.85 ,Multi-purpose Veh
14/02/2020,SW TRANSPORT,AMK Chauffeur Driven Cars & Minicoa,Creditors Control Account," 5,042.20 ",Multi-purpose Veh
14/02/2020,SW TRANSPORT,AMK Chauffeur Driven Cars & Minicoa,Creditors Control Account," 1,912.56 ",Multi-purpose Veh
14/02/2020,NE TRANSPORT,AMK Chauffeur Driven Cars & Minicoa,Creditors Control Account," 3,673.92 ",Multi-purpose Veh
14/02/2020,SE TRANSPORT,AMK Chauffeur Driven Cars & Minicoa,Creditors Control Account," 3,435.28 ",Multi-purpose Veh
14/02/2020,SE TRANSPORT,AMK Chauffeur Driven Cars & Minicoa,Creditors Control Account," 1,526.64 ",Multi-purpose Veh
14/02/2020,SW TRANSPORT,AMK Chauffeur Driven Cars & Minicoa,Creditors Control Account," 2,238.60 ",Multi-purpose Veh
14/02/2020,SW TRANSPORT,AMK Chauffeur Driven Cars & Minicoa,Creditors Control Account," 3,477.80 ",Multi-purpose Veh
14/02/2020,SW TRANSPORT,AMK Chauffeur Driven Cars & Minicoa,Creditors Control Account, 915.85 ,Multi-purpose Veh
14/02/2020,NW TRANSPORT,AMK Chauffeur Driven Cars & Minicoa,Creditors Control Account," 3,405.59 ",Multi-purpose Veh
14/02/2020,SW TRANSPORT,AMK Chauffeur Driven Cars & Minicoa,Creditors Control Account, 961.61 ,Multi-purpose Veh
14/02/2020,NW TRANSPORT,AMK Chauffeur Driven Cars & Minicoa,Creditors Control Account, 526.80 ,Multi-purpose Veh
14/02/2020,SW TRANSPORT,AMK Chauffeur Driven Cars & Minicoa,Creditors Control Account, 263.40 ,Multi-purpose Veh
14/02/2020,SW TRANSPORT,AMK Chauffeur Driven Cars & Minicoa,Creditors Control Account," 2,056.75 ",Multi-purpose Veh
14/02/2020,NE TRANSPORT,AMK Chauffeur Driven Cars & Minicoa,Creditors Control Account," 5,151.45 ",Multi-purpose Veh
14/02/2020,NE TRANSPORT,AMK Chauffeur Driven Cars & Minicoa,Creditors Control Account," 1,014.40 ",Multi-purpose Veh
14/02/2020,SW TRANSPORT,AMK Chauffeur Driven Cars & Minicoa,Creditors Control Account," 3,077.40 ",Multi-purpose Veh
14/02/2020,SW TRANSPORT,AMK Chauffeur Driven Cars & Minicoa,Creditors Control Account, 846.20 ,Multi-purpose Veh
14/02/2020,NW TRANSPORT,AMK Chauffeur Driven Cars & Minicoa,Creditors Control Account, 392.59 ,Multi-purpose Veh
14/02/2020,NW TRANSPORT,AMK Chauffeur Driven Cars & Minicoa,Creditors Control Account," 1,543.22 ",Multi-purpose Veh
14/02/2020,SW TRANSPORT,AMK Chauffeur Driven Cars & Minicoa,Creditors Control Account," 4,822.32 ",Multi-purpose Veh
14/02/2020,SW TRANSPORT,AMK Chauffeur Driven Cars & Minicoa,Creditors Control Account," 1,264.32 ",Multi-purpose Veh
14/02/2020,SW TRANSPORT,AMK Chauffeur Driven Cars & Minicoa,Creditors Control Account, 384.40 ,Multi-purpose Veh
14/02/2020,SW TRANSPORT,AMK Chauffeur Driven Cars & Minicoa,Creditors Control Account," 1,250.98 ",Multi-purpose Veh
14/02/2020,NW TRANSPORT,AMK Chauffeur Driven Cars & Minicoa,Creditors Control Account, 507.20 ,Multi-purpose Veh
27/01/2020,WEST CWD NONLAC CARE,AMK Chauffeur Driven Cars & Minicoa,Creditors Control Account, 310.00 ,Multi-purpose Veh
27/01/2020,SW TRANSPORT,AMK Chauffeur Driven Cars & Minicoa,Creditors Control Account, 749.52 ,Multi-purpose Veh
27/01/2020,SW TRANSPORT,AMK Chauffeur Driven Cars & Minicoa,Creditors Control Account, 652.02 ,Multi-purpose Veh
19/02/2020,NW TRANSPORT,AMK Chauffeur Driven Cars & Minicoa,Creditors Control Account," 2,725.27 ",Multi-purpose Veh
19/02/2020,SW TRANSPORT,AMK Chauffeur Driven Cars & Minicoa,Creditors Control Account," 3,100.80 ",Multi-purpose Veh
19/02/2020,NW TRANSPORT,AMK Chauffeur Driven Cars & Minicoa,Creditors Control Account," 3,520.00 ",Multi-purpose Veh
19/02/2020,NW TRANSPORT,AMK Chauffeur Driven Cars & Minicoa,Creditors Control Account, 769.42 ,Multi-purpose Veh
14/02/2020,TRANSPT M/STRM-SEC,AMK Chauffeur Driven Cars & Minicoa,Creditors Control Account, 916.52 ,Multi-purpose Veh
14/02/2020,SW TRANSPORT,AMK Chauffeur Driven Cars & Minicoa,Creditors Control Account," 1,157.87 ",Multi-purpose Veh
14/02/2020,NW TRANSPORT,AMK Chauffeur Driven Cars & Minicoa,Creditors Control Account," 2,964.00 ",Multi-purpose Veh
19/02/2020,SW TRANSPORT,AMK Chauffeur Driven Cars & Minicoa,Creditors Control Account, 723.08 ,Multi-purpose Veh
19/02/2020,SW TRANSPORT,AMK Chauffeur Driven Cars & Minicoa,Creditors Control Account, 957.60 ,Multi-purpose Veh
19/02/2020,NW TRANSPORT,AMK Chauffeur Driven Cars & Minicoa,Creditors Control Account," 3,558.65 ",Multi-purpose Veh
19/02/2020,NW TRANSPORT,AMK Chauffeur Driven Cars & Minicoa,Creditors Control Account," 1,004.74 ",Multi-purpose Veh
14/02/2020,SE TRANSPORT,AMK Chauffeur Driven Cars & Minicoa,Creditors Control Account," 1,832.68 ",Multi-purpose Veh
14/02/2020,SW TRANSPORT,AMK Chauffeur Driven Cars & Minicoa,Creditors Control Account, 760.00 ,Multi-purpose Veh
14/02/2020,SW TRANSPORT,AMK Chauffeur Driven Cars & Minicoa,Creditors Control Account, 679.00 ,Multi-purpose Veh
14/02/2020,NE TRANSPORT,AMK Chauffeur Driven Cars & Minicoa,Creditors Control Account, 466.88 ,Multi-purpose Veh
14/02/2020,NE TRANSPORT,AMK Chauffeur Driven Cars & Minicoa,Creditors Control Account," 3,014.09 ",Multi-purpose Veh
19/02/2020,SW TRANSPORT,AMK Chauffeur Driven Cars & Minicoa,Creditors Control Account, 624.84 ,Multi-purpose Veh
21/02/2020,SW TRANSPORT,AMK Chauffeur Driven Cars & Minicoa,Creditors Control Account," 3,042.20 ",Multi-purpose Veh
19/02/2020,NW TRANSPORT,AMK Chauffeur Driven Cars & Minicoa,Creditors Control Account," 1,350.00 ",Multi-purpose Veh
21/02/2020,SW TRANSPORT,AMK Chauffeur Driven Cars & Minicoa,Creditors Control Account, 736.05 ,Multi-purpose Veh
21/02/2020,SW TRANSPORT,AMK Chauffeur Driven Cars & Minicoa,Creditors Control Account," 2,281.65 ",Multi-purpose Veh
21/02/2020,SW TRANSPORT,AMK Chauffeur Driven Cars & Minicoa,Creditors Control Account, 525.00 ,Multi-purpose Veh
21/02/2020,SW TRANSPORT,AMK Chauffeur Driven Cars & Minicoa,Creditors Control Account," 1,128.61 ",Multi-purpose Veh
21/02/2020,PLD TRANSITION,AMK Chauffeur Driven Cars & Minicoa,Creditors Control Account," 1,056.39 ",Multi-purpose Veh
21/02/2020,PLD TRANSITION,AMK Chauffeur Driven Cars & Minicoa,Creditors Control Account, 287.50 ,Multi-purpose Veh
21/02/2020,SW TRANSPORT,AMK Chauffeur Driven Cars & Minicoa,Creditors Control Account," 3,042.20 ",Multi-purpose Veh
21/02/2020,PLD TRANSITION,AMK Chauffeur Driven Cars & Minicoa,Creditors Control Account, 964.53 ,Multi-purpose Veh
14/02/2020,NW TRANSPORT,AMK Chauffeur Driven Cars & Minicoa,Creditors Control Account," 4,995.40 ",Multi-purpose Veh
14/02/2020,TRANSPT M/STRM-PRIM,AMK Chauffeur Driven Cars & Minicoa,Creditors Control Account," 2,712.25 ",Multi-purpose Veh
14/02/2020,NW TRANSPORT,AMK Chauffeur Driven Cars & Minicoa,Creditors Control Account, 952.60 ,Multi-purpose Veh
14/02/2020,NW TRANSPORT,AMK Chauffeur Driven Cars & Minicoa,Creditors Control Account, 836.20 ,Multi-purpose Veh
26/02/2020,EAST CWD LAC CARE,AMK Chauffeur Driven Cars & Minicoa,Creditors Control Account, 750.00 ,Multi-purpose Veh
25/02/2020,SE TRANSPORT,AMK Chauffeur Driven Cars & Minicoa,Creditors Control Account, 327.79 ,Multi-purpose Veh
26/02/2020,NW TRANSPORT,AMK Chauffeur Driven Cars & Minicoa,Creditors Control Account," 2,541.40 ",Multi-purpose Veh
26/02/2020,NW TRANSPORT,AMK Chauffeur Driven Cars & Minicoa,Creditors Control Account, 868.40 ,Multi-purpose Veh
25/02/2020,NW TRANSPORT,AMK Chauffeur Driven Cars & Minicoa,Creditors Control Account," 3,502.06 ",Multi-purpose Veh
25/02/2020,SW TRANSPORT,AMK Chauffeur Driven Cars & Minicoa,Creditors Control Account," 1,503.91 ",Multi-purpose Veh
14/02/2020,NW TRANSPORT,AMK Chauffeur Driven Cars & Minicoa,Creditors Control Account, 633.00 ,Multi-purpose Veh
14/02/2020,NE TRANSPORT,AMK Chauffeur Driven Cars & Minicoa,Creditors Control Account," 2,318.18 ",Multi-purpose Veh
14/02/2020,NE TRANSPORT,AMK Chauffeur Driven Cars & Minicoa,Creditors Control Account, 550.90 ,Multi-purpose Veh
14/02/2020,NW TRANSPORT,AMK Chauffeur Driven Cars & Minicoa,Creditors Control Account," 2,409.60 ",Multi-purpose Veh
14/02/2020,SW TRANSPORT,AMK Chauffeur Driven Cars & Minicoa,Creditors Control Account, 435.15 ,Multi-purpose Veh
14/02/2020,TRANSPT M/STRM-SEC,AMK Chauffeur Driven Cars & Minicoa,Creditors Control Account," 4,005.40 ",Multi-purpose Veh
14/02/2020,SW TRANSPORT,AMK Chauffeur Driven Cars & Minicoa,Creditors Control Account," 1,359.80 ",Multi-purpose Veh
14/02/2020,SW TRANSPORT,AMK Chauffeur Driven Cars & Minicoa,Creditors Control Account, 658.13 ,Multi-purpose Veh
14/02/2020,SE TRANSPORT,AMK Chauffeur Driven Cars & Minicoa,Creditors Control Account, 613.64 ,Multi-purpose Veh
14/02/2020,WEST CWD NONLAC CARE,AMK Chauffeur Driven Cars & Minicoa,Creditors Control Account," 1,178.61 ",Multi-purpose Veh
14/02/2020,WEST CWD NONLAC CARE,AMK Chauffeur Driven Cars & Minicoa,Creditors Control Account, 382.13 ,Multi-purpose Veh
14/02/2020,SW TRANSPORT,AMK Chauffeur Driven Cars & Minicoa,Creditors Control Account, 502.73 ,Multi-purpose Veh
14/02/2020,SW TRANSPORT,AMK Chauffeur Driven Cars & Minicoa,Creditors Control Account," 2,075.20 ",Multi-purpose Veh
14/02/2020,NW TRANSPORT,AMK Chauffeur Driven Cars & Minicoa,Creditors Control Account," 2,278.80 ",Multi-purpose Veh
14/02/2020,NW TRANSPORT,AMK Chauffeur Driven Cars & Minicoa,Creditors Control Account," 3,273.40 ",Multi-purpose Veh
14/02/2020,SW TRANSPORT,AMK Chauffeur Driven Cars & Minicoa,Creditors Control Account," 5,352.74 ",Multi-purpose Veh
14/02/2020,SW TRANSPORT,AMK Chauffeur Driven Cars & Minicoa,Creditors Control Account," 1,347.52 ",Multi-purpose Veh
14/02/2020,SW TRANSPORT,AMK Chauffeur Driven Cars & Minicoa,Creditors Control Account, 776.60 ,Multi-purpose Veh
14/02/2020,SW TRANSPORT,AMK Chauffeur Driven Cars & Minicoa,Creditors Control Account," 2,101.80 ",Multi-purpose Veh
14/02/2020,SW TRANSPORT,AMK Chauffeur Driven Cars & Minicoa,Creditors Control Account," 1,885.20 ",Multi-purpose Veh
14/02/2020,SW TRANSPORT,AMK Chauffeur Driven Cars & Minicoa,Creditors Control Account, 893.52 ,Multi-purpose Veh
14/02/2020,NW TRANSPORT,AMK Chauffeur Driven Cars & Minicoa,Creditors Control Account, 501.12 ,Multi-purpose Veh
14/02/2020,NE TRANSPORT,AMK Chauffeur Driven Cars & Minicoa,Creditors Control Account," 5,460.48 ",Multi-purpose Veh
14/02/2020,SE TRANSPORT,AMK Chauffeur Driven Cars & Minicoa,Creditors Control Account," 1,308.96 ",Multi-purpose Veh
14/02/2020,SE TRANSPORT,AMK Chauffeur Driven Cars & Minicoa,Creditors Control Account," 3,991.31 ",Multi-purpose Veh
14/02/2020,SE TRANSPORT,AMK Chauffeur Driven Cars & Minicoa,Creditors Control Account," 1,226.88 ",Multi-purpose Veh
14/02/2020,SW TRANSPORT,AMK Chauffeur Driven Cars & Minicoa,Creditors Control Account," 1,960.43 ",Multi-purpose Veh
14/02/2020,SE TRANSPORT,AMK Chauffeur Driven Cars & Minicoa,Creditors Control Account, 864.84 ,Multi-purpose Veh
14/02/2020,SW TRANSPORT,AMK Chauffeur Driven Cars & Minicoa,Creditors Control Account, 864.84 ,Multi-purpose Veh
14/02/2020,SW TRANSPORT,AMK Chauffeur Driven Cars & Minicoa,Creditors Control Account," 1,013.40 ",Multi-purpose Veh
14/02/2020,SW TRANSPORT,AMK Chauffeur Driven Cars & Minicoa,Creditors Control Account," 1,227.00 ",Multi-purpose Veh
14/02/2020,SW TRANSPORT,AMK Chauffeur Driven Cars & Minicoa,Creditors Control Account," 6,395.00 ",Multi-purpose Veh
14/02/2020,SW TRANSPORT,AMK Chauffeur Driven Cars & Minicoa,Creditors Control Account," 1,384.40 ",Multi-purpose Veh
14/02/2020,NW TRANSPORT,AMK Chauffeur Driven Cars & Minicoa,Creditors Control Account," 1,174.03 ",Multi-purpose Veh
14/02/2020,SW TRANSPORT,AMK Chauffeur Driven Cars & Minicoa,Creditors Control Account," 1,279.00 ",Multi-purpose Veh
14/02/2020,SW TRANSPORT,AMK Chauffeur Driven Cars & Minicoa,Creditors Control Account, 842.80 ,Multi-purpose Veh
14/02/2020,SW TRANSPORT,AMK Chauffeur Driven Cars & Minicoa,Creditors Control Account," 1,580.00 ",Multi-purpose Veh
28/02/2020,PLD TRANSITION,AMK Chauffeur Driven Cars & Minicoa,Creditors Control Account, 275.00 ,Multi-purpose Veh
28/02/2020,PLD TRANSITION,AMK Chauffeur Driven Cars & Minicoa,Creditors Control Account," 1,010.46 ",Multi-purpose Veh
28/02/2020,SW TRANSPORT,AMK Chauffeur Driven Cars & Minicoa,Creditors Control Account," 1,079.54 ",Multi-purpose Veh
28/02/2020,SW TRANSPORT,AMK Chauffeur Driven Cars & Minicoa,Creditors Control Account, 275.00 ,Multi-purpose Veh
05/03/2020,WEST CWD LAC CARE,AMK Chauffeur Driven Cars & Minicoa,Creditors Control Account, 510.00 ,Multi-purpose Veh
19/02/2020,SE TRANSPORT,AMK Chauffeur Driven Cars & Minicoa,Creditors Control Account, 850.00 ,Multi-purpose Veh
19/02/2020,NE TRANSPORT,AMK Chauffeur Driven Cars & Minicoa,Creditors Control Account," 1,508.44 ",Multi-purpose Veh
21/02/2020,PLD TRANSITION,AMK Chauffeur Driven Cars & Minicoa,Creditors Control Account, 688.95 ,Multi-purpose Veh
21/02/2020,SW TRANSPORT,AMK Chauffeur Driven Cars & Minicoa,Creditors Control Account," 1,995.00 ",Multi-purpose Veh
21/02/2020,SW TRANSPORT,AMK Chauffeur Driven Cars & Minicoa,Creditors Control Account, 287.50 ,Multi-purpose Veh
21/02/2020,SW TRANSPORT,AMK Chauffeur Driven Cars & Minicoa,Creditors Control Account," 1,030.47 ",Multi-purpose Veh
21/02/2020,PLD TRANSITION,AMK Chauffeur Driven Cars & Minicoa,Creditors Control Account, 262.50 ,Multi-purpose Veh
21/02/2020,SW TRANSPORT,AMK Chauffeur Driven Cars & Minicoa,Creditors Control Account, 262.50 ,Multi-purpose Veh
10/03/2020,SW TRANSPORT,AMK Chauffeur Driven Cars & Minicoa,Creditors Control Account," 2,352.00 ",Multi-purpose Veh
10/03/2020,NW TRANSPORT,AMK Chauffeur Driven Cars & Minicoa,Creditors Control Account," 2,145.00 ",Multi-purpose Veh
10/03/2020,NW TRANSPORT,AMK Chauffeur Driven Cars & Minicoa,Creditors Control Account, 705.00 ,Multi-purpose Veh
10/03/2020,TRANSPT M/STRM-SEC,AMK Chauffeur Driven Cars & Minicoa,Creditors Control Account," 3,004.05 ",Multi-purpose Veh
10/03/2020,NW TRANSPORT,AMK Chauffeur Driven Cars & Minicoa,Creditors Control Account, 990.00 ,Multi-purpose Veh
10/03/2020,PLD TRANSITION,AMK Chauffeur Driven Cars & Minicoa,Creditors Control Account, 500.00 ,Multi-purpose Veh
10/03/2020,NE TRANSPORT,AMK Chauffeur Driven Cars & Minicoa,Creditors Control Account," 2,394.00 ",Multi-purpose Veh
10/03/2020,NW TRANSPORT,AMK Chauffeur Driven Cars & Minicoa,Creditors Control Account," 2,340.00 ",Multi-purpose Veh
10/03/2020,TRANSPT M/STRM-SEC,AMK Chauffeur Driven Cars & Minicoa,Creditors Control Account," 1,209.98 ",Multi-purpose Veh
10/03/2020,SW TRANSPORT,AMK Chauffeur Driven Cars & Minicoa,Creditors Control Account, 648.00 ,Multi-purpose Veh
10/03/2020,SW TRANSPORT,AMK Chauffeur Driven Cars & Minicoa,Creditors Control Account," 2,066.70 ",Multi-purpose Veh
26/02/2020,SW TRANSPORT,AMK Chauffeur Driven Cars & Minicoa,Creditors Control Account, 425.00 ,Multi-purpose Veh
27/02/2020,WEST CWD NONLAC CARE,AMK Chauffeur Driven Cars & Minicoa,Creditors Control Account, 480.00 ,Multi-purpose Veh
10/03/2020,NW TRANSPORT,AMK Chauffeur Driven Cars & Minicoa,Creditors Control Account," 2,250.00 ",Multi-purpose Veh
10/03/2020,NW TRANSPORT,AMK Chauffeur Driven Cars & Minicoa,Creditors Control Account, 600.00 ,Multi-purpose Veh
10/03/2020,NW TRANSPORT,AMK Chauffeur Driven Cars & Minicoa,Creditors Control Account," 3,319.02 ",Multi-purpose Veh
10/03/2020,PLD TRANSITION,AMK Chauffeur Driven Cars & Minicoa,Creditors Control Account," 1,900.00 ",Multi-purpose Veh
10/03/2020,TRANSPT M/STRM-PRIM,AMK Chauffeur Driven Cars & Minicoa,Creditors Control Account, 931.27 ,Multi-purpose Veh
10/03/2020,SW TRANSPORT,AMK Chauffeur Driven Cars & Minicoa,Creditors Control Account," 2,448.00 ",Multi-purpose Veh
10/03/2020,SE TRANSPORT,AMK Chauffeur Driven Cars & Minicoa,Creditors Control Account," 1,285.51 ",Multi-purpose Veh
10/03/2020,SW TRANSPORT,AMK Chauffeur Driven Cars & Minicoa,Creditors Control Account," 1,234.49 ",Multi-purpose Veh
10/03/2020,SE TRANSPORT,AMK Chauffeur Driven Cars & Minicoa,Creditors Control Account, 900.00 ,Multi-purpose Veh
10/03/2020,TRANSPT M/STRM-SEC,AMK Chauffeur Driven Cars & Minicoa,Creditors Control Account," 3,865.20 ",Multi-purpose Veh
11/03/2020,SE TRANSPORT,AMK Chauffeur Driven Cars & Minicoa,Creditors Control Account," 2,993.47 ",Multi-purpose Veh
11/03/2020,SW TRANSPORT,AMK Chauffeur Driven Cars & Minicoa,Creditors Control Account, 293.15 ,Multi-purpose Veh
11/03/2020,NW TRANSPORT,AMK Chauffeur Driven Cars & Minicoa,Creditors Control Account, 862.20 ,Multi-purpose Veh
11/03/2020,SE TRANSPORT,AMK Chauffeur Driven Cars & Minicoa,Creditors Control Account," 4,014.72 ",Multi-purpose Veh
11/03/2020,NE TRANSPORT,AMK Chauffeur Driven Cars & Minicoa,Creditors Control Account, 434.20 ,Multi-purpose Veh
11/03/2020,NW TRANSPORT,AMK Chauffeur Driven Cars & Minicoa,Creditors Control Account," 1,986.46 ",Multi-purpose Veh
11/03/2020,NE TRANSPORT,AMK Chauffeur Driven Cars & Minicoa,Creditors Control Account, 916.76 ,Multi-purpose Veh
11/03/2020,NW TRANSPORT,AMK Chauffeur Driven Cars & Minicoa,Creditors Control Account, 812.88 ,Multi-purpose Veh
11/03/2020,SW TRANSPORT,AMK Chauffeur Driven Cars & Minicoa,Creditors Control Account," 1,185.00 ",Multi-purpose Veh
11/03/2020,SE TRANSPORT,AMK Chauffeur Driven Cars & Minicoa,Creditors Control Account, 920.16 ,Multi-purpose Veh
11/03/2020,SW TRANSPORT,AMK Chauffeur Driven Cars & Minicoa,Creditors Control Account," 2,877.30 ",Multi-purpose Veh
11/03/2020,SW TRANSPORT,AMK Chauffeur Driven Cars & Minicoa,Creditors Control Account, 823.86 ,Multi-purpose Veh
11/03/2020,SW TRANSPORT,AMK Chauffeur Driven Cars & Minicoa,Creditors Control Account, 868.40 ,Multi-purpose Veh
11/03/2020,SE TRANSPORT,AMK Chauffeur Driven Cars & Minicoa,Creditors Control Account, 981.72 ,Multi-purpose Veh
11/03/2020,SW TRANSPORT,AMK Chauffeur Driven Cars & Minicoa,Creditors Control Account, 634.65 ,Multi-purpose Veh
11/03/2020,SW TRANSPORT,AMK Chauffeur Driven Cars & Minicoa,Creditors Control Account," 1,556.40 ",Multi-purpose Veh
11/03/2020,SW TRANSPORT,AMK Chauffeur Driven Cars & Minicoa,Creditors Control Account, 421.80 ,Multi-purpose Veh
11/03/2020,NW TRANSPORT,AMK Chauffeur Driven Cars & Minicoa,Creditors Control Account," 1,476.50 ",Multi-purpose Veh
11/03/2020,SW TRANSPORT,AMK Chauffeur Driven Cars & Minicoa,Creditors Control Account," 1,966.65 ",Multi-purpose Veh
11/03/2020,SW TRANSPORT,AMK Chauffeur Driven Cars & Minicoa,Creditors Control Account," 1,677.30 ",Multi-purpose Veh
11/03/2020,NW TRANSPORT,AMK Chauffeur Driven Cars & Minicoa,Creditors Control Account," 3,181.50 ",Multi-purpose Veh
11/03/2020,SW TRANSPORT,AMK Chauffeur Driven Cars & Minicoa,Creditors Control Account, 493.60 ,Multi-purpose Veh
11/03/2020,NW TRANSPORT,AMK Chauffeur Driven Cars & Minicoa,Creditors Control Account, 376.08 ,Multi-purpose Veh
11/03/2020,SW TRANSPORT,AMK Chauffeur Driven Cars & Minicoa,Creditors Control Account," 1,788.00 ",Multi-purpose Veh
11/03/2020,NW TRANSPORT,AMK Chauffeur Driven Cars & Minicoa,Creditors Control Account, 474.75 ,Multi-purpose Veh
11/03/2020,NW TRANSPORT,AMK Chauffeur Driven Cars & Minicoa,Creditors Control Account," 3,058.95 ",Multi-purpose Veh
11/03/2020,NE TRANSPORT,AMK Chauffeur Driven Cars & Minicoa,Creditors Control Account," 2,262.66 ",Multi-purpose Veh
11/03/2020,SW TRANSPORT,AMK Chauffeur Driven Cars & Minicoa,Creditors Control Account, 670.14 ,Multi-purpose Veh
11/03/2020,SW TRANSPORT,AMK Chauffeur Driven Cars & Minicoa,Creditors Control Account, 991.65 ,Multi-purpose Veh
11/03/2020,NW TRANSPORT,AMK Chauffeur Driven Cars & Minicoa,Creditors Control Account, 818.40 ,Multi-purpose Veh
11/03/2020,SW TRANSPORT,AMK Chauffeur Driven Cars & Minicoa,Creditors Control Account," 1,084.62 ",Multi-purpose Veh
11/03/2020,NW TRANSPORT,AMK Chauffeur Driven Cars & Minicoa,Creditors Control Account, 476.98 ,Multi-purpose Veh
11/03/2020,SW TRANSPORT,AMK Chauffeur Driven Cars & Minicoa,Creditors Control Account," 1,038.30 ",Multi-purpose Veh
11/03/2020,SW TRANSPORT,AMK Chauffeur Driven Cars & Minicoa,Creditors Control Account," 1,303.20 ",Multi-purpose Veh
11/03/2020,SW TRANSPORT,AMK Chauffeur Driven Cars & Minicoa,Creditors Control Account," 2,677.14 ",Multi-purpose Veh
11/03/2020,NW TRANSPORT,AMK Chauffeur Driven Cars & Minicoa,Creditors Control Account," 3,456.90 ",Multi-purpose Veh
11/03/2020,SW TRANSPORT,AMK Chauffeur Driven Cars & Minicoa,Creditors Control Account," 2,025.45 ",Multi-purpose Veh
11/03/2020,NW TRANSPORT,AMK Chauffeur Driven Cars & Minicoa,Creditors Control Account," 1,686.72 ",Multi-purpose Veh
11/03/2020,SW TRANSPORT,AMK Chauffeur Driven Cars & Minicoa,Creditors Control Account, 420.00 ,Multi-purpose Veh
11/03/2020,SW TRANSPORT,AMK Chauffeur Driven Cars & Minicoa,Creditors Control Account, 342.30 ,Multi-purpose Veh
11/03/2020,SW TRANSPORT,AMK Chauffeur Driven Cars & Minicoa,Creditors Control Account, 749.52 ,Multi-purpose Veh
11/03/2020,SW TRANSPORT,AMK Chauffeur Driven Cars & Minicoa,Creditors Control Account, 331.03 ,Multi-purpose Veh
11/03/2020,NW TRANSPORT,AMK Chauffeur Driven Cars & Minicoa,Creditors Control Account, 979.09 ,Multi-purpose Veh
11/03/2020,SW TRANSPORT,AMK Chauffeur Driven Cars & Minicoa,Creditors Control Account, 582.45 ,Multi-purpose Veh
11/03/2020,NW TRANSPORT,AMK Chauffeur Driven Cars & Minicoa,Creditors Control Account," 2,508.26 ",Multi-purpose Veh
12/03/2020,SW TRANSPORT,AMK Chauffeur Driven Cars & Minicoa,Creditors Control Account, 534.99 ,Multi-purpose Veh
12/03/2020,NW TRANSPORT,AMK Chauffeur Driven Cars & Minicoa,Creditors Control Account, 677.74 ,Multi-purpose Veh
11/03/2020,SW TRANSPORT,AMK Chauffeur Driven Cars & Minicoa,Creditors Control Account," 3,763.35 ",Multi-purpose Veh
11/03/2020,SW TRANSPORT,AMK Chauffeur Driven Cars & Minicoa,Creditors Control Account," 1,019.85 ",Multi-purpose Veh
11/03/2020,NW TRANSPORT,AMK Chauffeur Driven Cars & Minicoa,Creditors Control Account," 1,394.10 ",Multi-purpose Veh
11/03/2020,NW TRANSPORT,AMK Chauffeur Driven Cars & Minicoa,Creditors Control Account, 875.85 ,Multi-purpose Veh
11/03/2020,SW TRANSPORT,AMK Chauffeur Driven Cars & Minicoa,Creditors Control Account," 2,308.05 ",Multi-purpose Veh
11/03/2020,NW TRANSPORT,AMK Chauffeur Driven Cars & Minicoa,Creditors Control Account, 354.45 ,Multi-purpose Veh
11/03/2020,SW TRANSPORT,AMK Chauffeur Driven Cars & Minicoa,Creditors Control Account," 2,778.43 ",Multi-purpose Veh
11/03/2020,SW TRANSPORT,AMK Chauffeur Driven Cars & Minicoa,Creditors Control Account," 1,338.10 ",Multi-purpose Veh
11/03/2020,SE TRANSPORT,AMK Chauffeur Driven Cars & Minicoa,Creditors Control Account," 1,213.22 ",Multi-purpose Veh
11/03/2020,SW TRANSPORT,AMK Chauffeur Driven Cars & Minicoa,Creditors Control Account," 3,746.92 ",Multi-purpose Veh
12/03/2020,NW TRANSPORT,AMK Chauffeur Driven Cars & Minicoa,Creditors Control Account," 2,401.56 ",Multi-purpose Veh
12/03/2020,NW TRANSPORT,AMK Chauffeur Driven Cars & Minicoa,Creditors Control Account, 679.14 ,Multi-purpose Veh
12/03/2020,SW TRANSPORT,AMK Chauffeur Driven Cars & Minicoa,Creditors Control Account," 1,434.42 ",Multi-purpose Veh
12/03/2020,NE TRANSPORT,AMK Chauffeur Driven Cars & Minicoa,Creditors Control Account, 684.60 ,Multi-purpose Veh
12/03/2020,NW TRANSPORT,AMK Chauffeur Driven Cars & Minicoa,Creditors Control Account, 989.10 ,Multi-purpose Veh
12/03/2020,SE TRANSPORT,AMK Chauffeur Driven Cars & Minicoa,Creditors Control Account," 3,266.21 ",Multi-purpose Veh
12/03/2020,SW TRANSPORT,AMK Chauffeur Driven Cars & Minicoa,Creditors Control Account, 648.62 ,Multi-purpose Veh
12/03/2020,NW TRANSPORT,AMK Chauffeur Driven Cars & Minicoa,Creditors Control Account," 1,801.24 ",Multi-purpose Veh
12/03/2020,NE TRANSPORT,AMK Chauffeur Driven Cars & Minicoa,Creditors Control Account," 3,606.02 ",Multi-purpose Veh
11/03/2020,SW TRANSPORT,AMK Chauffeur Driven Cars & Minicoa,Creditors Control Account, 943.26 ,Multi-purpose Veh
11/03/2020,SW TRANSPORT,AMK Chauffeur Driven Cars & Minicoa,Creditors Control Account, 326.36 ,Multi-purpose Veh
11/03/2020,SW TRANSPORT,AMK Chauffeur Driven Cars & Minicoa,Creditors Control Account," 1,413.90 ",Multi-purpose Veh
11/03/2020,SW TRANSPORT,AMK Chauffeur Driven Cars & Minicoa,Creditors Control Account, 355.50 ,Multi-purpose Veh
11/03/2020,SW TRANSPORT,AMK Chauffeur Driven Cars & Minicoa,Creditors Control Account, 561.68 ,Multi-purpose Veh
11/03/2020,SE TRANSPORT,AMK Chauffeur Driven Cars & Minicoa,Creditors Control Account, 411.08 ,Multi-purpose Veh
12/03/2020,NE TRANSPORT,AMK Chauffeur Driven Cars & Minicoa,Creditors Control Account, 501.90 ,Multi-purpose Veh
12/03/2020,SW TRANSPORT,AMK Chauffeur Driven Cars & Minicoa,Creditors Control Account, 401.58 ,Multi-purpose Veh
12/03/2020,SW TRANSPORT,AMK Chauffeur Driven Cars & Minicoa,Creditors Control Account," 3,781.65 ",Multi-purpose Veh
12/03/2020,SW TRANSPORT,AMK Chauffeur Driven Cars & Minicoa,Creditors Control Account," 1,257.45 ",Multi-purpose Veh
12/03/2020,NW TRANSPORT,AMK Chauffeur Driven Cars & Minicoa,Creditors Control Account," 1,595.16 ",Multi-purpose Veh
12/03/2020,NW TRANSPORT,AMK Chauffeur Driven Cars & Minicoa,Creditors Control Account, 666.82 ,Multi-purpose Veh
12/03/2020,SW TRANSPORT,AMK Chauffeur Driven Cars & Minicoa,Creditors Control Account, 633.93 ,Multi-purpose Veh
12/03/2020,SW TRANSPORT,AMK Chauffeur Driven Cars & Minicoa,Creditors Control Account, 385.63 ,Multi-purpose Veh
12/03/2020,SW TRANSPORT,AMK Chauffeur Driven Cars & Minicoa,Creditors Control Account," 2,129.54 ",Multi-purpose Veh
12/03/2020,NW TRANSPORT,AMK Chauffeur Driven Cars & Minicoa,Creditors Control Account, 509.32 ,Multi-purpose Veh
12/03/2020,NW TRANSPORT,AMK Chauffeur Driven Cars & Minicoa,Creditors Control Account," 1,080.25 ",Multi-purpose Veh
12/03/2020,NW TRANSPORT,AMK Chauffeur Driven Cars & Minicoa,Creditors Control Account, 274.82 ,Multi-purpose Veh
12/03/2020,SE TRANSPORT,AMK Chauffeur Driven Cars & Minicoa,Creditors Control Account," 2,576.45 ",Multi-purpose Veh
12/03/2020,SE TRANSPORT,AMK Chauffeur Driven Cars & Minicoa,Creditors Control Account," 1,144.98 ",Multi-purpose Veh
11/03/2020,NW TRANSPORT,AMK Chauffeur Driven Cars & Minicoa,Creditors Control Account," 4,648.22 ",Multi-purpose Veh
12/03/2020,SW TRANSPORT,AMK Chauffeur Driven Cars & Minicoa,Creditors Control Account," 3,616.74 ",Multi-purpose Veh
12/03/2020,SE TRANSPORT,AMK Chauffeur Driven Cars & Minicoa,Creditors Control Account, 429.55 ,Multi-purpose Veh
12/03/2020,WEST CWD NONLAC CARE,AMK Chauffeur Driven Cars & Minicoa,Creditors Control Account, 825.02 ,Multi-purpose Veh
12/03/2020,NW TRANSPORT,AMK Chauffeur Driven Cars & Minicoa,Creditors Control Account," 2,395.54 ",Multi-purpose Veh
12/03/2020,NE TRANSPORT,AMK Chauffeur Driven Cars & Minicoa,Creditors Control Account," 1,622.73 ",Multi-purpose Veh
12/03/2020,SE TRANSPORT,AMK Chauffeur Driven Cars & Minicoa,Creditors Control Account, 648.62 ,Multi-purpose Veh
12/03/2020,NE TRANSPORT,AMK Chauffeur Driven Cars & Minicoa,Creditors Control Account," 4,095.36 ",Multi-purpose Veh
12/03/2020,SW TRANSPORT,AMK Chauffeur Driven Cars & Minicoa,Creditors Control Account, 673.12 ,Multi-purpose Veh
12/03/2020,TRANSPT M/STRM-PRIM,AMK Chauffeur Driven Cars & Minicoa,Creditors Control Account," 1,054.69 ",Multi-purpose Veh
12/03/2020,NW TRANSPORT,AMK Chauffeur Driven Cars & Minicoa,Creditors Control Account, 355.04 ,Multi-purpose Veh
12/03/2020,SW TRANSPORT,AMK Chauffeur Driven Cars & Minicoa,Creditors Control Account," 1,623.75 ",Multi-purpose Veh
12/03/2020,SW TRANSPORT,AMK Chauffeur Driven Cars & Minicoa,Creditors Control Account, 875.69 ,Multi-purpose Veh
12/03/2020,NW TRANSPORT,AMK Chauffeur Driven Cars & Minicoa,Creditors Control Account," 2,069.76 ",Multi-purpose Veh
12/03/2020,NW TRANSPORT,AMK Chauffeur Driven Cars & Minicoa,Creditors Control Account," 1,575.95 ",Multi-purpose Veh
12/03/2020,NW TRANSPORT,AMK Chauffeur Driven Cars & Minicoa,Creditors Control Account," 2,554.20 ",Multi-purpose Veh
12/03/2020,NW TRANSPORT,AMK Chauffeur Driven Cars & Minicoa,Creditors Control Account, 675.65 ,Multi-purpose Veh
12/03/2020,SW TRANSPORT,AMK Chauffeur Driven Cars & Minicoa,Creditors Control Account," 1,108.57 ",Multi-purpose Veh
12/03/2020,NW TRANSPORT,AMK Chauffeur Driven Cars & Minicoa,Creditors Control Account, 647.92 ,Multi-purpose Veh
12/03/2020,NW TRANSPORT,AMK Chauffeur Driven Cars & Minicoa,Creditors Control Account, 375.84 ,Multi-purpose Veh
12/03/2020,SW TRANSPORT,AMK Chauffeur Driven Cars & Minicoa,Creditors Control Account, 375.84 ,Multi-purpose Veh
13/03/2020,SW TRANSPORT,AMK Chauffeur Driven Cars & Minicoa,Creditors Control Account, 377.05 ,Multi-purpose Veh
13/03/2020,SE TRANSPORT,AMK Chauffeur Driven Cars & Minicoa,Creditors Control Account, 713.70 ,Multi-purpose Veh
13/03/2020,SE TRANSPORT,AMK Chauffeur Driven Cars & Minicoa,Creditors Control Account," 2,417.30 ",Multi-purpose Veh
13/03/2020,NE TRANSPORT,AMK Chauffeur Driven Cars & Minicoa,Creditors Control Account, 600.00 ,Multi-purpose Veh
13/03/2020,NW TRANSPORT,AMK Chauffeur Driven Cars & Minicoa,Creditors Control Account, 828.90 ,Multi-purpose Veh
13/03/2020,SW TRANSPORT,AMK Chauffeur Driven Cars & Minicoa,Creditors Control Account," 1,681.44 ",Multi-purpose Veh
13/03/2020,NW TRANSPORT,AMK Chauffeur Driven Cars & Minicoa,Creditors Control Account," 2,112.00 ",Multi-purpose Veh
13/03/2020,SW TRANSPORT,AMK Chauffeur Driven Cars & Minicoa,Creditors Control Account," 1,051.02 ",Multi-purpose Veh
13/03/2020,NE TRANSPORT,AMK Chauffeur Driven Cars & Minicoa,Creditors Control Account," 1,861.88 ",Multi-purpose Veh
13/03/2020,SW TRANSPORT,AMK Chauffeur Driven Cars & Minicoa,Creditors Control Account, 607.30 ,Multi-purpose Veh
13/03/2020,SW TRANSPORT,AMK Chauffeur Driven Cars & Minicoa,Creditors Control Account, 607.30 ,Multi-purpose Veh
13/03/2020,NW TRANSPORT,AMK Chauffeur Driven Cars & Minicoa,Creditors Control Account, 433.07 ,Multi-purpose Veh
13/03/2020,SW TRANSPORT,AMK Chauffeur Driven Cars & Minicoa,Creditors Control Account," 1,618.08 ",Multi-purpose Veh
13/03/2020,NE TRANSPORT,AMK Chauffeur Driven Cars & Minicoa,Creditors Control Account," 2,260.56 ",Multi-purpose Veh
13/03/2020,LD-Aut Cntr Tm Staff,AMK Chauffeur Driven Cars & Minicoa,Creditors Control Account," 1,000.00 ",Multi-purpose Veh
10/03/2020,SW TRANSPORT,AMK Chauffeur Driven Cars & Minicoa,Creditors Control Account, 570.00 ,Multi-purpose Veh
10/03/2020,TRANSPT M/STRM-SEC,AMK Chauffeur Driven Cars & Minicoa,Creditors Control Account," 3,979.39 ",Multi-purpose Veh
10/03/2020,TRANSPT M/STRM-PRIM,AMK Chauffeur Driven Cars & Minicoa,Creditors Control Account," 2,141.25 ",Multi-purpose Veh
10/03/2020,SW TRANSPORT,AMK Chauffeur Driven Cars & Minicoa,Creditors Control Account, 756.00 ,Multi-purpose Veh
10/03/2020,SW TRANSPORT,AMK Chauffeur Driven Cars & Minicoa,Creditors Control Account," 3,055.14 ",Multi-purpose Veh
10/03/2020,TRANSPT M/STRM-SEC,AMK Chauffeur Driven Cars & Minicoa,Creditors Control Account," 3,699.90 ",Multi-purpose Veh
10/03/2020,NE TRANSPORT,AMK Chauffeur Driven Cars & Minicoa,Creditors Control Account," 2,156.58 ",Multi-purpose Veh
11/03/2020,SW TRANSPORT,AMK Chauffeur Driven Cars & Minicoa,Creditors Control Account, 453.29 ,Multi-purpose Veh
11/03/2020,NE TRANSPORT,AMK Chauffeur Driven Cars & Minicoa,Creditors Control Account," 4,353.31 ",Multi-purpose Veh
11/03/2020,SE TRANSPORT,AMK Chauffeur Driven Cars & Minicoa,Creditors Control Account," 2,957.90 ",Multi-purpose Veh
11/03/2020,SW TRANSPORT,AMK Chauffeur Driven Cars & Minicoa,Creditors Control Account," 5,819.04 ",Multi-purpose Veh
11/03/2020,SW TRANSPORT,AMK Chauffeur Driven Cars & Minicoa,Creditors Control Account, 288.30 ,Multi-purpose Veh
11/03/2020,SW TRANSPORT,AMK Chauffeur Driven Cars & Minicoa,Creditors Control Account," 2,393.64 ",Multi-purpose Veh
11/03/2020,SW TRANSPORT,AMK Chauffeur Driven Cars & Minicoa,Creditors Control Account," 2,608.35 ",Multi-purpose Veh
11/03/2020,SW TRANSPORT,AMK Chauffeur Driven Cars & Minicoa,Creditors Control Account," 3,659.25 ",Multi-purpose Veh
11/03/2020,SW TRANSPORT,AMK Chauffeur Driven Cars & Minicoa,Creditors Control Account, 494.55 ,Multi-purpose Veh
11/03/2020,SW TRANSPORT,AMK Chauffeur Driven Cars & Minicoa,Creditors Control Account, 973.35 ,Multi-purpose Veh
11/03/2020,NW TRANSPORT,AMK Chauffeur Driven Cars & Minicoa,Creditors Control Account," 1,888.05 ",Multi-purpose Veh
11/03/2020,SW TRANSPORT,AMK Chauffeur Driven Cars & Minicoa,Creditors Control Account, 632.10 ,Multi-purpose Veh
11/03/2020,SW TRANSPORT,AMK Chauffeur Driven Cars & Minicoa,Creditors Control Account," 1,670.40 ",Multi-purpose Veh
11/03/2020,NW TRANSPORT,AMK Chauffeur Driven Cars & Minicoa,Creditors Control Account," 1,237.95 ",Multi-purpose Veh
11/03/2020,NW TRANSPORT,AMK Chauffeur Driven Cars & Minicoa,Creditors Control Account, 880.52 ,Multi-purpose Veh
11/03/2020,SW TRANSPORT,AMK Chauffeur Driven Cars & Minicoa,Creditors Control Account, 959.25 ,Multi-purpose Veh
11/03/2020,SW TRANSPORT,AMK Chauffeur Driven Cars & Minicoa,Creditors Control Account, 509.25 ,Multi-purpose Veh
12/03/2020,SW TRANSPORT,AMK Chauffeur Driven Cars & Minicoa,Creditors Control Account, 948.24 ,Multi-purpose Veh
12/03/2020,SW TRANSPORT,AMK Chauffeur Driven Cars & Minicoa,Creditors Control Account," 1,281.39 ",Multi-purpose Veh
12/03/2020,WEST CWD NONLAC CARE,AMK Chauffeur Driven Cars & Minicoa,Creditors Control Account, 267.49 ,Multi-purpose Veh
12/03/2020,NW TRANSPORT,AMK Chauffeur Driven Cars & Minicoa,Creditors Control Account," 1,501.89 ",Multi-purpose Veh
12/03/2020,NE TRANSPORT,AMK Chauffeur Driven Cars & Minicoa,Creditors Control Account, 350.16 ,Multi-purpose Veh
12/03/2020,SW TRANSPORT,AMK Chauffeur Driven Cars & Minicoa,Creditors Control Account, 920.25 ,Multi-purpose Veh
12/03/2020,SW TRANSPORT,AMK Chauffeur Driven Cars & Minicoa,Creditors Control Account," 4,796.25 ",Multi-purpose Veh
12/03/2020,NW TRANSPORT,AMK Chauffeur Driven Cars & Minicoa,Creditors Control Account, 451.08 ,Multi-purpose Veh
12/03/2020,NW TRANSPORT,AMK Chauffeur Driven Cars & Minicoa,Creditors Control Account," 2,358.16 ",Multi-purpose Veh
12/03/2020,NE TRANSPORT,AMK Chauffeur Driven Cars & Minicoa,Creditors Control Account," 2,163.28 ",Multi-purpose Veh
12/03/2020,NW TRANSPORT,AMK Chauffeur Driven Cars & Minicoa,Creditors Control Account," 3,496.78 ",Multi-purpose Veh
12/03/2020,NE TRANSPORT,AMK Chauffeur Driven Cars & Minicoa,Creditors Control Account, 385.63 ,Multi-purpose Veh
25/03/2020,SW TRANSPORT,AMK Chauffeur Driven Cars & Minicoa,Creditors Control Account," 3,204.53 ",Multi-purpose Veh
25/03/2020,SW TRANSPORT,AMK Chauffeur Driven Cars & Minicoa,Creditors Control Account," 1,165.94 ",Multi-purpose Veh
25/03/2020,SW TRANSPORT,AMK Chauffeur Driven Cars & Minicoa,Creditors Control Account," 2,978.72 ",Multi-purpose Veh
25/03/2020,SW TRANSPORT,AMK Chauffeur Driven Cars & Minicoa,Creditors Control Account," 1,079.48 ",Multi-purpose Veh
25/03/2020,NW TRANSPORT,AMK Chauffeur Driven Cars & Minicoa,Creditors Control Account," 2,791.62 ",Multi-purpose Veh
25/03/2020,NW TRANSPORT,AMK Chauffeur Driven Cars & Minicoa,Creditors Control Account, 923.75 ,Multi-purpose Veh
25/03/2020,WEST CWD NONLAC CARE,AMK Chauffeur Driven Cars & Minicoa,Creditors Control Account, 335.00 ,Multi-purpose Veh
25/03/2020,NW TRANSPORT,AMK Chauffeur Driven Cars & Minicoa,Creditors Control Account," 2,374.04 ",Multi-purpose Veh
25/03/2020,SW TRANSPORT,AMK Chauffeur Driven Cars & Minicoa,Creditors Control Account, 524.71 ,Multi-purpose Veh
25/03/2020,SW TRANSPORT,AMK Chauffeur Driven Cars & Minicoa,Creditors Control Account, 809.61 ,Multi-purpose Veh
25/03/2020,SW TRANSPORT,AMK Chauffeur Driven Cars & Minicoa,Creditors Control Account, 951.90 ,Multi-purpose Veh
25/03/2020,WEST CWD NONLAC CARE,AMK Chauffeur Driven Cars & Minicoa,Creditors Control Account, 710.00 ,Multi-purpose Veh
25/03/2020,SW TRANSPORT,AMK Chauffeur Driven Cars & Minicoa,Creditors Control Account, 616.28 ,Multi-purpose Veh
25/03/2020,SW TRANSPORT,AMK Chauffeur Driven Cars & Minicoa,Creditors Control Account," 2,038.10 ",Multi-purpose Veh
25/03/2020,SW TRANSPORT,AMK Chauffeur Driven Cars & Minicoa,Creditors Control Account," 2,024.57 ",Multi-purpose Veh
12/03/2020,SW TRANSPORT,AMK Chauffeur Driven Cars & Minicoa,Creditors Control Account," 1,470.33 ",Multi-purpose Veh
12/03/2020,NE TRANSPORT,AMK Chauffeur Driven Cars & Minicoa,Creditors Control Account, 710.08 ,Multi-purpose Veh
12/03/2020,NW TRANSPORT,AMK Chauffeur Driven Cars & Minicoa,Creditors Control Account, 368.76 ,Multi-purpose Veh
12/03/2020,SW TRANSPORT,AMK Chauffeur Driven Cars & Minicoa,Creditors Control Account, 686.88 ,Multi-purpose Veh
12/03/2020,SW TRANSPORT,AMK Chauffeur Driven Cars & Minicoa,Creditors Control Account, 330.84 ,Multi-purpose Veh
12/03/2020,NW TRANSPORT,AMK Chauffeur Driven Cars & Minicoa,Creditors Control Account, 585.34 ,Multi-purpose Veh
12/03/2020,NW TRANSPORT,AMK Chauffeur Driven Cars & Minicoa,Creditors Control Account," 2,291.38 ",Multi-purpose Veh
25/03/2020,NW TRANSPORT,AMK Chauffeur Driven Cars & Minicoa,Creditors Control Account," 1,231.67 ",Multi-purpose Veh
25/03/2020,SW TRANSPORT,AMK Chauffeur Driven Cars & Minicoa,Creditors Control Account, 258.60 ,Multi-purpose Veh
25/03/2020,EAST CWD LAC CARE,AMK Chauffeur Driven Cars & Minicoa,Creditors Control Account, 750.00 ,Multi-purpose Veh
30/03/2020,NW TRANSPORT,AMK Chauffeur Driven Cars & Minicoa,Creditors Control Account, 322.56 ,Multi-purpose Veh
30/03/2020,NW TRANSPORT,AMK Chauffeur Driven Cars & Minicoa,Creditors Control Account," 1,906.05 ",Multi-purpose Veh
30/03/2020,SW TRANSPORT,AMK Chauffeur Driven Cars & Minicoa,Creditors Control Account, 322.56 ,Multi-purpose Veh
30/03/2020,NW TRANSPORT,AMK Chauffeur Driven Cars & Minicoa,Creditors Control Account," 1,971.45 ",Multi-purpose Veh
30/03/2020,SW TRANSPORT,AMK Chauffeur Driven Cars & Minicoa,Creditors Control Account, 569.95 ,Multi-purpose Veh
30/03/2020,NW TRANSPORT,AMK Chauffeur Driven Cars & Minicoa,Creditors Control Account, 289.47 ,Multi-purpose Veh
30/03/2020,SW TRANSPORT,AMK Chauffeur Driven Cars & Minicoa,Creditors Control Account, 578.93 ,Multi-purpose Veh
30/03/2020,SE TRANSPORT,AMK Chauffeur Driven Cars & Minicoa,Creditors Control Account, 360.00 ,Multi-purpose Veh
30/03/2020,SW TRANSPORT,AMK Chauffeur Driven Cars & Minicoa,Creditors Control Account," 1,325.52 ",Multi-purpose Veh
30/03/2020,SW TRANSPORT,AMK Chauffeur Driven Cars & Minicoa,Creditors Control Account," 1,767.36 ",Multi-purpose Veh
13/03/2020,SW TRANSPORT,AMK Chauffeur Driven Cars & Minicoa,Creditors Control Account, 680.00 ,Multi-purpose Veh
25/03/2020,SW TRANSPORT,AMK Chauffeur Driven Cars & Minicoa,Creditors Control Account, 425.76 ,Multi-purpose Veh
25/03/2020,SW TRANSPORT,AMK Chauffeur Driven Cars & Minicoa,Creditors Control Account, 344.80 ,Multi-purpose Veh
25/03/2020,SW TRANSPORT,AMK Chauffeur Driven Cars & Minicoa,Creditors Control Account, 760.05 ,Multi-purpose Veh
25/03/2020,SW TRANSPORT,AMK Chauffeur Driven Cars & Minicoa,Creditors Control Account, 861.07 ,Multi-purpose Veh
25/03/2020,NE TRANSPORT,AMK Chauffeur Driven Cars & Minicoa,Creditors Control Account, 371.34 ,Multi-purpose Veh
25/03/2020,SW TRANSPORT,AMK Chauffeur Driven Cars & Minicoa,Creditors Control Account," 2,234.04 ",Multi-purpose Veh
25/03/2020,SW TRANSPORT,AMK Chauffeur Driven Cars & Minicoa,Creditors Control Account, 319.32 ,Multi-purpose Veh
25/03/2020,SW TRANSPORT,AMK Chauffeur Driven Cars & Minicoa,Creditors Control Account," 2,403.40 ",Multi-purpose Veh
25/03/2020,NW TRANSPORT,AMK Chauffeur Driven Cars & Minicoa,Creditors Control Account," 1,863.12 ",Multi-purpose Veh
25/03/2020,SW TRANSPORT,AMK Chauffeur Driven Cars & Minicoa,Creditors Control Account, 534.30 ,Multi-purpose Veh
25/03/2020,NW TRANSPORT,AMK Chauffeur Driven Cars & Minicoa,Creditors Control Account, 508.15 ,Multi-purpose Veh
25/03/2020,SW TRANSPORT,AMK Chauffeur Driven Cars & Minicoa,Creditors Control Account," 1,518.42 ",Multi-purpose Veh
25/03/2020,NW TRANSPORT,AMK Chauffeur Driven Cars & Minicoa,Creditors Control Account, 381.12 ,Multi-purpose Veh
25/03/2020,SW TRANSPORT,AMK Chauffeur Driven Cars & Minicoa,Creditors Control Account, 462.21 ,Multi-purpose Veh
30/03/2020,NW TRANSPORT,AMK Chauffeur Driven Cars & Minicoa,Creditors Control Account, 651.30 ,Multi-purpose Veh
30/03/2020,SW TRANSPORT,AMK Chauffeur Driven Cars & Minicoa,Creditors Control Account, 324.80 ,Multi-purpose Veh
30/03/2020,NW TRANSPORT,AMK Chauffeur Driven Cars & Minicoa,Creditors Control Account," 1,563.10 ",Multi-purpose Veh
30/03/2020,SE TRANSPORT,AMK Chauffeur Driven Cars & Minicoa,Creditors Control Account, 840.00 ,Multi-purpose Veh
30/03/2020,SE TRANSPORT,AMK Chauffeur Driven Cars & Minicoa,Creditors Control Account," 1,190.00 ",Multi-purpose Veh
30/03/2020,NE TRANSPORT,AMK Chauffeur Driven Cars & Minicoa,Creditors Control Account, 990.00 ,Multi-purpose Veh
31/03/2020,NW TRANSPORT,AMK Chauffeur Driven Cars & Minicoa,Creditors Control Account, 400.00 ,Multi-purpose Veh
22/01/2020,SE AGENCY PLACE-ED,Amwell View School,New GR/IR Account," 23,587.00 ",Grants-Member Allocs
30/01/2020,CORONER,Analytical Services International L,Inquest Exps., 642.00 ,Coroners
30/01/2020,CORONER,Analytical Services International L,Inquest Exps., 642.00 ,Coroners
03/03/2020,CORONER,Analytical Services International L,Inquest Exps., 702.00 ,Coroners
03/03/2020,CORONER,Analytical Services International L,Inquest Exps., 702.00 ,Coroners
03/03/2020,CORONER,Analytical Services International L,Inquest Exps., 702.00 ,Coroners
03/03/2020,CORONER,Analytical Services International L,Inquest Exps., 702.00 ,Coroners
03/03/2020,CORONER,Analytical Services International L,Inquest Exps., 702.00 ,Coroners
03/03/2020,CORONER,Analytical Services International L,Inquest Exps., 702.00 ,Coroners
03/03/2020,CORONER,Analytical Services International L,Inquest Exps., 702.00 ,Coroners
03/03/2020,CORONER,Analytical Services International L,Inquest Exps., 702.00 ,Coroners
03/03/2020,CORONER,Analytical Services International L,Inquest Exps., 702.00 ,Coroners
03/03/2020,CORONER,Analytical Services International L,Inquest Exps., 702.00 ,Coroners
03/03/2020,CORONER,Analytical Services International L,Inquest Exps., 702.00 ,Coroners
03/03/2020,CORONER,Analytical Services International L,Inquest Exps., 702.00 ,Coroners
03/03/2020,CORONER,Analytical Services International L,Inquest Exps., 702.00 ,Coroners
03/03/2020,CORONER,Analytical Services International L,Inquest Exps., 702.00 ,Coroners
03/03/2020,CORONER,Analytical Services International L,Inquest Exps., 702.00 ,Coroners
27/03/2020,CORONER,Analytical Services International L,Inquest Exps., 702.00 ,Coroners
27/03/2020,CORONER,Analytical Services International L,Inquest Exps., 702.00 ,Coroners
27/03/2020,CORONER,Analytical Services International L,Inquest Exps., 702.00 ,Coroners
27/03/2020,CORONER,Analytical Services International L,Inquest Exps., 702.00 ,Coroners
27/03/2020,CORONER,Analytical Services International L,Inquest Exps., 702.00 ,Coroners
27/03/2020,CORONER,Analytical Services International L,Inquest Exps., 702.00 ,Coroners
27/03/2020,CORONER,Analytical Services International L,Inquest Exps., 702.00 ,Coroners
27/03/2020,CORONER,Analytical Services International L,Inquest Exps., 702.00 ,Coroners
27/03/2020,CORONER,Analytical Services International L,Inquest Exps., 702.00 ,Coroners
27/03/2020,CORONER,Analytical Services International L,Inquest Exps., 702.00 ,Coroners
27/03/2020,CORONER,Analytical Services International L,Inquest Exps., 702.00 ,Coroners
27/03/2020,CORONER,Analytical Services International L,Inquest Exps., 702.00 ,Coroners
27/03/2020,CORONER,Analytical Services International L,Inquest Exps., 702.00 ,Coroners
27/03/2020,CORONER,Analytical Services International L,Inquest Exps., 702.00 ,Coroners
27/03/2020,CORONER,Analytical Services International L,Inquest Exps., 702.00 ,Coroners
27/03/2020,CORONER,Analytical Services International L,Inquest Exps., 702.00 ,Coroners
05/03/2020,SE AREA SEN MGT,Anastasi Education Ltd,New GR/IR Account," 1,596.30 ",Staff Training
07/01/2020,SPELTHORNE CARE OP,Anchor Trust - Staying Put,New GR/IR Account," 3,393.00 ",Day Care - OP
04/02/2020,SURREY ARTS GEN,Andertons Music Co,New GR/IR Account, 390.00 ,Musical Instruments
25/02/2020,INSTRUMENT HIRE SHOP,Andertons Music Co,New GR/IR Account," 1,332.00 ",Musical Instruments
10/01/2020,ELMBRIDGE CARE LD,Angel Cars Ltd,Creditors Control Account," 1,459.20 ",Multi-purpose Veh
10/01/2020,NE TRANSPORT,Angel Cars Ltd,Creditors Control Account," 2,184.00 ",Multi-purpose Veh
10/01/2020,NE TRANSPORT,Angel Cars Ltd,Creditors Control Account," 1,216.80 ",Multi-purpose Veh
10/01/2020,NE TRANSPORT,Angel Cars Ltd,Creditors Control Account," 1,728.00 ",Multi-purpose Veh
10/01/2020,NW TRANSPORT,Angel Cars Ltd,Creditors Control Account, 510.00 ,Multi-purpose Veh
10/01/2020,NE TRANSPORT,Angel Cars Ltd,Creditors Control Account, 720.00 ,Multi-purpose Veh
10/01/2020,NE TRANSPORT,Angel Cars Ltd,Creditors Control Account, 768.16 ,Multi-purpose Veh
10/01/2020,SW TRANSPORT,Angel Cars Ltd,Creditors Control Account, 336.44 ,Multi-purpose Veh
10/01/2020,NW TRANSPORT,Angel Cars Ltd,Creditors Control Account, 448.69 ,Multi-purpose Veh
10/01/2020,SE TRANSPORT,Angel Cars Ltd,Creditors Control Account, 527.51 ,Multi-purpose Veh
10/01/2020,NE TRANSPORT,Angel Cars Ltd,Creditors Control Account," 1,579.20 ",Multi-purpose Veh
10/01/2020,TRANSPT M/STRM-SEC,Angel Cars Ltd,Creditors Control Account, 510.00 ,Multi-purpose Veh
10/01/2020,NE TRANSPORT,Angel Cars Ltd,Creditors Control Account," 1,296.00 ",Multi-purpose Veh
10/01/2020,TRANSPT M/STRM-SEC,Angel Cars Ltd,Creditors Control Account," 1,232.40 ",Multi-purpose Veh
10/01/2020,NE TRANSPORT,Angel Cars Ltd,Creditors Control Account," 1,800.00 ",Multi-purpose Veh
10/01/2020,NE TRANSPORT,Angel Cars Ltd,Creditors Control Account," 1,596.00 ",Multi-purpose Veh
10/01/2020,S CHOICES TRANSPORT,Angel Cars Ltd,Creditors Control Account," 2,366.40 ",Multi-purpose Veh
10/01/2020,PLD TRANSITION,Angel Cars Ltd,Creditors Control Account," 1,497.60 ",Multi-purpose Veh
10/01/2020,TRANSPT M/STRM-PRIM,Angel Cars Ltd,Creditors Control Account, 967.20 ,Multi-purpose Veh
10/01/2020,TRANSPT M/STRM-SEC,Angel Cars Ltd,Creditors Control Account," 1,440.00 ",Multi-purpose Veh
10/01/2020,NE TRANSPORT,Angel Cars Ltd,Creditors Control Account," 2,250.00 ",Multi-purpose Veh
11/02/2020,S CHOICES TRANSPORT,Angel Cars Ltd,Creditors Control Account," 3,062.40 ",Multi-purpose Veh
11/02/2020,PLD TRANSITION,Angel Cars Ltd,Creditors Control Account," 1,996.80 ",Multi-purpose Veh
14/02/2020,NE TRANSPORT,Angel Cars Ltd,Creditors Control Account," 2,652.00 ",Multi-purpose Veh
14/02/2020,SW TRANSPORT,Angel Cars Ltd,Creditors Control Account, 517.28 ,Multi-purpose Veh
14/02/2020,SE TRANSPORT,Angel Cars Ltd,Creditors Control Account, 752.41 ,Multi-purpose Veh
14/02/2020,NE TRANSPORT,Angel Cars Ltd,Creditors Control Account," 2,280.00 ",Multi-purpose Veh
14/02/2020,NE TRANSPORT,Angel Cars Ltd,Creditors Control Account," 2,256.00 ",Multi-purpose Veh
14/02/2020,TRANSPT M/STRM-PRIM,Angel Cars Ltd,Creditors Control Account," 1,488.00 ",Multi-purpose Veh
14/02/2020,TRANSPT M/STRM-SEC,Angel Cars Ltd,Creditors Control Account," 2,736.00 ",Multi-purpose Veh
14/02/2020,NE TRANSPORT,Angel Cars Ltd,Creditors Control Account," 2,462.40 ",Multi-purpose Veh
14/02/2020,TRANSPT M/STRM-SEC,Angel Cars Ltd,Creditors Control Account," 1,896.00 ",Multi-purpose Veh
14/02/2020,NE TRANSPORT,Angel Cars Ltd,Creditors Control Account," 2,166.00 ",Multi-purpose Veh
14/02/2020,NE TRANSPORT,Angel Cars Ltd,Creditors Control Account," 1,368.00 ",Multi-purpose Veh
11/02/2020,ELMBRIDGE CARE LD,Angel Cars Ltd,Creditors Control Account," 1,550.40 ",Multi-purpose Veh
14/02/2020,NE TRANSPORT,Angel Cars Ltd,Creditors Control Account," 1,353.51 ",Multi-purpose Veh
14/02/2020,NE TRANSPORT,Angel Cars Ltd,Creditors Control Account," 1,872.00 ",Multi-purpose Veh
14/02/2020,NE TRANSPORT,Angel Cars Ltd,Creditors Control Account," 3,000.00 ",Multi-purpose Veh
14/02/2020,NE TRANSPORT,Angel Cars Ltd,Creditors Control Account," 2,188.80 ",Multi-purpose Veh
14/02/2020,NW TRANSPORT,Angel Cars Ltd,Creditors Control Account, 408.00 ,Multi-purpose Veh
10/03/2020,NE TRANSPORT,Angel Cars Ltd,Creditors Control Account," 2,184.00 ",Multi-purpose Veh
10/03/2020,NE TRANSPORT,Angel Cars Ltd,Creditors Control Account, 955.92 ,Multi-purpose Veh
10/03/2020,NE TRANSPORT,Angel Cars Ltd,Creditors Control Account," 1,579.20 ",Multi-purpose Veh
10/03/2020,NE TRANSPORT,Angel Cars Ltd,Creditors Control Account," 1,710.00 ",Multi-purpose Veh
10/03/2020,NE TRANSPORT,Angel Cars Ltd,Creditors Control Account," 1,404.00 ",Multi-purpose Veh
10/03/2020,NE TRANSPORT,Angel Cars Ltd,Creditors Control Account," 1,944.00 ",Multi-purpose Veh
10/03/2020,TRANSPT M/STRM-SEC,Angel Cars Ltd,Creditors Control Account," 1,327.20 ",Multi-purpose Veh
10/03/2020,NE TRANSPORT,Angel Cars Ltd,Creditors Control Account," 1,950.00 ",Multi-purpose Veh
10/03/2020,NW TRANSPORT,Angel Cars Ltd,Creditors Control Account, 918.00 ,Multi-purpose Veh
10/03/2020,S CHOICES TRANSPORT,Angel Cars Ltd,Creditors Control Account," 2,784.00 ",Multi-purpose Veh
10/03/2020,NE TRANSPORT,Angel Cars Ltd,Creditors Control Account," 1,008.00 ",Multi-purpose Veh
10/03/2020,PLD TRANSITION,Angel Cars Ltd,Creditors Control Account," 1,372.80 ",Multi-purpose Veh
10/03/2020,SW TRANSPORT,Angel Cars Ltd,Creditors Control Account, 440.57 ,Multi-purpose Veh
10/03/2020,SE TRANSPORT,Angel Cars Ltd,Creditors Control Account, 564.31 ,Multi-purpose Veh
10/03/2020,TRANSPT M/STRM-PRIM,Angel Cars Ltd,Creditors Control Account," 1,116.00 ",Multi-purpose Veh
10/03/2020,NE TRANSPORT,Angel Cars Ltd,Creditors Control Account," 1,800.00 ",Multi-purpose Veh
10/03/2020,NE TRANSPORT,Angel Cars Ltd,Creditors Control Account," 1,728.00 ",Multi-purpose Veh
10/03/2020,TRANSPT M/STRM-SEC,Angel Cars Ltd,Creditors Control Account," 2,016.00 ",Multi-purpose Veh
10/03/2020,ELMBRIDGE CARE LD,Angel Cars Ltd,Creditors Control Account," 1,459.20 ",Multi-purpose Veh
03/02/2020,Barnfield,Angel Springs Ltd,E25 Catering Equipment, 341.66 ,Cat Vending Machines
13/01/2020,SE TRANSPORT,Anna Travel & School Services,Creditors Control Account, 540.00 ,Taxi Hire (SEN Only)
13/01/2020,SE TRANSPORT,Anna Travel & School Services,Creditors Control Account," 1,188.00 ",Taxi Hire (SEN Only)
13/01/2020,SE TRANSPORT,Anna Travel & School Services,Creditors Control Account," 1,749.60 ",Taxi Hire (SEN Only)
13/01/2020,SE TRANSPORT,Anna Travel & School Services,Creditors Control Account," 1,680.00 ",Taxi Hire (SEN Only)
13/01/2020,SE TRANSPORT,Anna Travel & School Services,Creditors Control Account, 360.00 ,Taxi Hire (SEN Only)
13/01/2020,SE TRANSPORT,Anna Travel & School Services,Creditors Control Account," 2,592.00 ",Taxi Hire (SEN Only)
14/01/2020,SW TRANSPORT,Anna Travel & School Services,Creditors Control Account," 1,490.51 ",Taxi Hire (SEN Only)
14/01/2020,NE TRANSPORT,Anna Travel & School Services,Creditors Control Account," 2,553.60 ",Taxi Hire (SEN Only)
13/01/2020,SE TRANSPORT,Anna Travel & School Services,Creditors Control Account," 1,872.00 ",Taxi Hire (SEN Only)
13/01/2020,NE TRANSPORT,Anna Travel & School Services,Creditors Control Account, 626.40 ,Taxi Hire (SEN Only)
13/01/2020,TRANSPT M/STRM-SEC,Anna Travel & School Services,Creditors Control Account, 974.40 ,Taxi Hire (SEN Only)
13/01/2020,TRANSPT M/STRM-SEC,Anna Travel & School Services,Creditors Control Account," 1,620.00 ",Taxi Hire (SEN Only)
11/02/2020,SW TRANSPORT,Anna Travel & School Services,Creditors Control Account," 1,788.60 ",Taxi Hire (SEN Only)
11/02/2020,SE TRANSPORT,Anna Travel & School Services,Creditors Control Account, 648.00 ,Taxi Hire (SEN Only)
11/02/2020,NE TRANSPORT,Anna Travel & School Services,Creditors Control Account," 3,465.60 ",Taxi Hire (SEN Only)
11/02/2020,SE TRANSPORT,Anna Travel & School Services,Creditors Control Account," 1,969.80 ",Taxi Hire (SEN Only)
11/02/2020,SE TRANSPORT,Anna Travel & School Services,Creditors Control Account, 720.00 ,Taxi Hire (SEN Only)
11/02/2020,SE TRANSPORT,Anna Travel & School Services,Creditors Control Account," 2,640.00 ",Taxi Hire (SEN Only)
11/02/2020,SE TRANSPORT,Anna Travel & School Services,Creditors Control Account," 2,496.00 ",Taxi Hire (SEN Only)
11/02/2020,SE TRANSPORT,Anna Travel & School Services,Creditors Control Account," 2,702.40 ",Taxi Hire (SEN Only)
11/02/2020,TRANSPT M/STRM-SEC,Anna Travel & School Services,Creditors Control Account," 1,392.00 ",Taxi Hire (SEN Only)
14/01/2020,SE TRANSPORT,Anna Travel & School Services,Creditors Control Account," 1,641.49 ",Taxi Hire (SEN Only)
14/01/2020,SE TRANSPORT,Anna Travel & School Services,Creditors Control Account, 540.00 ,Taxi Hire (SEN Only)
14/01/2020,NE TRANSPORT,Anna Travel & School Services,Creditors Control Account, 504.00 ,Taxi Hire (SEN Only)
11/02/2020,TRANSPT M/STRM-SEC,Anna Travel & School Services,Creditors Control Account," 1,944.00 ",Taxi Hire (SEN Only)
11/02/2020,SE TRANSPORT,Anna Travel & School Services,Creditors Control Account," 3,283.20 ",Taxi Hire (SEN Only)
11/02/2020,NE TRANSPORT,Anna Travel & School Services,Creditors Control Account, 684.00 ,Taxi Hire (SEN Only)
14/02/2020,SE TRANSPORT,Anna Travel & School Services,Creditors Control Account," 3,360.00 ",Taxi Hire (SEN Only)
14/02/2020,SE TRANSPORT,Anna Travel & School Services,Creditors Control Account, 720.00 ,Taxi Hire (SEN Only)
14/02/2020,NE TRANSPORT,Anna Travel & School Services,Creditors Control Account, 835.20 ,Taxi Hire (SEN Only)
10/03/2020,SE TRANSPORT,Anna Travel & School Services,Creditors Control Account, 504.00 ,Taxi Hire (SEN Only)
10/03/2020,SE TRANSPORT,Anna Travel & School Services,Creditors Control Account," 2,150.40 ",Taxi Hire (SEN Only)
10/03/2020,SE TRANSPORT,Anna Travel & School Services,Creditors Control Account, 540.00 ,Taxi Hire (SEN Only)
10/03/2020,NE TRANSPORT,Anna Travel & School Services,Creditors Control Account, 540.00 ,Taxi Hire (SEN Only)
10/03/2020,TRANSPT M/STRM-SEC,Anna Travel & School Services,Creditors Control Account," 1,044.00 ",Taxi Hire (SEN Only)
10/03/2020,SE TRANSPORT,Anna Travel & School Services,Creditors Control Account," 2,520.00 ",Taxi Hire (SEN Only)
10/03/2020,SE TRANSPORT,Anna Travel & School Services,Creditors Control Account," 1,980.00 ",Taxi Hire (SEN Only)
10/03/2020,TRANSPT M/STRM-SEC,Anna Travel & School Services,Creditors Control Account," 1,620.00 ",Taxi Hire (SEN Only)
12/03/2020,SW TRANSPORT,Anna Travel & School Services,Creditors Control Account," 1,391.14 ",Taxi Hire (SEN Only)
12/03/2020,SE TRANSPORT,Anna Travel & School Services,Creditors Control Account," 1,532.06 ",Taxi Hire (SEN Only)
12/03/2020,NE TRANSPORT,Anna Travel & School Services,Creditors Control Account," 1,044.00 ",Taxi Hire (SEN Only)
10/03/2020,SE TRANSPORT,Anna Travel & School Services,Creditors Control Account," 1,747.20 ",Taxi Hire (SEN Only)
10/03/2020,NE TRANSPORT,Anna Travel & School Services,Creditors Control Account," 2,736.00 ",Taxi Hire (SEN Only)
10/03/2020,SE TRANSPORT,Anna Travel & School Services,Creditors Control Account," 2,592.00 ",Taxi Hire (SEN Only)
12/03/2020,SE TRANSPORT,Anna Travel & School Services,Creditors Control Account, 504.00 ,Taxi Hire (SEN Only)
21/02/2020,ORB FIN ASST DIR,Anouk Video Production Ltd,New GR/IR Account," 1,740.00 ",Audio Visual
25/02/2020,NULL,Ansa Utilities Ltd,NULL, 865.00 ,General Build Maint
30/01/2020,ASYLUM SKRS 16-17,Ansacare Fostering Agency Ltd,New GR/IR Account," 3,424.28 ",Fostering IFA
30/01/2020,ASYLUM SKRS 16-17,Ansacare Fostering Agency Ltd,New GR/IR Account," 3,538.42 ",Fostering IFA
23/01/2020,ASYLUM SKRS 16-17,Ansacare Fostering Agency Ltd,New GR/IR Account," 1,826.00 ",Fostering IFA
19/03/2020,ASYLUM SKRS 16-17,Ansacare Fostering Agency Ltd,New GR/IR Account," 3,310.14 ",Fostering IFA
11/03/2020,ASYLUM SKRS 16-17,Ansacare Fostering Agency Ltd,New GR/IR Account," 3,538.43 ",Fostering IFA
24/03/2020,PUPIL PREMIUM LAC,Anstey Junior School,Local Authorities, 341.00 ,Grants-Member Allocs
15/01/2020,ORBIS AUDIT,Antmow Ltd,New GR/IR Account," 3,510.00 ",Org & Bus Consult
14/02/2020,ORBIS AUDIT,Antmow Ltd,New GR/IR Account," 4,200.00 ",Org & Bus Consult
19/03/2020,SW ALTERNATIVE SEN,Anzuk Education Ltd,New GR/IR Account," 1,620.00 ",SEND Agncy Placement
13/01/2020,ESTATES DELIVERY MGR,AP Security Ltd,Fees, 690.00 ,Property Management
21/01/2020,THE MEADS CHERTSEY,AP Security Ltd,Security Alarm Maintenance, 378.00 ,Property Management
21/01/2020,QUADRANT CT WOKING,AP Security Ltd,Security Alarm Maintenance, 270.00 ,Property Management
21/01/2020,ASHFORD FC,AP Security Ltd,Security Alarm Maintenance, 378.00 ,Property Management
21/01/2020,WOKING CORONERS CT,AP Security Ltd,Security Alarm Maintenance, 378.00 ,Property Management
13/01/2020,QUADRANT CT WOKING,AP Security Ltd,Security Alarm Maintenance," 2,493.90 ",Property Management
21/01/2020,COUNTY HALL,AP Security Ltd,Security Alarm Maintenance," 1,606.50 ",Property Management
21/01/2020,HAYES BRIDGE BC-BUS,AP Security Ltd,Security Alarm Maintenance, 270.00 ,Property Management
21/01/2020,PRIMARY DATA CENTRE,AP Security Ltd,Security Alarm Maintenance," 1,161.00 ",Property Management
21/01/2020,CONSORT HOUSE,AP Security Ltd,Security Alarm Maintenance," 2,692.81 ",Property Management
21/01/2020,FAIRMOUNT HOUSE,AP Security Ltd,Security Alarm Maintenance," 1,285.20 ",Property Management
21/01/2020,EDGE YC WEST EWELL,AP Security Ltd,Security Alarm Maintenance, 540.00 ,Property Management
04/02/2020,FAIRMOUNT HOUSE,AP Security Ltd,Security Alarm Maintenance, 423.00 ,Property Management
27/01/2020,PERM SURP LAND,AP Security Ltd,Security Alarm Maintenance, 828.00 ,Property Management
04/02/2020,EDGE YC WEST EWELL,AP Security Ltd,Security Alarm Maintenance, 558.00 ,Property Management
04/02/2020,14 THE PINES,AP Security Ltd,Security Alarm Maintenance, 432.00 ,Property Management
04/02/2020,THE MEADS CHERTSEY,AP Security Ltd,Security Alarm Maintenance, 360.00 ,Property Management
04/02/2020,GROVE FARM ESHER,AP Security Ltd,Security Alarm Maintenance, 279.00 ,Property Management
04/02/2020,WOKING CORONERS CT,AP Security Ltd,Security Alarm Maintenance, 360.00 ,Property Management
04/02/2020,QUADRANT CT WOKING,AP Security Ltd,Security Alarm Maintenance, 252.00 ,Property Management
04/02/2020,WOKING CORONERS CT,AP Security Ltd,Security Alarm Maintenance, 414.00 ,Property Management
04/02/2020,WOKING CORONERS CT,AP Security Ltd,Security Alarm Maintenance, 378.00 ,Property Management
04/02/2020,ASHFORD FC,AP Security Ltd,Security Alarm Maintenance, 378.00 ,Property Management
04/02/2020,QUADRANT CT WOKING,AP Security Ltd,Security Alarm Maintenance, 378.00 ,Property Management
04/02/2020,14 THE PINES,AP Security Ltd,Security Alarm Maintenance, 378.00 ,Property Management
04/02/2020,EDGE YC WEST EWELL,AP Security Ltd,Security Alarm Maintenance, 504.00 ,Property Management
04/02/2020,GROVE FARM ESHER,AP Security Ltd,Security Alarm Maintenance, 252.00 ,Property Management
04/02/2020,QUADRANT CT WOKING,AP Security Ltd,Security Alarm Maintenance, 279.00 ,Property Management
04/02/2020,EDGE YC WEST EWELL,AP Security Ltd,Security Alarm Maintenance, 558.00 ,Property Management
04/02/2020,PRIMARY DATA CENTRE,AP Security Ltd,Security Alarm Maintenance," 1,206.00 ",Property Management
04/02/2020,HAYES BRIDGE BC-BUS,AP Security Ltd,Security Alarm Maintenance, 279.00 ,Property Management
04/02/2020,HAYES BRIDGE BC-BUS,AP Security Ltd,Security Alarm Maintenance, 252.00 ,Property Management
04/02/2020,PRIMARY DATA CENTRE,AP Security Ltd,Security Alarm Maintenance," 1,080.00 ",Property Management
04/02/2020,PRIMARY DATA CENTRE,AP Security Ltd,Security Alarm Maintenance," 1,188.00 ",Property Management
04/02/2020,THE MEADS CHERTSEY,AP Security Ltd,Security Alarm Maintenance, 414.00 ,Property Management
11/02/2020,HAYES BRIDGE BC-BUS,AP Security Ltd,Security Alarm Maintenance, 297.00 ,Property Management
11/02/2020,QUADRANT CT WOKING,AP Security Ltd,Security Alarm Maintenance, 297.00 ,Property Management
11/02/2020,EDGE YC WEST EWELL,AP Security Ltd,Security Alarm Maintenance, 594.00 ,Property Management
04/02/2020,COUNTY HALL,AP Security Ltd,Security Alarm Maintenance," 1,560.60 ",Property Management
11/02/2020,THE MEADS CHERTSEY,AP Security Ltd,Security Alarm Maintenance, 432.00 ,Property Management
11/02/2020,14 THE PINES,AP Security Ltd,Security Alarm Maintenance, 477.00 ,Property Management
04/02/2020,CONSORT HOUSE,AP Security Ltd,Security Alarm Maintenance," 2,298.83 ",Property Management
04/02/2020,QUADRANT CT WOKING,AP Security Ltd,Security Alarm Maintenance," 2,700.47 ",Property Management
11/02/2020,PRIMARY DATA CENTRE,AP Security Ltd,Security Alarm Maintenance," 1,125.00 ",Property Management
11/02/2020,ASHFORD FC,AP Security Ltd,Security Alarm Maintenance, 360.00 ,Property Management
11/02/2020,WOKING CORONERS CT,AP Security Ltd,Security Alarm Maintenance, 360.00 ,Property Management
04/02/2020,FAIRMOUNT HOUSE,AP Security Ltd,Security Alarm Maintenance," 1,224.00 ",Property Management
21/01/2020,14 THE PINES,AP Security Ltd,Security Alarm Maintenance, 459.00 ,Property Management
04/02/2020,THE MEADS CHERTSEY,AP Security Ltd,Security Alarm Maintenance, 378.00 ,Property Management
04/02/2020,14 THE PINES,AP Security Ltd,Security Alarm Maintenance, 486.00 ,Property Management
04/02/2020,GROVE FARM ESHER,AP Security Ltd,Security Alarm Maintenance, 279.00 ,Property Management
11/02/2020,NULL,AP Security Ltd,NULL," 13,392.00 ",Property Management
11/02/2020,NULL,AP Security Ltd,NULL," 12,960.00 ",Property Management
11/02/2020,NULL,AP Security Ltd,NULL," 13,885.20 ",Property Management
13/02/2020,NULL,AP Security Ltd,NULL," 3,546.00 ",Property Management
14/02/2020,NULL,AP Security Ltd,NULL," 1,317.60 ",Property Management
10/03/2020,QUADRANT CT WOKING,AP Security Ltd,Security Alarm Maintenance," 3,052.34 ",Property Management
10/03/2020,COUNTY HALL,AP Security Ltd,Security Alarm Maintenance," 1,759.50 ",Property Management
17/03/2020,EDGE YC WEST EWELL,AP Security Ltd,Security Alarm Maintenance, 576.00 ,Property Management
17/03/2020,THE MEADS CHERTSEY,AP Security Ltd,Security Alarm Maintenance, 432.00 ,Property Management
17/03/2020,WOKING CORONERS CT,AP Security Ltd,Security Alarm Maintenance, 414.00 ,Property Management
17/03/2020,QUADRANT CT WOKING,AP Security Ltd,Security Alarm Maintenance, 288.00 ,Property Management
10/03/2020,CONSORT HOUSE,AP Security Ltd,Security Alarm Maintenance," 2,371.50 ",Property Management
10/03/2020,FAIRMOUNT HOUSE,AP Security Ltd,Security Alarm Maintenance," 1,407.60 ",Property Management
17/03/2020,PRIMARY DATA CENTRE,AP Security Ltd,Security Alarm Maintenance," 1,188.00 ",Property Management
17/03/2020,ASHFORD FC,AP Security Ltd,Security Alarm Maintenance, 396.00 ,Property Management
17/03/2020,14 THE PINES,AP Security Ltd,Security Alarm Maintenance, 486.00 ,Property Management
17/03/2020,HAYES BRIDGE BC-BUS,AP Security Ltd,Security Alarm Maintenance, 288.00 ,Property Management
07/02/2020,WOKG - MEMBS ALLOCS,Appeer CIC,Grants-Third Sector and Voluntary Orgs/Charities," 2,547.00 ",Grants-Member Allocs
02/01/2020,SW AGENCY PLACE-ED,Appleford School,Agency Placement Expenditure," 8,718.00 ",SEN Specialist Supp
03/01/2020,APPLEWOOD,Applewood,Purchase of Food, 567.27 ,Residential - MH
19/02/2020,APPLEWOOD,Applewood,Purchase of Food, 569.59 ,Residential - MH
24/03/2020,APPLEWOOD,Applewood,Purchase of Food, 281.99 ,Residential - MH
03/03/2020,NULL,Applied Acoustic Design Ltd,NULL," 1,848.00 ",Org & Bus Consult
22/01/2020,NW ALTERNATIVE SEN,Applied Behaviour Analysis Therapy,New GR/IR Account, 750.00 ,SEND Agncy Placement
04/03/2020,NW ALTERNATIVE SEN,Applied Behaviour Analysis Therapy,New GR/IR Account, 450.00 ,SEND Agncy Placement
26/03/2020,NW ALTERNATIVE SEN,Applied Behaviour Analysis Therapy,New GR/IR Account, 750.00 ,SEND Agncy Placement
07/01/2020,TECH DELIVERY,Appurity,New GR/IR Account," 17,940.00 ",Appl Serv Provision
06/03/2020,TECH DELIVERY,Appurity,New GR/IR Account," 95,490.00 ",Appl Serv Provision
03/01/2020,IT&D - APPS SUPPORT,APT Ltd,New GR/IR Account," 11,301.40 ",Appl Serv Provision
05/02/2020,SCC PENSIONS,Aquila Heywood,New GR/IR Account," 1,103.99 ",IT Consultancy
05/02/2020,SCC PENSIONS,Aquila Heywood,New GR/IR Account, 329.76 ,IT Consultancy
26/02/2020,ES PENSIONS TEAM,Aquila Heywood,New GR/IR Account, 319.99 ,IT Consultancy
10/03/2020,SCC PENSIONS,Aquila Heywood,New GR/IR Account," 1,247.99 ",IT Consultancy
10/03/2020,ES PENSIONS TEAM,Aquila Heywood,New GR/IR Account," 17,970.00 ",IT Consultancy
27/03/2020,ES PENSIONS TEAM,Aquila Heywood,New GR/IR Account," 3,391.94 ",IT Consultancy
08/01/2020,NULL,Aran Services Ltd,NULL," 4,906.50 ",H & S Maint
08/01/2020,WALLACE FIELDS JUN,Aran Services Ltd,Buyback Works Responsive, 420.00 ,H & S Maint
08/01/2020,NULL,Aran Services Ltd,NULL," 4,756.50 ",H & S Maint
08/01/2020,NULL,Aran Services Ltd,NULL," 4,980.00 ",H & S Maint
08/01/2020,NULL,Aran Services Ltd,NULL," 15,168.00 ",H & S Maint
14/01/2020,NULL,Aran Services Ltd,NULL," 42,549.76 ",H & S Maint
08/01/2020,NULL,Aran Services Ltd,NULL," 1,237.38 ",H & S Maint
